BodyName,ServiceAreaCategorisation,ServiceDivisionCategorisation,ExpensesType,Date,TransactionNumber,Amount,CapitalorRevenue,SupplierName,MerchantCategory
Peterborough City Council,ICT,ICT,"Tools, Equipment, Furniture & Materials",02/01/2019,30205448,3465.00,Revenue,Palmer Building Solutions Ltd,Computer Hardware
Peterborough City Council,Adults,Independent Sector Placements,Services,02/01/2019,30205466,786.24,Revenue,Carers Trust Cambridgeshire,Home Care
Peterborough City Council,Adults,Independent Sector Placements,Services,02/01/2019,30205467,635.04,Revenue,Carers Trust Cambridgeshire,Home Care
Peterborough City Council,Adults,Independent Sector Placements,Services,02/01/2019,30205468,782.46,Revenue,Carers Trust Cambridgeshire,Home Care
Peterborough City Council,Adults,Independent Sector Placements,Services,02/01/2019,30205471,635.04,Revenue,Carers Trust Cambridgeshire,Home Care
Peterborough City Council,Children's & Safeguarding,Access to Resources & Specialist Commissioning,Services,02/01/2019,30206198,3816.10,Revenue,Nexus Fostering Ltd,Boarding Out Fees
Peterborough City Council,Adults,Therapy/Reablement/Community Equipment,"Tools, Equipment, Furniture & Materials",02/01/2019,30206218,749.90,Revenue,Connevans Ltd,Occupational Therapy Equipment
Peterborough City Council,Adults,Therapy/Reablement/Community Equipment,"Tools, Equipment, Furniture & Materials",02/01/2019,30206219,812.50,Revenue,Connevans Ltd,Occupational Therapy Equipment
Peterborough City Council,Legal Services,Legal Services,Agency Staff,02/01/2019,30206220,1232.00,Revenue,Venn Group Ltd,External Temporary Staff
Peterborough City Council,Legal Services,Legal Services,Agency Staff,02/01/2019,30206221,579.47,Revenue,Venn Group Ltd,External Temporary Staff
Peterborough City Council,Legal Services,Legal Services,Agency Staff,02/01/2019,30206222,1650.00,Revenue,Venn Group Ltd,External Temporary Staff
Peterborough City Council,Legal Services,Legal Services,Agency Staff,02/01/2019,30206223,2486.25,Revenue,Venn Group Ltd,External Temporary Staff
Peterborough City Council,Legal Services,Legal Services,Agency Staff,02/01/2019,30206225,1147.50,Revenue,Venn Group Ltd,External Temporary Staff
Peterborough City Council,Commissioning and Commercial Operations,Clare Lodge,Agency Staff,02/01/2019,30206230,544.00,Revenue,Wrixon Care Services,External Temporary Staff
Peterborough City Council,Commissioning and Commercial Operations,Clare Lodge,Agency Staff,02/01/2019,30206232,1032.00,Revenue,Wrixon Care Services,External Temporary Staff
Peterborough City Council,Commissioning and Commercial Operations,Clare Lodge,Agency Staff,02/01/2019,30206233,576.00,Revenue,Wrixon Care Services,External Temporary Staff
Peterborough City Council,Commissioning and Commercial Operations,Clare Lodge,Agency Staff,02/01/2019,30206244,552.00,Revenue,Wrixon Care Services,External Temporary Staff
Peterborough City Council,Commissioning and Commercial Operations,Clare Lodge,Agency Staff,02/01/2019,30206245,1232.00,Revenue,Wrixon Care Services,External Temporary Staff
Peterborough City Council,Corporate Property,Strategic Projects,Agency Staff,02/01/2019,30206501,17612.00,Revenue,Penna Plc,External Temporary Staff
Peterborough City Council,Financial Services,Finance,Agency Staff,02/01/2019,30206502,10054.00,Revenue,Penna Plc,External Temporary Staff
Peterborough City Council,Corporate Items,Corporate Services,Agency Staff,02/01/2019,30206505,8610.00,Revenue,Penna Plc,External Temporary Staff
Peterborough City Council,Adults,Independent Sector Placements,Services,02/01/2019,30206550,4413.20,Revenue,Voyage 1 Limited,Residential Care
Peterborough City Council,Adults,Independent Sector Placements,Services,02/01/2019,30206551,4291.04,Revenue,Voyage 1 Limited,Home Care
Peterborough City Council,Adults,Independent Sector Placements,Services,02/01/2019,30206569,4559.00,Revenue,Voyage 1 Limited,Home Care
Peterborough City Council,Adults,Independent Sector Placements,Services,02/01/2019,30206571,2328.80,Revenue,Voyage 1 Limited,Home Care
Peterborough City Council,Adults,Independent Sector Placements,Services,02/01/2019,30206572,1590.40,Revenue,Voyage 1 Limited,Home Care
Peterborough City Council,Adults,Independent Sector Placements,Services,02/01/2019,30206573,1590.40,Revenue,Voyage 1 Limited,Home Care
Peterborough City Council,Adults,Independent Sector Placements,Services,02/01/2019,30206574,3743.92,Revenue,Voyage 1 Limited,Home Care
Peterborough City Council,Peterborough Highway Services,Highway Mtce & Scheme Commissioning,Services,02/01/2019,30206578,14365.00,Revenue,Vaisala TMI Ltd,Hired Services
Peterborough City Council,Adults,Independent Sector Placements,Services,02/01/2019,30206584,4198.72,Revenue,Voyage 1 Limited,Home Care
Peterborough City Council,Adults,Independent Sector Placements,Services,02/01/2019,30206585,5285.00,Revenue,Voyage 1 Limited,Home Care
Peterborough City Council,Adults,Independent Sector Placements,Services,02/01/2019,30206587,7666.40,Revenue,Voyage 1 Limited,Home Care
Peterborough City Council,Adults,Independent Sector Placements,Services,02/01/2019,30206589,7666.40,Revenue,Voyage 1 Limited,Home Care
Peterborough City Council,Adults,Independent Sector Placements,Services,02/01/2019,30206592,3095.60,Revenue,Voyage 1 Limited,Home Care
Peterborough City Council,Adults,Independent Sector Placements,Services,02/01/2019,30206595,2328.80,Revenue,Voyage 1 Limited,Home Care
Peterborough City Council,Adults,Independent Sector Placements,Services,02/01/2019,30206596,3095.60,Revenue,Voyage 1 Limited,Home Care
Peterborough City Council,Adults,Independent Sector Placements,Services,02/01/2019,30206597,5615.32,Revenue,Voyage 1 Limited,Home Care
Peterborough City Council,Adults,Independent Sector Placements,Services,02/01/2019,30206599,4382.88,Revenue,Voyage 1 Limited,Home Care
Peterborough City Council,Adults,Independent Sector Placements,Services,02/01/2019,30206604,3322.80,Revenue,Voyage 1 Limited,Home Care
Peterborough City Council,Adults,Independent Sector Placements,Services,02/01/2019,30206605,3322.80,Revenue,Voyage 1 Limited,Home Care
Peterborough City Council,Adults,Independent Sector Placements,Services,02/01/2019,30206610,4869.20,Revenue,Voyage 1 Limited,Residential Care
Peterborough City Council,Adults,Independent Sector Placements,Services,02/01/2019,30206611,6442.40,Revenue,Voyage 1 Limited,Residential Care
Peterborough City Council,Adults,Independent Sector Placements,Services,02/01/2019,30206613,5332.80,Revenue,Voyage 1 Limited,Residential Care
Peterborough City Council,Adults,Independent Sector Placements,Services,02/01/2019,30206615,8349.60,Revenue,Voyage 1 Limited,Home Care
Peterborough City Council,Adults,Independent Sector Placements,Services,02/01/2019,30206617,4160.60,Revenue,Voyage 1 Limited,Home Care
Peterborough City Council,Adults,Independent Sector Placements,Services,02/01/2019,30206619,1931.20,Revenue,Voyage 1 Limited,Home Care
Peterborough City Council,Adults,Independent Sector Placements,Services,02/01/2019,30206620,1931.20,Revenue,Voyage 1 Limited,Home Care
Peterborough City Council,Adults,Independent Sector Placements,Services,02/01/2019,30206622,1760.80,Revenue,Voyage 1 Limited,Home Care
Peterborough City Council,Adults,Independent Sector Placements,Services,02/01/2019,30206629,1931.20,Revenue,Voyage 1 Limited,Home Care
Peterborough City Council,Adults,Independent Sector Placements,Services,02/01/2019,30206630,5615.32,Revenue,Voyage 1 Limited,Home Care
Peterborough City Council,Adults,Independent Sector Placements,Services,02/01/2019,30206631,1760.80,Revenue,Voyage 1 Limited,Home Care
Peterborough City Council,Children's & Safeguarding,External Education Placements,Services,02/01/2019,30206636,6940.00,Revenue,Red Balloon of the Air,Boarding Out Fees
Peterborough City Council,Children's & Safeguarding,External Education Placements,Services,02/01/2019,30206637,9183.33,Revenue,Red Balloon of the Air,Boarding Out Fees
Peterborough City Council,Corporate Items,Corporate Services,Agency Staff,02/01/2019,30206653,21756.00,Revenue,Penna Plc,External Temporary Staff
Peterborough City Council,Adults,Independent Sector Placements,Services,02/01/2019,30206899,2128.00,Revenue,Alysia Caring Ltd T/a Cherry Blossom care Home,Residential Care
Peterborough City Council,Adults,Independent Sector Placements,Services,02/01/2019,30206900,2737.04,Revenue,Alysia Caring Ltd T/a Cherry Blossom care Home,Residential Care
Peterborough City Council,Adults,Independent Sector Placements,Services,02/01/2019,30206901,825.88,Revenue,Alysia Caring Ltd T/a Cherry Blossom care Home,Residential Care
Peterborough City Council,Adults,Independent Sector Placements,Services,02/01/2019,30206902,1847.60,Revenue,Alysia Caring Ltd T/a Cherry Blossom care Home,Residential Care
Peterborough City Council,Adults,Independent Sector Placements,Services,02/01/2019,30206903,1883.32,Revenue,Alysia Caring Ltd T/a Cherry Blossom care Home,Residential Care
Peterborough City Council,Adults,Independent Sector Placements,Services,02/01/2019,30206904,2930.04,Revenue,Alysia Caring Ltd T/a Cherry Blossom care Home,Residential Care
Peterborough City Council,Adults,Independent Sector Placements,Services,02/01/2019,30206905,589.44,Revenue,Alysia Caring Ltd T/a Cherry Blossom care Home,Residential Care
Peterborough City Council,Adults,Independent Sector Placements,Services,02/01/2019,30206906,1887.96,Revenue,Alysia Caring Ltd T/a Cherry Blossom care Home,Residential Care
Peterborough City Council,Adults,Independent Sector Placements,Services,02/01/2019,30206907,3100.00,Revenue,Alysia Caring Ltd T/a Cherry Blossom care Home,Residential Care
Peterborough City Council,Adults,Independent Sector Placements,Services,02/01/2019,30206908,2512.68,Revenue,Alysia Caring Ltd T/a Cherry Blossom care Home,Residential Care
Peterborough City Council,Adults,Independent Sector Placements,Services,02/01/2019,30206909,2825.04,Revenue,Alysia Caring Ltd T/a Cherry Blossom care Home,Residential Care
Peterborough City Council,Adults,Independent Sector Placements,Services,02/01/2019,30206910,1023.84,Revenue,Alysia Caring Ltd T/a Cherry Blossom care Home,Residential Care
Peterborough City Council,Adults,Independent Sector Placements,Services,02/01/2019,30206911,2460.04,Revenue,Alysia Caring Ltd T/a Cherry Blossom care Home,Residential Care
Peterborough City Council,Adults,Independent Sector Placements,Services,02/01/2019,30206912,2376.28,Revenue,Alysia Caring Ltd T/a Cherry Blossom care Home,Residential Care
Peterborough City Council,Adults,Independent Sector Placements,Services,02/01/2019,30206913,1773.88,Revenue,Alysia Caring Ltd T/a Cherry Blossom care Home,Residential Care
Peterborough City Council,Adults,Independent Sector Placements,Services,02/01/2019,30206914,6436.11,Revenue,Alysia Caring Ltd T/a Cherry Blossom care Home,Residential Care
Peterborough City Council,Communities,Community Capacity,Rents,02/01/2019,30206945,700.00,Revenue,Allia Ltd,Hire Of Premises
Peterborough City Council,Adults,Independent Sector Placements,Services,02/01/2019,30207098,568.00,Revenue,Mencap,Home Care
Peterborough City Council,Adults,Independent Sector Placements,Services,02/01/2019,30207100,852.00,Revenue,Mencap,Home Care
Peterborough City Council,Adults,Independent Sector Placements,Services,02/01/2019,30207101,681.60,Revenue,Mencap,Home Care
Peterborough City Council,Adults,Independent Sector Placements,Services,02/01/2019,30207102,7439.20,Revenue,Mencap,Home Care
Peterborough City Council,Adults,Independent Sector Placements,Services,02/01/2019,30207103,1476.80,Revenue,Mencap,Home Care
Peterborough City Council,Adults,Independent Sector Placements,Services,02/01/2019,30207104,2215.20,Revenue,Mencap,Home Care
Peterborough City Council,Adults,Independent Sector Placements,Services,02/01/2019,30207105,852.00,Revenue,Mencap,Home Care
Peterborough City Council,Adults,Independent Sector Placements,Services,02/01/2019,30207106,3687.04,Revenue,Mencap,Home Care
Peterborough City Council,Adults,Independent Sector Placements,Services,02/01/2019,30207114,8106.00,Revenue,Mencap,Home Care
Peterborough City Council,Adults,Independent Sector Placements,Services,02/01/2019,30207116,852.00,Revenue,Mencap,Home Care
Peterborough City Council,Adults,Independent Sector Placements,Services,02/01/2019,30207118,562.40,Revenue,Mencap,Home Care
Peterborough City Council,Adults,Independent Sector Placements,Services,02/01/2019,30207120,8251.60,Revenue,Mencap,Home Care
Peterborough City Council,Adults,Independent Sector Placements,Services,02/01/2019,30207134,2096.12,Revenue,Mayfield Residential Home,Residential Care
Peterborough City Council,Peterborough Highway Services,Highway & Drainage Control,Agency Staff,02/01/2019,30207195,1606.50,Revenue,Matchtech,External Temporary Staff
Peterborough City Council,Adults,Home Services Delivery Model,Services,02/01/2019,30207199,892.50,Revenue,Nightingale Services,Contractors
Peterborough City Council,Adults,Independent Sector Placements,Services,02/01/2019,30207251,1137.48,Revenue,Oakhouse Home Care Cambs Ltd,Residential Care
Peterborough City Council,Legal Services,Legal Services,Services,02/01/2019,30207275,3350.00,Revenue,"Hunt, Miss Alison",Legal Costs
Peterborough City Council,Adults,Home Services Delivery Model,Services,02/01/2019,30207289,1266.50,Revenue,Handyman Steve,Contractors
Peterborough City Council,Communities,Housing,Services,02/01/2019,30207291,2175.00,Revenue,Liam Varnam,Legal Costs
Peterborough City Council,Adults,Independent Sector Placements,Services,02/01/2019,30207359,6543.32,Revenue,Mencap,Home Care
Peterborough City Council,Adults,Independent Sector Placements,Services,02/01/2019,30207360,1107.60,Revenue,Mencap,Home Care
Peterborough City Council,Adults,Independent Sector Placements,Services,02/01/2019,30207361,568.00,Revenue,Mencap,Home Care
Peterborough City Council,Adults,Independent Sector Placements,Services,02/01/2019,30207362,1940.68,Revenue,Mencap,Home Care
Peterborough City Council,Adults,Independent Sector Placements,Services,02/01/2019,30207363,7277.40,Revenue,Mencap,Home Care
Peterborough City Council,Adults,Independent Sector Placements,Services,02/01/2019,30207365,695.80,Revenue,Mencap,Home Care
Peterborough City Council,Adults,Independent Sector Placements,Services,02/01/2019,30207366,2034.40,Revenue,Mencap,Home Care
Peterborough City Council,Adults,Independent Sector Placements,Services,02/01/2019,30207367,2223.00,Revenue,Mencap,Home Care
Peterborough City Council,Adults,Independent Sector Placements,Services,02/01/2019,30207448,6426.00,Revenue,SOCIAL CARE SOLUTIONS LTD,Home Care
Peterborough City Council,Adults,Independent Sector Placements,Services,02/01/2019,30207449,6674.40,Revenue,SOCIAL CARE SOLUTIONS LTD,Home Care
Peterborough City Council,Adults,Independent Sector Placements,Services,02/01/2019,30207450,6426.00,Revenue,SOCIAL CARE SOLUTIONS LTD,Home Care
Peterborough City Council,Adults,Independent Sector Placements,Services,02/01/2019,30207451,6674.40,Revenue,SOCIAL CARE SOLUTIONS LTD,Home Care
Peterborough City Council,Adults,Independent Sector Placements,Services,02/01/2019,30207452,6591.00,Revenue,SOCIAL CARE SOLUTIONS LTD,Home Care
Peterborough City Council,Adults,Independent Sector Placements,Services,02/01/2019,30207453,900.00,Revenue,SOCIAL CARE SOLUTIONS LTD,Home Care
Peterborough City Council,Adults,Independent Sector Placements,Services,02/01/2019,30207454,1932.00,Revenue,SOCIAL CARE SOLUTIONS LTD,Home Care
Peterborough City Council,Adults,Day opportunities - Older People,Rents,02/01/2019,30207456,675.00,Revenue,Cross Keys Homes,Hire Of Premises
Peterborough City Council,Adults,Independent Sector Placements,Services,02/01/2019,30207457,1932.00,Revenue,SOCIAL CARE SOLUTIONS LTD,Home Care
Peterborough City Council,Adults,Independent Sector Placements,Services,02/01/2019,30207458,2462.44,Revenue,SOCIAL CARE SOLUTIONS LTD,Home Care
Peterborough City Council,Adults,Independent Sector Placements,Services,02/01/2019,30207460,3210.64,Revenue,SOCIAL CARE SOLUTIONS LTD,Home Care
Peterborough City Council,Adults,Independent Sector Placements,Services,02/01/2019,30207463,3209.12,Revenue,SOCIAL CARE SOLUTIONS LTD,Home Care
Peterborough City Council,Adults,Independent Sector Placements,Services,02/01/2019,30207464,3210.64,Revenue,SOCIAL CARE SOLUTIONS LTD,Home Care
Peterborough City Council,Adults,Independent Sector Placements,Services,02/01/2019,30207466,6591.00,Revenue,SOCIAL CARE SOLUTIONS LTD,Home Care
Peterborough City Council,Adults,Independent Sector Placements,Services,02/01/2019,30207467,7699.80,Revenue,SOCIAL CARE SOLUTIONS LTD,Home Care
Peterborough City Council,Adults,Independent Sector Placements,Services,02/01/2019,30207470,3000.00,Revenue,SOCIAL CARE SOLUTIONS LTD,Home Care
Peterborough City Council,Adults,Independent Sector Placements,Services,02/01/2019,30207472,3740.12,Revenue,SOCIAL CARE SOLUTIONS LTD,Home Care
Peterborough City Council,Adults,Independent Sector Placements,Services,02/01/2019,30207474,4463.20,Revenue,SOCIAL CARE SOLUTIONS LTD,Home Care
Peterborough City Council,Adults,Independent Sector Placements,Services,02/01/2019,30207475,900.00,Revenue,SOCIAL CARE SOLUTIONS LTD,Home Care
Peterborough City Council,Adults,Independent Sector Placements,Services,02/01/2019,30207476,2472.64,Revenue,SOCIAL CARE SOLUTIONS LTD,Home Care
Peterborough City Council,Adults,Independent Sector Placements,Services,02/01/2019,30207479,3740.12,Revenue,SOCIAL CARE SOLUTIONS LTD,Home Care
Peterborough City Council,Adults,Independent Sector Placements,Services,02/01/2019,30207481,4463.20,Revenue,SOCIAL CARE SOLUTIONS LTD,Home Care
Peterborough City Council,Adults,Independent Sector Placements,Services,02/01/2019,30207483,3290.12,Revenue,SOCIAL CARE SOLUTIONS LTD,Home Care
Peterborough City Council,Adults,Independent Sector Placements,Services,02/01/2019,30207487,1576.24,Revenue,Maxey House Res Home,Residential Care
Peterborough City Council,Adults,Independent Sector Placements,Services,02/01/2019,30207488,914.56,Revenue,Maxey House Res Home,Residential Care
Peterborough City Council,Adults,Independent Sector Placements,Services,02/01/2019,30207493,1037.16,Revenue,Maxey House Res Home,Residential Care
Peterborough City Council,Adults,Independent Sector Placements,Services,02/01/2019,30207495,1087.52,Revenue,Maxey House Res Home,Residential Care
Peterborough City Council,Adults,Independent Sector Placements,Services,02/01/2019,30207500,1215.16,Revenue,Maxey House Res Home,Residential Care
Peterborough City Council,Adults,Independent Sector Placements,Services,02/01/2019,30207502,1144.36,Revenue,Maxey House Res Home,Residential Care
Peterborough City Council,Communities,Cohesion,Services,02/01/2019,30207504,15000.00,Revenue,P'Boro Council For Voluntary Srvs (PCVS),Grant Payment
Peterborough City Council,Adults,Independent Sector Placements,Services,02/01/2019,30207506,1821.88,Revenue,Maxey House Res Home,Residential Care
Peterborough City Council,Adults,Independent Sector Placements,Services,02/01/2019,30207509,1236.92,Revenue,Maxey House Res Home,Residential Care
Peterborough City Council,Adults,Independent Sector Placements,Services,02/01/2019,30207517,996.68,Revenue,Maxey House Res Home,Residential Care
Peterborough City Council,Adults,Independent Sector Placements,Services,02/01/2019,30207520,1225.20,Revenue,Maxey House Res Home,Residential Care
Peterborough City Council,Adults,Independent Sector Placements,Services,02/01/2019,30207522,1821.88,Revenue,Maxey House Res Home,Residential Care
Peterborough City Council,Adults,Independent Sector Placements,Services,02/01/2019,30207525,1679.96,Revenue,Maxey House Res Home,Residential Care
Peterborough City Council,Adults,Independent Sector Placements,Services,02/01/2019,30207526,1301.48,Revenue,Maxey House Res Home,Residential Care
Peterborough City Council,Peterborough Highway Services,Network and Traffic Management,Services,02/01/2019,30207553,546.06,Revenue,Johnston Press Midlands Division,Advertising
Peterborough City Council,Adults,OP/PD/SI,"Tools, Equipment, Furniture & Materials",02/01/2019,30207619,97383.03,Revenue,NRS Healthcare,Occupational Therapy Equipment
Peterborough City Council,Corporate Property,Commercial Propety,Agency Staff,02/01/2019,30207648,2055.42,Revenue,Reed Specialist Recruitment Limited,External Temporary Staff
Peterborough City Council,Adults,Home Services Delivery Model,Agency Staff,02/01/2019,30207720,888.09,Revenue,Reed Specialist Recruitment Limited,External Temporary Staff
Peterborough City Council,Peterborough Highway Services,Transport & Infrastructure Commissioning,Transport Costs,02/01/2019,30207748,188901.95,Revenue,Stagecoach in Peterborough,Public Transport
Peterborough City Council,Commissioning and Commercial Operations,Clare Lodge,Agency Staff,02/01/2019,30207792,1712.00,Revenue,Wrixon Care Services,External Temporary Staff
Peterborough City Council,Commissioning and Commercial Operations,Clare Lodge,Agency Staff,02/01/2019,30207793,2176.00,Revenue,Wrixon Care Services,External Temporary Staff
Peterborough City Council,Commissioning and Commercial Operations,Clare Lodge,Agency Staff,02/01/2019,30207794,832.00,Revenue,Wrixon Care Services,External Temporary Staff
Peterborough City Council,Commissioning and Commercial Operations,Clare Lodge,Agency Staff,02/01/2019,30207795,584.00,Revenue,Wrixon Care Services,External Temporary Staff
Peterborough City Council,Commissioning and Commercial Operations,Clare Lodge,Agency Staff,02/01/2019,30207796,1488.00,Revenue,Wrixon Care Services,External Temporary Staff
Peterborough City Council,Commissioning and Commercial Operations,Clare Lodge,Agency Staff,02/01/2019,30207797,992.00,Revenue,Wrixon Care Services,External Temporary Staff
Peterborough City Council,Commissioning and Commercial Operations,Clare Lodge,Agency Staff,02/01/2019,30207798,512.00,Revenue,Wrixon Care Services,External Temporary Staff
Peterborough City Council,Commissioning and Commercial Operations,Clare Lodge,Agency Staff,02/01/2019,30207799,1232.00,Revenue,Wrixon Care Services,External Temporary Staff
Peterborough City Council,Commissioning and Commercial Operations,Clare Lodge,Agency Staff,02/01/2019,30207805,552.00,Revenue,Wrixon Care Services,External Temporary Staff
Peterborough City Council,Commissioning and Commercial Operations,Clare Lodge,Agency Staff,02/01/2019,30207806,512.00,Revenue,Wrixon Care Services,External Temporary Staff
Peterborough City Council,Financial Services,Finance,Services,02/01/2019,30207962,10000.00,Revenue,Grant Thornton UK LLP,Subscriptions
Peterborough City Council,Westcombe Engineering,Westcombe Engineering,"Tools, Equipment, Furniture & Materials",02/01/2019,30207990,1460.59,Revenue,Eaton Ltd,Materials
Peterborough City Council,Adults,Independent Sector Placements,Services,02/01/2019,30208047,979.80,Revenue,Mencap,Home Care
Peterborough City Council,Communities,Cultural Services,"Tools, Equipment, Furniture & Materials",02/01/2019,30208079,879.68,Revenue,Chamberlain Music Education,Furniture And Equipment Purchase
Peterborough City Council,ICT,ICT,Services,02/01/2019,30208085,800.00,Revenue,Idox Software Ltd,Computer Software
Peterborough City Council,Communities,Housing,Services,02/01/2019,30208121,760.00,Revenue,Redacted Personal Information,Financial Assistance
Peterborough City Council,Communities,Housing,Services,02/01/2019,30208122,519.71,Revenue,Luminus Group,Financial Assistance
Peterborough City Council,Commissioning and Commercial Operations,Clare Lodge,Catering,02/01/2019,30208129,534.28,Revenue,King Bros Lady Lodge Ltd,Catering Provisions
Peterborough City Council,Children's & Safeguarding,Early Help ASC/CSC,Services,02/01/2019,30208130,3992.50,Revenue,The Ministry of Parenting,Hired Services
Peterborough City Council,Westcombe Engineering,Westcombe Engineering,"Tools, Equipment, Furniture & Materials",02/01/2019,30208131,4450.00,Revenue,SMW Autoblok Telbrook Ltd,Materials
Peterborough City Council,Westcombe Engineering,Westcombe Engineering,"Tools, Equipment, Furniture & Materials",02/01/2019,30208175,520.30,Revenue,Barron Clark Castings Ltd,Materials
Peterborough City Council,Westcombe Engineering,Westcombe Engineering,"Tools, Equipment, Furniture & Materials",02/01/2019,30208176,596.00,Revenue,Barron Clark Castings Ltd,Materials
Peterborough City Council,Westcombe Engineering,Westcombe Engineering,"Tools, Equipment, Furniture & Materials",02/01/2019,30208178,775.20,Revenue,Barron Clark Castings Ltd,Materials
Peterborough City Council,Regulatory Services,Regulatory Services,Agency Staff,02/01/2019,30208198,829.18,Revenue,Reed Specialist Recruitment Limited,External Temporary Staff
Peterborough City Council,Education,Special Educational Needs / Inclusion,Services,02/01/2019,30208212,2720.00,Revenue,ELYSIUM HEALTHCARE LTD,Boarding Out Fees
Peterborough City Council,Adults,Independent Sector Placements,Services,02/01/2019,30208271,556.92,Revenue,Axiom Housing Association Ltd,Home Care
Peterborough City Council,Parking Services,Parking Services,Services,02/01/2019,30208288,5907.93,Revenue,Cobalt Telephone Technologies Ltd,Hired Services
Peterborough City Council,Peterborough Highway Services,Transport & Infrastructure Commissioning,Transport Costs,02/01/2019,30208345,1192.31,Revenue,Stagecoach in Peterborough,Public Transport
Peterborough City Council,Peterborough Highway Services,Transport & Infrastructure Commissioning,Transport Costs,02/01/2019,30208346,1192.31,Revenue,Stagecoach in Peterborough,Public Transport
Peterborough City Council,Adults,Independent Sector Placements,Services,02/01/2019,30208347,1821.88,Revenue,Maxey House Res Home,Residential Care
Peterborough City Council,Peterborough Highway Services,Transport & Infrastructure Commissioning,Transport Costs,02/01/2019,30208348,1192.31,Revenue,Stagecoach in Peterborough,Public Transport
Peterborough City Council,Peterborough Highway Services,Transport & Infrastructure Commissioning,Transport Costs,02/01/2019,30208351,1192.31,Revenue,Stagecoach in Peterborough,Public Transport
Peterborough City Council,Peterborough Highway Services,Transport & Infrastructure Commissioning,Transport Costs,02/01/2019,30208354,1192.31,Revenue,Stagecoach in Peterborough,Public Transport
Peterborough City Council,Peterborough Highway Services,Transport & Infrastructure Commissioning,Transport Costs,02/01/2019,30208355,1192.31,Revenue,Stagecoach in Peterborough,Public Transport
Peterborough City Council,Peterborough Highway Services,Transport & Infrastructure Commissioning,Transport Costs,02/01/2019,30208361,1192.31,Revenue,Stagecoach in Peterborough,Public Transport
Peterborough City Council,Peterborough Highway Services,Highway Mtce & Scheme Commissioning,Services,02/01/2019,30208368,667.00,Revenue,Cambridgeshire County Council,Computer Software
Peterborough City Council,Peterborough Highway Services,Transport & Infrastructure Commissioning,Transport Costs,02/01/2019,30208370,1192.31,Revenue,Stagecoach in Peterborough,Public Transport
Peterborough City Council,Peterborough Highway Services,Transport & Infrastructure Commissioning,Transport Costs,02/01/2019,30208373,1192.31,Revenue,Stagecoach in Peterborough,Public Transport
Peterborough City Council,Peterborough Highway Services,Transport & Infrastructure Commissioning,Transport Costs,02/01/2019,30208374,1192.31,Revenue,Stagecoach in Peterborough,Public Transport
Peterborough City Council,Peterborough Highway Services,Transport & Infrastructure Commissioning,Transport Costs,02/01/2019,30208375,1192.31,Revenue,Stagecoach in Peterborough,Public Transport
Peterborough City Council,Peterborough Highway Services,Transport & Infrastructure Commissioning,Transport Costs,02/01/2019,30208376,1192.31,Revenue,Stagecoach in Peterborough,Public Transport
Peterborough City Council,Children's & Safeguarding,Children's Social Care,Services,02/01/2019,30208389,895.00,Revenue,Redacted Personal Information,Financial Assistance
Peterborough City Council,Corporate,Corporate,Non Revenue,02/01/2019,30208426,15514.80,Capital,R G Carter Cambridge Ltd,Building And Site Works
Peterborough City Council,Corporate,Corporate,Non Revenue,02/01/2019,30208431,110166.71,Capital,Interserve Construction Limited,Building And Site Works
Peterborough City Council,Constitutional Services,Elections,Services,02/01/2019,30208470,815.44,Revenue,CFH Docmail Limited,Postage
Peterborough City Council,Commissioning and Commercial Operations,Commissioning,Services,02/01/2019,30208489,909.70,Revenue,121 Social Care Limited,Hired Services
Peterborough City Council,Legal Services,Legal Services,Services,02/01/2019,30208502,1550.00,Revenue,"Stokes, Ms Gemma",Legal Costs
Peterborough City Council,Peterborough Serco Strategic Partnership,PSSP Retained Services,Services,02/01/2019,30208534,856.89,Revenue,Royal Mail,Postage
Peterborough City Council,Adults,Independent Sector Placements,Services,02/01/2019,30208557,7666.40,Revenue,Voyage 1 Limited,Home Care
Peterborough City Council,Adults,Independent Sector Placements,Services,02/01/2019,30208558,5285.00,Revenue,Voyage 1 Limited,Home Care
Peterborough City Council,Adults,Independent Sector Placements,Services,02/01/2019,30208561,4559.00,Revenue,Voyage 1 Limited,Home Care
Peterborough City Council,Adults,Independent Sector Placements,Services,02/01/2019,30208562,4382.88,Revenue,Voyage 1 Limited,Home Care
Peterborough City Council,Adults,Independent Sector Placements,Services,02/01/2019,30208563,1931.20,Revenue,Voyage 1 Limited,Home Care
Peterborough City Council,Adults,Independent Sector Placements,Services,02/01/2019,30208564,4291.04,Revenue,Voyage 1 Limited,Home Care
Peterborough City Council,Adults,Independent Sector Placements,Services,02/01/2019,30208565,4869.20,Revenue,Voyage 1 Limited,Residential Care
Peterborough City Council,Adults,Independent Sector Placements,Services,02/01/2019,30208568,1019.68,Revenue,K2 CARE LTD,Home Care
Peterborough City Council,Adults,Independent Sector Placements,Services,02/01/2019,30208588,1931.20,Revenue,Voyage 1 Limited,Home Care
Peterborough City Council,Adults,Independent Sector Placements,Services,02/01/2019,30208590,6759.20,Revenue,Voyage 1 Limited,Home Care
Peterborough City Council,Adults,Independent Sector Placements,Services,02/01/2019,30208591,6442.40,Revenue,Voyage 1 Limited,Residential Care
Peterborough City Council,Adults,Independent Sector Placements,Services,02/01/2019,30208592,4198.72,Revenue,Voyage 1 Limited,Home Care
Peterborough City Council,Adults,Independent Sector Placements,Services,02/01/2019,30208593,4160.60,Revenue,Voyage 1 Limited,Home Care
Peterborough City Council,Adults,Independent Sector Placements,Services,02/01/2019,30208594,5615.32,Revenue,Voyage 1 Limited,Home Care
Peterborough City Council,Adults,Independent Sector Placements,Services,02/01/2019,30208595,4382.88,Revenue,Voyage 1 Limited,Home Care
Peterborough City Council,Adults,Independent Sector Placements,Services,02/01/2019,30208596,3743.92,Revenue,Voyage 1 Limited,Home Care
Peterborough City Council,Adults,Independent Sector Placements,Services,02/01/2019,30208597,1830.72,Revenue,Voyage 1 Limited,Home Care
Peterborough City Council,Adults,Independent Sector Placements,Services,02/01/2019,30208598,1931.20,Revenue,Voyage 1 Limited,Home Care
Peterborough City Council,Adults,Independent Sector Placements,Services,02/01/2019,30208617,1500.64,Revenue,Mencap,Home Care
Peterborough City Council,Communities,Housing,Services,02/01/2019,30208620,38722.50,Revenue,Stef & Philips Ltd,Temporary Accommodation Costs
Peterborough City Council,Adults,Independent Sector Placements,Services,02/01/2019,30208642,8349.60,Revenue,Voyage 1 Limited,Home Care
Peterborough City Council,Adults,Independent Sector Placements,Services,02/01/2019,30208643,8349.60,Revenue,Voyage 1 Limited,Home Care
Peterborough City Council,Adults,Independent Sector Placements,Services,02/01/2019,30208644,3095.60,Revenue,Voyage 1 Limited,Home Care
Peterborough City Council,Adults,Independent Sector Placements,Services,02/01/2019,30208645,5285.00,Revenue,Voyage 1 Limited,Home Care
Peterborough City Council,Adults,Independent Sector Placements,Services,02/01/2019,30208646,1590.40,Revenue,Voyage 1 Limited,Home Care
Peterborough City Council,Adults,Independent Sector Placements,Services,02/01/2019,30208647,2328.80,Revenue,Voyage 1 Limited,Home Care
Peterborough City Council,Adults,Independent Sector Placements,Services,02/01/2019,30208648,1760.80,Revenue,Voyage 1 Limited,Home Care
Peterborough City Council,Adults,Independent Sector Placements,Services,02/01/2019,30208649,3322.80,Revenue,Voyage 1 Limited,Home Care
Peterborough City Council,Adults,Independent Sector Placements,Services,02/01/2019,30208650,3743.92,Revenue,Voyage 1 Limited,Home Care
Peterborough City Council,Adults,Mental Capacity Act & DoLs,Services,02/01/2019,30208669,1496.80,Revenue,SS Psychiatric Services Ltd,Hired Services
Peterborough City Council,Adults,Mental Capacity Act & DoLs,Services,02/01/2019,30208670,1134.00,Revenue,Raj Medical Consultancy Limited,Hired Services
Peterborough City Council,Corporate,Corporate,Non Revenue,02/01/2019,30208673,950.00,Capital,Heritage Park Primary School,Grant Payment
Peterborough City Council,Peterborough Highway Services,Highway & Drainage Control,Agency Staff,02/01/2019,30208679,1386.11,Revenue,Reed Specialist Recruitment Limited,External Temporary Staff
Peterborough City Council,ICT,ICT,Agency Staff,02/01/2019,30208683,2268.60,Revenue,Reed Specialist Recruitment Limited,External Temporary Staff
Peterborough City Council,Legal Services,Legal Services,Agency Staff,02/01/2019,30208686,2025.38,Revenue,Reed Specialist Recruitment Limited,External Temporary Staff
Peterborough City Council,Legal Services,Legal Services,Agency Staff,02/01/2019,30208690,1152.00,Revenue,Reed Specialist Recruitment Limited,External Temporary Staff
Peterborough City Council,Commissioning and Commercial Operations,Clare Lodge,Agency Staff,02/01/2019,30208694,728.46,Revenue,Reed Specialist Recruitment Limited,External Temporary Staff
Peterborough City Council,ICT,ICT,Services,02/01/2019,30208723,2871.00,Revenue,Buchanan Computing,Computer Software
Peterborough City Council,Communities,Housing,Services,02/01/2019,30208741,535.00,Revenue,Redacted Personal Information,Financial Assistance
Peterborough City Council,Communities,Housing,Services,02/01/2019,30208742,535.00,Revenue,Redacted Personal Information,Financial Assistance
Peterborough City Council,Communities,Housing,Services,02/01/2019,30208745,545.00,Revenue,Redacted Personal Information,Financial Assistance
Peterborough City Council,Communities,Housing,Services,02/01/2019,30208746,750.00,Revenue,Bee Lettings Ltd,Financial Assistance
Peterborough City Council,Communities,Housing,Services,02/01/2019,30208747,750.00,Revenue,M L Mills Trade,Financial Assistance
Peterborough City Council,Communities,Housing,Services,02/01/2019,30208748,550.00,Revenue,Hometime 2020 Ltd,Financial Assistance
Peterborough City Council,Communities,Housing,Services,02/01/2019,30208749,550.00,Revenue,Redacted Personal Information,Financial Assistance
Peterborough City Council,Communities,Housing,Services,02/01/2019,30208750,795.00,Revenue,M L Mills Trade,Financial Assistance
Peterborough City Council,Communities,Housing,Services,02/01/2019,30208751,500.00,Revenue,English Estates Property Agents,Financial Assistance
Peterborough City Council,Communities,Housing,Services,02/01/2019,30208752,550.00,Revenue,Redacted Personal Information,Financial Assistance
Peterborough City Council,Communities,Housing,Services,02/01/2019,30208754,825.00,Revenue,Redacted Personal Information,Financial Assistance
Peterborough City Council,Communities,Housing,Services,02/01/2019,30208755,560.00,Revenue,Property Squires,Financial Assistance
Peterborough City Council,Communities,Housing,Services,02/01/2019,30208756,575.00,Revenue,Redacted Personal Information,Financial Assistance
Peterborough City Council,Children's & Safeguarding,Access to Resources & Specialist Commissioning,Services,02/01/2019,30208759,3941.34,Revenue,Byrne House Ltd,Boarding Out Fees
Peterborough City Council,Adults,Other Services,Third Party Payments,02/01/2019,30208760,9548.85,Revenue,P'Boro Council For Voluntary Srvs (PCVS),Third Party Payments - Contract
Peterborough City Council,Communities,Housing,Services,02/01/2019,30208761,825.00,Revenue,Redacted Personal Information,Financial Assistance
Peterborough City Council,Communities,Housing,Services,02/01/2019,30208767,560.00,Revenue,RWP Property Management Ltd,Financial Assistance
Peterborough City Council,Communities,Housing,Services,02/01/2019,30208768,650.00,Revenue,Redacted Personal Information,Financial Assistance
Peterborough City Council,Adults,Therapy/Reablement/Community Equipment,"Tools, Equipment, Furniture & Materials",02/01/2019,30208826,2939.00,Revenue,P F S Builders & Contractors,Occupational Therapy Equipment
Peterborough City Council,Adults,Therapy/Reablement/Community Equipment,"Tools, Equipment, Furniture & Materials",02/01/2019,30208827,2996.00,Revenue,P F S Builders & Contractors,Occupational Therapy Equipment
Peterborough City Council,Adults,Day opportunities - Older People,Agency Staff,02/01/2019,30208828,6001.35,Revenue,Service Care Solutions Ltd,External Temporary Staff
Peterborough City Council,Children's & Safeguarding,External Education Placements,Services,02/01/2019,30208836,10312.42,Revenue,Barnardo Services Limited,Boarding Out Fees
Peterborough City Council,Adults,Community Team,Contract Hire and Operating Leases,02/01/2019,30208859,3512.74,Revenue,Northumbria Healthcare NHS Foundation Trust,Leasing Charges
Peterborough City Council,Adults,Home Services Delivery Model,Services,02/01/2019,30208866,1487.50,Revenue,Fletton Electrics Ltd,Contractors
Peterborough City Council,Corporate Property,Commercial Propety,Rents,02/01/2019,30208894,39000.00,Revenue,Savills (UK) Ltd,Rent
Peterborough City Council,"Cemeteries, Cremation & Registrars",Bereavement Service,Repair & Maintenance of Buildings,02/01/2019,30208897,2425.00,Revenue,Davies & Co (Environmental) Ltd,Cremators
Peterborough City Council,Constitutional Services,Elections,Services,02/01/2019,30208898,3596.68,Revenue,Electoral Reform Services,Hired Services
Peterborough City Council,Financial Services,Finance,Agency Staff,02/01/2019,30208916,657.86,Revenue,Reed Specialist Recruitment Limited,External Temporary Staff
Peterborough City Council,Legal Services,Legal Services,Agency Staff,02/01/2019,30208920,1848.70,Revenue,Reed Specialist Recruitment Limited,External Temporary Staff
Peterborough City Council,Adults,Independent Sector Placements,Services,02/01/2019,30208923,761.25,Revenue,Cross Keys Homes,Home Care
Peterborough City Council,Adults,Independent Sector Placements,Services,02/01/2019,30208941,3597.36,Revenue,Sagecare Ltd,Home Care
Peterborough City Council,Legal Services,Legal Services,Agency Staff,02/01/2019,30208947,1037.50,Revenue,Giant Professional Limited,External Temporary Staff
Peterborough City Council,Commissioning and Commercial Operations,Clare Lodge,Agency Staff,02/01/2019,30208998,553.66,Revenue,Reed Specialist Recruitment Limited,External Temporary Staff
Peterborough City Council,Peterborough Highway Services,Highway & Drainage Control,Agency Staff,02/01/2019,30209000,1269.20,Revenue,Reed Specialist Recruitment Limited,External Temporary Staff
Peterborough City Council,Peterborough Highway Services,Highway & Drainage Control,Agency Staff,02/01/2019,30209005,1152.00,Revenue,Reed Specialist Recruitment Limited,External Temporary Staff
Peterborough City Council,Adults,Independent Sector Placements,Services,02/01/2019,30209020,685.44,Revenue,Axiom Housing Association Ltd,Home Care
Peterborough City Council,Adults,Independent Sector Placements,Services,02/01/2019,8000132635,594.13,Revenue,Sagecare Ltd,Home Care
Peterborough City Council,Adults,Independent Sector Placements,Services,02/01/2019,8000132637,827.21,Revenue,Sagecare Ltd,Home Care
Peterborough City Council,Adults,Independent Sector Placements,Services,02/01/2019,8000132640,1215.00,Revenue,Sagecare Ltd,Home Care
Peterborough City Council,Adults,Independent Sector Placements,Services,02/01/2019,8000132643,2368.97,Revenue,Cross Keys Homes,Home Care
Peterborough City Council,Adults,Independent Sector Placements,Services,02/01/2019,8000132646,1271.25,Revenue,Cross Keys Homes,Home Care
Peterborough City Council,Adults,Independent Sector Placements,Services,02/01/2019,8000132648,616.25,Revenue,Cross Keys Homes,Home Care
Peterborough City Council,Adults,Independent Sector Placements,Services,02/01/2019,8000132649,838.50,Revenue,Cross Keys Homes,Home Care
Peterborough City Council,Adults,Independent Sector Placements,Services,02/01/2019,8000132650,536.25,Revenue,Cross Keys Homes,Home Care
Peterborough City Council,Adults,Independent Sector Placements,Services,02/01/2019,8000132652,569.00,Revenue,Cross Keys Homes,Home Care
Peterborough City Council,Adults,Independent Sector Placements,Services,02/01/2019,8000132653,555.75,Revenue,Cross Keys Homes,Home Care
Peterborough City Council,Adults,Independent Sector Placements,Services,02/01/2019,8000132654,2925.76,Revenue,Cross Keys Homes,Home Care
Peterborough City Council,Adults,Independent Sector Placements,Services,02/01/2019,8000132655,529.00,Revenue,Cross Keys Homes,Home Care
Peterborough City Council,Adults,Independent Sector Placements,Services,02/01/2019,8000132656,696.29,Revenue,Cross Keys Homes,Home Care
Peterborough City Council,Adults,Independent Sector Placements,Services,02/01/2019,8000132658,886.75,Revenue,Cross Keys Homes,Home Care
Peterborough City Council,Adults,Independent Sector Placements,Services,02/01/2019,8000132659,613.25,Revenue,Cross Keys Homes,Home Care
Peterborough City Council,Adults,Independent Sector Placements,Services,02/01/2019,8000132664,719.25,Revenue,Cross Keys Homes,Home Care
Peterborough City Council,Adults,Independent Sector Placements,Services,02/01/2019,8000132666,834.00,Revenue,Cross Keys Homes,Home Care
Peterborough City Council,Adults,Independent Sector Placements,Services,02/01/2019,8000132668,1065.25,Revenue,Cross Keys Homes,Home Care
Peterborough City Council,Adults,Independent Sector Placements,Services,02/01/2019,8000132670,803.50,Revenue,Cross Keys Homes,Home Care
Peterborough City Council,Adults,Independent Sector Placements,Services,02/01/2019,8000132673,861.50,Revenue,Cross Keys Homes,Home Care
Peterborough City Council,Adults,Independent Sector Placements,Services,02/01/2019,8000132674,718.25,Revenue,Cross Keys Homes,Home Care
Peterborough City Council,Adults,Independent Sector Placements,Services,02/01/2019,8000132675,614.04,Revenue,Cross Keys Homes,Home Care
Peterborough City Council,Adults,Independent Sector Placements,Services,02/01/2019,8000132679,514.08,Revenue,Axiom Housing Association Ltd,Home Care
Peterborough City Council,Adults,Independent Sector Placements,Services,02/01/2019,8000132680,771.12,Revenue,Axiom Housing Association Ltd,Home Care
Peterborough City Council,Adults,Independent Sector Placements,Services,02/01/2019,8000132681,771.12,Revenue,Axiom Housing Association Ltd,Home Care
Peterborough City Council,Adults,Independent Sector Placements,Services,02/01/2019,8000132684,771.12,Revenue,Axiom Housing Association Ltd,Home Care
Peterborough City Council,Adults,Independent Sector Placements,Services,02/01/2019,8000132687,612.00,Revenue,Axiom Housing Association Ltd,Home Care
Peterborough City Council,Adults,Independent Sector Placements,Services,02/01/2019,8000132689,685.44,Revenue,Axiom Housing Association Ltd,Home Care
Peterborough City Council,Adults,Independent Sector Placements,Services,02/01/2019,8000132691,783.36,Revenue,Axiom Housing Association Ltd,Home Care
Peterborough City Council,Adults,Independent Sector Placements,Services,02/01/2019,8000132692,514.08,Revenue,Axiom Housing Association Ltd,Home Care
Peterborough City Council,Adults,Independent Sector Placements,Services,02/01/2019,8000132693,514.08,Revenue,Axiom Housing Association Ltd,Home Care
Peterborough City Council,Adults,Independent Sector Placements,Services,02/01/2019,8000132694,599.76,Revenue,Axiom Housing Association Ltd,Home Care
Peterborough City Council,Adults,Independent Sector Placements,Services,02/01/2019,8000132696,526.32,Revenue,Axiom Housing Association Ltd,Home Care
Peterborough City Council,Adults,Independent Sector Placements,Services,02/01/2019,8000132698,514.08,Revenue,Axiom Housing Association Ltd,Home Care
Peterborough City Council,Adults,Independent Sector Placements,Services,02/01/2019,8000132699,599.76,Revenue,Axiom Housing Association Ltd,Home Care
Peterborough City Council,Adults,Independent Sector Placements,Services,02/01/2019,8000132702,599.76,Revenue,Axiom Housing Association Ltd,Home Care
Peterborough City Council,Adults,Independent Sector Placements,Services,02/01/2019,8000132705,555.00,Revenue,Axiom Housing Association Ltd,Home Care
Peterborough City Council,Adults,Independent Sector Placements,Services,02/01/2019,8000132706,945.00,Revenue,Axiom Housing Association Ltd,Home Care
Peterborough City Council,Adults,Independent Sector Placements,Services,02/01/2019,8000132707,945.00,Revenue,Axiom Housing Association Ltd,Home Care
Peterborough City Council,Adults,Independent Sector Placements,Services,02/01/2019,8000132710,1199.52,Revenue,Axiom Housing Association Ltd,Home Care
Peterborough City Council,Adults,Independent Sector Placements,Services,02/01/2019,8000132713,514.08,Revenue,Axiom Housing Association Ltd,Home Care
Peterborough City Council,Adults,Independent Sector Placements,Services,02/01/2019,8000132714,654.84,Revenue,Axiom Housing Association Ltd,Home Care
Peterborough City Council,Adults,Independent Sector Placements,Services,02/01/2019,8000132715,514.08,Revenue,Axiom Housing Association Ltd,Home Care
Peterborough City Council,Adults,Independent Sector Placements,Services,02/01/2019,8000132716,722.16,Revenue,Axiom Housing Association Ltd,Home Care
Peterborough City Council,Adults,Independent Sector Placements,Services,02/01/2019,8000132717,1542.24,Revenue,Axiom Housing Association Ltd,Home Care
Peterborough City Council,Adults,Independent Sector Placements,Services,02/01/2019,8000132718,685.44,Revenue,Axiom Housing Association Ltd,Home Care
Peterborough City Council,Adults,Independent Sector Placements,Services,02/01/2019,8000132722,1884.96,Revenue,Axiom Housing Association Ltd,Home Care
Peterborough City Council,Adults,Independent Sector Placements,Services,02/01/2019,8000132725,599.76,Revenue,Axiom Housing Association Ltd,Home Care
Peterborough City Council,Adults,Independent Sector Placements,Services,02/01/2019,8000132729,771.12,Revenue,Axiom Housing Association Ltd,Home Care
Peterborough City Council,Adults,Independent Sector Placements,Services,02/01/2019,8000132730,599.76,Revenue,Axiom Housing Association Ltd,Home Care
Peterborough City Council,Adults,Independent Sector Placements,Services,02/01/2019,8000132731,954.72,Revenue,Axiom Housing Association Ltd,Home Care
Peterborough City Council,Adults,Independent Sector Placements,Services,02/01/2019,8000132736,599.76,Revenue,Axiom Housing Association Ltd,Home Care
Peterborough City Council,Adults,Independent Sector Placements,Services,02/01/2019,8000132742,1542.24,Revenue,Axiom Housing Association Ltd,Home Care
Peterborough City Council,Adults,Independent Sector Placements,Services,02/01/2019,8000132743,514.08,Revenue,Axiom Housing Association Ltd,Home Care
Peterborough City Council,Adults,Independent Sector Placements,Services,02/01/2019,8000132744,660.96,Revenue,Axiom Housing Association Ltd,Home Care
Peterborough City Council,Adults,Independent Sector Placements,Services,02/01/2019,8000132745,1627.92,Revenue,Axiom Housing Association Ltd,Home Care
Peterborough City Council,Adults,Independent Sector Placements,Services,02/01/2019,8000132746,507.96,Revenue,Axiom Housing Association Ltd,Home Care
Peterborough City Council,Adults,Independent Sector Placements,Services,02/01/2019,8000132747,599.76,Revenue,Axiom Housing Association Ltd,Home Care
Peterborough City Council,Adults,Independent Sector Placements,Services,02/01/2019,8000132750,2056.32,Revenue,Axiom Housing Association Ltd,Home Care
Peterborough City Council,Adults,Independent Sector Placements,Services,02/01/2019,8000132752,526.32,Revenue,Axiom Housing Association Ltd,Home Care
Peterborough City Council,Adults,Independent Sector Placements,Services,02/01/2019,8000132753,599.76,Revenue,Axiom Housing Association Ltd,Home Care
Peterborough City Council,Adults,Independent Sector Placements,Services,02/01/2019,8000132754,979.20,Revenue,Axiom Housing Association Ltd,Home Care
Peterborough City Council,Adults,Independent Sector Placements,Services,02/01/2019,8000132756,514.08,Revenue,Axiom Housing Association Ltd,Home Care
Peterborough City Council,Adults,Independent Sector Placements,Services,02/01/2019,8000132758,514.08,Revenue,Axiom Housing Association Ltd,Home Care
Peterborough City Council,Adults,Independent Sector Placements,Services,02/01/2019,8000132760,771.12,Revenue,Axiom Housing Association Ltd,Home Care
Peterborough City Council,Adults,Independent Sector Placements,Services,02/01/2019,8000132761,942.48,Revenue,Axiom Housing Association Ltd,Home Care
Peterborough City Council,Adults,Independent Sector Placements,Services,02/01/2019,8000132763,771.12,Revenue,Axiom Housing Association Ltd,Home Care
Peterborough City Council,Adults,Independent Sector Placements,Services,02/01/2019,8000132765,514.08,Revenue,Axiom Housing Association Ltd,Home Care
Peterborough City Council,Adults,Independent Sector Placements,Services,02/01/2019,8000132767,790.47,Revenue,Atlas Care Services Ltd,Home Care
Peterborough City Council,Adults,Independent Sector Placements,Services,02/01/2019,8000132768,1057.50,Revenue,Cross Keys Homes,Home Care
Peterborough City Council,Adults,Independent Sector Placements,Services,02/01/2019,8000132769,1136.25,Revenue,Cross Keys Homes,Home Care
Peterborough City Council,Children's & Safeguarding,Commissioning - CSC,Third Party Payments,02/01/2019,8000132615,542880.08,Revenue,IAS TACT,Third Party Payments - Contract
Peterborough City Council,Corporate,Corporate,Non Revenue,03/01/2019,30209322,628298.12,Balance Sheet,Teachers Pensions,Pensions
Peterborough City Council,Peterborough Highway Services,Highway Services - HoS,Agency Staff,04/01/2019,30204653,5699.54,Revenue,AECOM I & E Ltd,External Temporary Staff
Peterborough City Council,Children's & Safeguarding,External Education Placements,Services,04/01/2019,30204753,3540.10,Revenue,Kent County Council,Education Expenses
Peterborough City Council,Adults,Independent Sector Placements,Services,04/01/2019,30205277,2179.08,Revenue,Eastwood Hall Limited t/a Broadoaks Residential Home,Residential Care
Peterborough City Council,Legal Services,Legal Services,Services,04/01/2019,30205309,1200.00,Revenue,Zimran Samuel,Legal Costs
Peterborough City Council,Adults,Independent Sector Placements,Services,04/01/2019,30205730,7534.37,Revenue,Qu'appelle Care Home Ltd,Residential Care
Peterborough City Council,Commissioning and Commercial Operations,Early Years & Quality Improvement,Services,04/01/2019,30206265,6167.70,Revenue,The Peterborough School Limited,Grant Payment
Peterborough City Council,Commissioning and Commercial Operations,Early Years & Quality Improvement,Services,04/01/2019,30206361,41975.92,Revenue,Seedlings Nursery,Grant Payment
Peterborough City Council,Commissioning and Commercial Operations,Early Years & Quality Improvement,Services,04/01/2019,30206363,978.12,Revenue,Redacted Personal Information,Grant Payment
Peterborough City Council,"Cemeteries, Cremation & Registrars",Bereavement Service,Services,04/01/2019,30206493,1544.00,Revenue,Anglia Co-operative Funerals,Contract Funerals
Peterborough City Council,"Cemeteries, Cremation & Registrars",Bereavement Service,Services,04/01/2019,30206494,1708.00,Revenue,Anglia Co-operative Funerals,Contract Funerals
Peterborough City Council,Legal Services,Legal Services,Services,04/01/2019,30206512,500.35,Revenue,LMH Clinical Psychology Services,Expert Witnesses
Peterborough City Council,Communities,Housing,Services,04/01/2019,30206609,1500.00,Revenue,Liam Varnam,Legal Costs
Peterborough City Council,City Centre Management,"Markets, Tourism & Events",Services,04/01/2019,30206703,1323.00,Revenue,Chapter of Peterborough Cathedral,Tickets
Peterborough City Council,Legal Services,Legal Services,Services,04/01/2019,30207010,540.00,Revenue,Adlams LLP,Expert Witnesses
Peterborough City Council,Adults,Independent Sector Placements,Services,04/01/2019,30207256,1100.64,Revenue,Sanctuary Care Limited,Residential Care
Peterborough City Council,Legal Services,Legal Services,Services,04/01/2019,30207294,550.00,Revenue,"Bramwell, Mr Christopher",Legal Costs
Peterborough City Council,Commissioning and Commercial Operations,Early Years & Quality Improvement,Services,04/01/2019,30207392,978.12,Revenue,Redacted Personal Information,Grant Payment
Peterborough City Council,Adults,Independent Sector Placements,Services,04/01/2019,30207469,2455.60,Revenue,Sanctuary Care Limited,Residential Care
Peterborough City Council,Legal Services,Legal Services,Services,04/01/2019,30207480,2150.00,Revenue,Mr Jamie De Burgos,Legal Costs
Peterborough City Council,Adults,Independent Sector Placements,Services,04/01/2019,30207486,1077.52,Revenue,Maxey House Res Home,Residential Care
Peterborough City Council,Adults,Independent Sector Placements,Services,04/01/2019,30207490,5000.00,Revenue,Maxey House Res Home,Residential Care
Peterborough City Council,Children's & Safeguarding,Access to Resources & Specialist Commissioning,Services,04/01/2019,30207568,2002.28,Revenue,PCH Integration Services Ltd,Boarding Out Fees
Peterborough City Council,Children's & Safeguarding,Access to Resources & Specialist Commissioning,Services,04/01/2019,30207569,1519.28,Revenue,PCH Integration Services Ltd,Boarding Out Fees
Peterborough City Council,Children's & Safeguarding,Access to Resources & Specialist Commissioning,Services,04/01/2019,30207571,1519.28,Revenue,PCH Integration Services Ltd,Boarding Out Fees
Peterborough City Council,Children's & Safeguarding,Access to Resources & Specialist Commissioning,Services,04/01/2019,30207572,1519.28,Revenue,PCH Integration Services Ltd,Boarding Out Fees
Peterborough City Council,Children's & Safeguarding,Access to Resources & Specialist Commissioning,Services,04/01/2019,30207573,1519.28,Revenue,PCH Integration Services Ltd,Boarding Out Fees
Peterborough City Council,Children's & Safeguarding,Access to Resources & Specialist Commissioning,Services,04/01/2019,30207574,1519.28,Revenue,PCH Integration Services Ltd,Boarding Out Fees
Peterborough City Council,Children's & Safeguarding,Access to Resources & Specialist Commissioning,Services,04/01/2019,30207575,1519.28,Revenue,PCH Integration Services Ltd,Boarding Out Fees
Peterborough City Council,Children's & Safeguarding,Access to Resources & Specialist Commissioning,Services,04/01/2019,30207576,1519.28,Revenue,PCH Integration Services Ltd,Boarding Out Fees
Peterborough City Council,Adults,Independent Sector Placements,Services,04/01/2019,30207742,5686.80,Revenue,Lifeways Community Care,Residential Care
Peterborough City Council,Adults,Independent Sector Placements,Services,04/01/2019,30207764,2735.48,Revenue,Kemps Place Ltd,Residential Care
Peterborough City Council,Adults,Independent Sector Placements,Services,04/01/2019,30207765,2535.48,Revenue,Kemps Place Ltd,Residential Care
Peterborough City Council,Adults,Independent Sector Placements,Services,04/01/2019,30207766,1094.56,Revenue,Kemps Place Ltd,Residential Care
Peterborough City Council,Adults,Independent Sector Placements,Services,04/01/2019,30207767,9439.36,Revenue,Kisimul Group Ltd,Residential Care
Peterborough City Council,Adults,Independent Sector Placements,Services,04/01/2019,30207770,3244.00,Revenue,Richmond Fellowship (The),Residential Care
Peterborough City Council,Adults,Independent Sector Placements,Services,04/01/2019,30207771,3680.00,Revenue,Richmond Fellowship (The),Residential Care
Peterborough City Council,Adults,Independent Sector Placements,Services,04/01/2019,30207772,3292.00,Revenue,Richmond Fellowship (The),Residential Care
Peterborough City Council,Adults,Block Contracts,Third Party Payments,04/01/2019,30207800,6894.96,Revenue,Axiom Housing Association Ltd,Third Party Payments - Contract
Peterborough City Council,Adults,Block Contracts,Third Party Payments,04/01/2019,30207802,5436.14,Revenue,Axiom Housing Association Ltd,Third Party Payments - Contract
Peterborough City Council,Adults,Block Contracts,Third Party Payments,04/01/2019,30207803,1639.34,Revenue,Axiom Housing Association Ltd,Third Party Payments - Contract
Peterborough City Council,Adults,Block Contracts,Third Party Payments,04/01/2019,30207804,4447.90,Revenue,Axiom Housing Association Ltd,Third Party Payments - Contract
Peterborough City Council,Commissioning and Commercial Operations,Clare Lodge,Agency Staff,04/01/2019,30207807,2304.00,Revenue,Wrixon Care Services,External Temporary Staff
Peterborough City Council,Commissioning and Commercial Operations,Clare Lodge,Agency Staff,04/01/2019,30207808,600.00,Revenue,Wrixon Care Services,External Temporary Staff
Peterborough City Council,Commissioning and Commercial Operations,Clare Lodge,Agency Staff,04/01/2019,30207810,2256.00,Revenue,Wrixon Care Services,External Temporary Staff
Peterborough City Council,Commissioning and Commercial Operations,Clare Lodge,Agency Staff,04/01/2019,30207811,1168.00,Revenue,Wrixon Care Services,External Temporary Staff
Peterborough City Council,Commissioning and Commercial Operations,Clare Lodge,Agency Staff,04/01/2019,30207812,992.00,Revenue,Wrixon Care Services,External Temporary Staff
Peterborough City Council,Commissioning and Commercial Operations,Clare Lodge,Agency Staff,04/01/2019,30207813,1560.00,Revenue,Wrixon Care Services,External Temporary Staff
Peterborough City Council,Commissioning and Commercial Operations,Clare Lodge,Agency Staff,04/01/2019,30207815,1712.00,Revenue,Wrixon Care Services,External Temporary Staff
Peterborough City Council,Commissioning and Commercial Operations,Clare Lodge,Agency Staff,04/01/2019,30207817,592.00,Revenue,Wrixon Care Services,External Temporary Staff
Peterborough City Council,Commissioning and Commercial Operations,Clare Lodge,Agency Staff,04/01/2019,30207818,944.00,Revenue,Wrixon Care Services,External Temporary Staff
Peterborough City Council,Commissioning and Commercial Operations,Clare Lodge,Agency Staff,04/01/2019,30207819,1496.00,Revenue,Wrixon Care Services,External Temporary Staff
Peterborough City Council,Commissioning and Commercial Operations,Clare Lodge,Agency Staff,04/01/2019,30207820,1808.00,Revenue,Wrixon Care Services,External Temporary Staff
Peterborough City Council,Adults,Day opportunities - Older People,Agency Staff,04/01/2019,30207838,4380.00,Revenue,Swim Recruitment,External Temporary Staff
Peterborough City Council,Communities,Housing,Services,04/01/2019,30207843,9726.50,Revenue,Eastfield Guesthouse,Temporary Accommodation Costs
Peterborough City Council,Communities,Housing,Services,04/01/2019,30207844,11501.00,Revenue,Eastfield Guesthouse,Temporary Accommodation Costs
Peterborough City Council,Legal Services,Legal Services,Services,04/01/2019,30207949,550.00,Revenue,"Walji, Miss Shabnam",Legal Costs
Peterborough City Council,Legal Services,Legal Services,Services,04/01/2019,30207956,550.00,Revenue,"Bramwell, Mr Christopher",Legal Costs
Peterborough City Council,"Waste, Cleansing and Open Spaces",Waste Management,Services,04/01/2019,30207960,13203.37,Revenue,H W Martin Waste Ltd,Recycling
Peterborough City Council,"Waste, Cleansing and Open Spaces",Waste Management,Third Party Payments,04/01/2019,30207961,12735.32,Revenue,H W Martin Waste Ltd,Third Party Payments - Contract
Peterborough City Council,Adults,Independent Sector Placements,Services,04/01/2019,30208050,4896.60,Revenue,Mencap,Residential Care
Peterborough City Council,Adults,Independent Sector Placements,Services,04/01/2019,30208052,4591.60,Revenue,Mencap,Residential Care
Peterborough City Council,Adults,Independent Sector Placements,Services,04/01/2019,30208057,3991.00,Revenue,Mencap,Residential Care
Peterborough City Council,Adults,Independent Sector Placements,Contract Hire and Operating Leases,04/01/2019,30208067,872.78,Revenue,Peterborough Cars,Hired Transport
Peterborough City Council,Adults,Independent Sector Placements,Contract Hire and Operating Leases,04/01/2019,30208108,647.50,Revenue,Peterborough Cars,Hired Transport
Peterborough City Council,Adults,Independent Sector Placements,Services,04/01/2019,30208112,1776.24,Revenue,Goldcare Homes t/a The Tudors Care Home,Residential Care
Peterborough City Council,Adults,Independent Sector Placements,Services,04/01/2019,30208114,982.12,Revenue,Goldcare Homes t/a The Tudors Care Home,Residential Care
Peterborough City Council,Adults,Independent Sector Placements,Services,04/01/2019,30208120,2300.00,Revenue,Goldcare Homes t/a The Tudors Care Home,Residential Care
Peterborough City Council,Adults,Independent Sector Placements,Services,04/01/2019,30208125,1703.04,Revenue,Goldcare Homes t/a The Tudors Care Home,Residential Care
Peterborough City Council,Adults,Independent Sector Placements,Services,04/01/2019,30208126,2021.88,Revenue,Goldcare Homes t/a The Tudors Care Home,Residential Care
Peterborough City Council,Adults,Independent Sector Placements,Services,04/01/2019,30208127,1517.28,Revenue,Goldcare Homes t/a The Tudors Care Home,Residential Care
Peterborough City Council,Education,Special Educational Needs / Inclusion,Services,04/01/2019,30208162,2053.60,Revenue,Becky Frewin Ltd,Hired Services
Peterborough City Council,Westcombe Engineering,Westcombe Engineering,"Tools, Equipment, Furniture & Materials",04/01/2019,30208182,904.40,Revenue,Barron Clark Castings Ltd,Materials
Peterborough City Council,Westcombe Engineering,Westcombe Engineering,"Tools, Equipment, Furniture & Materials",04/01/2019,30208183,596.00,Revenue,Barron Clark Castings Ltd,Materials
Peterborough City Council,Adults,Independent Sector Placements,Services,04/01/2019,30208270,2015.00,Revenue,Klair House Residential Care Homes,Residential Care
Peterborough City Council,Commissioning and Commercial Operations,Clare Lodge,Repair & Maintenance of Buildings,04/01/2019,30208306,3196.72,Revenue,ASSA Abloy Ltd T/A Chubb Locks,Premises Maintenance
Peterborough City Council,Corporate,Corporate,Non Revenue,04/01/2019,30208318,13603.52,Capital,Enterprise Managed Services Limited,Infrastructure
Peterborough City Council,"Waste, Cleansing and Open Spaces",Waste & Operational Svs Mgmt,Repair & Maintenance of Buildings,04/01/2019,30208323,2000.10,Revenue,Enterprise Managed Services Limited,Premises Maintenance
Peterborough City Council,Legal Services,Legal Services,Services,04/01/2019,30208413,10000.00,Revenue,"Snelling, Mr Charles",Legal Costs
Peterborough City Council,Westcombe Engineering,Westcombe Engineering,"Tools, Equipment, Furniture & Materials",04/01/2019,30208417,531.36,Revenue,Barron Clark Castings Ltd,Materials
Peterborough City Council,Westcombe Engineering,Westcombe Engineering,"Tools, Equipment, Furniture & Materials",04/01/2019,30208418,655.60,Revenue,Barron Clark Castings Ltd,Materials
Peterborough City Council,Westcombe Engineering,Westcombe Engineering,"Tools, Equipment, Furniture & Materials",04/01/2019,30208419,533.52,Revenue,Barron Clark Castings Ltd,Materials
Peterborough City Council,Adults,Day opportunities - Older People,Agency Staff,04/01/2019,30208482,1823.36,Revenue,Commercial Services Trading Limited,External Temporary Staff
Peterborough City Council,Adults,Therapy/Reablement/Community Equipment,Agency Staff,04/01/2019,30208485,3829.50,Revenue,Commercial Services Trading Limited,External Temporary Staff
Peterborough City Council,Peterborough Serco Strategic Partnership,PSSP Retained Services,Services,04/01/2019,30208528,2534.85,Revenue,Whistl UK Ltd,Postage
Peterborough City Council,Corporate,Corporate,Non Revenue,04/01/2019,30208579,98298.95,Capital,R G Carter Cambridge Ltd,Building And Site Works
Peterborough City Council,Corporate,Corporate,Non Revenue,04/01/2019,30208581,207322.95,Capital,R G Carter Cambridge Ltd,Building And Site Works
Peterborough City Council,Education,Financing - Resources,Services,04/01/2019,30208613,2422.50,Revenue,Sense,Education Expenses
Peterborough City Council,Education,Financing - Resources,Services,04/01/2019,30208614,2422.50,Revenue,Sense,Education Expenses
Peterborough City Council,Corporate,Corporate,Non Revenue,04/01/2019,30208619,26788.45,Capital,Enterprise Managed Services Limited,Building And Site Works
Peterborough City Council,Adults,Independent Sector Placements,Services,04/01/2019,30208621,17774.40,Revenue,Augusta Care Ltd,Home Care
Peterborough City Council,Adults,Mental Capacity Act & DoLs,Services,04/01/2019,30208671,2855.00,Revenue,Dr Nauman Khalil Ltd,Hired Services
Peterborough City Council,Regulatory Services,Regulatory Services,Agency Staff,04/01/2019,30208680,1283.53,Revenue,Reed Specialist Recruitment Limited,External Temporary Staff
Peterborough City Council,Peterborough Highway Services,Highway Services - HoS,Agency Staff,04/01/2019,30208681,846.85,Revenue,Reed Specialist Recruitment Limited,External Temporary Staff
Peterborough City Council,Commissioning and Commercial Operations,Commissioning Team,Agency Staff,04/01/2019,30208682,2243.60,Revenue,Reed Specialist Recruitment Limited,External Temporary Staff
Peterborough City Council,Development and Construction,Planning Compliance,Agency Staff,04/01/2019,30208685,648.38,Revenue,Reed Specialist Recruitment Limited,External Temporary Staff
Peterborough City Council,Regulatory Services,Regulatory Services,Agency Staff,04/01/2019,30208696,1319.15,Revenue,Reed Specialist Recruitment Limited,External Temporary Staff
Peterborough City Council,Corporate,Corporate,Non Revenue,04/01/2019,30208698,2268.60,Capital,Reed Specialist Recruitment Limited,Consultants Fees
Peterborough City Council,Communities,Housing,Agency Staff,04/01/2019,30208699,1822.51,Revenue,Reed Specialist Recruitment Limited,External Temporary Staff
Peterborough City Council,Communities,Community Capacity,Services,04/01/2019,30208727,1250.00,Revenue,Britannia Fire & Security Ltd,Security
Peterborough City Council,Corporate Property,Office Accomodation,Services,04/01/2019,30208735,10000.00,Revenue,4OC Ltd,Consultants Fees
Peterborough City Council,Commissioning and Commercial Operations,Clare Lodge,Cleaning & Domestic Supplies,04/01/2019,30208822,656.31,Revenue,Bunzl UK Ltd t/a Industrial Supplies,Cleaning Materials
Peterborough City Council,Development and Construction,Development Management,Agency Staff,04/01/2019,30208910,1288.30,Revenue,Reed Specialist Recruitment Limited,External Temporary Staff
Peterborough City Council,Adults,Strategic Commissioning - Management,Agency Staff,04/01/2019,30208911,2953.60,Revenue,Reed Specialist Recruitment Limited,External Temporary Staff
Peterborough City Council,Corporate,Corporate,Non Revenue,04/01/2019,30208913,2583.60,Capital,Reed Specialist Recruitment Limited,Consultants Fees
Peterborough City Council,Development and Construction,Building Control,Agency Staff,04/01/2019,30208915,1075.05,Revenue,Reed Specialist Recruitment Limited,External Temporary Staff
Peterborough City Council,Development and Construction,Development Management,Agency Staff,04/01/2019,30208918,1590.01,Revenue,Reed Specialist Recruitment Limited,External Temporary Staff
Peterborough City Council,Development and Construction,Development Management,Agency Staff,04/01/2019,30208921,896.49,Revenue,Reed Specialist Recruitment Limited,External Temporary Staff
Peterborough City Council,Adults,Strategic Commissioning - Management,Agency Staff,04/01/2019,30208922,637.98,Revenue,Reed Specialist Recruitment Limited,External Temporary Staff
Peterborough City Council,Adults,Independent Sector Placements,Services,04/01/2019,30208963,822.45,Revenue,Hales Group Ltd,Home Care
Peterborough City Council,ICT,ICT,Agency Staff,04/01/2019,30208997,678.80,Revenue,Reed Specialist Recruitment Limited,External Temporary Staff
Peterborough City Council,Adults,Strategic Commissioning - Management,Agency Staff,04/01/2019,30208999,836.88,Revenue,Reed Specialist Recruitment Limited,External Temporary Staff
Peterborough City Council,Development and Construction,Development Management,Agency Staff,04/01/2019,30209001,1365.01,Revenue,Reed Specialist Recruitment Limited,External Temporary Staff
Peterborough City Council,Development and Construction,Building Control,Agency Staff,04/01/2019,30209002,1810.44,Revenue,Reed Specialist Recruitment Limited,External Temporary Staff
Peterborough City Council,Education,HTS & CSC Transport,Agency Staff,04/01/2019,30209006,603.52,Revenue,Reed Specialist Recruitment Limited,External Temporary Staff
Peterborough City Council,Adults,Independent Sector Placements,Services,04/01/2019,30209052,2794.32,Revenue,"ATCHISON, MR ALAN",Residential Care
Peterborough City Council,Adults,Independent Sector Placements,Services,04/01/2019,30209053,3812.84,Revenue,"ATCHISON, MR ALAN",Residential Care
Peterborough City Council,Adults,Independent Sector Placements,Services,04/01/2019,30209056,3103.92,Revenue,"ATCHISON, MR ALAN",Residential Care
Peterborough City Council,Adults,Independent Sector Placements,Services,04/01/2019,30209057,685.28,Revenue,"ATCHISON, MR ALAN",Residential Care
Peterborough City Council,Adults,Independent Sector Placements,Services,04/01/2019,30209058,660.00,Revenue,"ATCHISON, MR ALAN",Residential Care
Peterborough City Council,Adults,Independent Sector Placements,Services,04/01/2019,30209059,3625.08,Revenue,"ATCHISON, MR ALAN",Residential Care
Peterborough City Council,Adults,Independent Sector Placements,Services,04/01/2019,30209060,4391.48,Revenue,"ATCHISON, MR ALAN",Residential Care
Peterborough City Council,Adults,Independent Sector Placements,Services,04/01/2019,30209061,4712.00,Revenue,"ATCHISON, MR ALAN",Residential Care
Peterborough City Council,Adults,Independent Sector Placements,Services,04/01/2019,30209062,3625.08,Revenue,"ATCHISON, MR ALAN",Residential Care
Peterborough City Council,Adults,Independent Sector Placements,Services,04/01/2019,30209064,756.00,Revenue,"ATCHISON, MR ALAN",Residential Care
Peterborough City Council,Adults,Independent Sector Placements,Services,04/01/2019,30209084,11181.48,Revenue,Manchester House (Dovehaven Care Homes),Residential Care
Peterborough City Council,Adults,Independent Sector Placements,Services,04/01/2019,30209095,4904.00,Revenue,"ATCHISON, MR ALAN",Residential Care
Peterborough City Council,Adults,Independent Sector Placements,Services,04/01/2019,30209097,1954.32,Revenue,"ATCHISON, MR ALAN",Residential Care
Peterborough City Council,Adults,Independent Sector Placements,Services,04/01/2019,30209098,660.00,Revenue,"ATCHISON, MR ALAN",Residential Care
Peterborough City Council,Adults,Independent Sector Placements,Services,04/01/2019,30209099,3200.00,Revenue,"ATCHISON, MR ALAN",Residential Care
Peterborough City Council,Adults,Independent Sector Placements,Services,04/01/2019,30209100,2162.24,Revenue,"ATCHISON, MR ALAN",Residential Care
Peterborough City Council,Adults,Independent Sector Placements,Services,04/01/2019,30209101,3065.60,Revenue,"ATCHISON, MR ALAN",Residential Care
Peterborough City Council,Adults,Independent Sector Placements,Services,04/01/2019,30209102,4288.00,Revenue,"ATCHISON, MR ALAN",Residential Care
Peterborough City Council,Adults,Independent Sector Placements,Services,04/01/2019,30209103,2345.20,Revenue,"ATCHISON, MR ALAN",Residential Care
Peterborough City Council,Adults,Independent Sector Placements,Services,04/01/2019,30209105,2162.28,Revenue,"ATCHISON, MR ALAN",Residential Care
Peterborough City Council,Adults,Independent Sector Placements,Services,04/01/2019,30209107,1954.32,Revenue,"ATCHISON, MR ALAN",Residential Care
Peterborough City Council,Adults,Independent Sector Placements,Services,04/01/2019,30209109,2337.52,Revenue,"ATCHISON, MR ALAN",Residential Care
Peterborough City Council,Adults,Independent Sector Placements,Services,04/01/2019,30209110,5234.63,Revenue,"ATCHISON, MR ALAN",Residential Care
Peterborough City Council,Commissioning and Commercial Operations,Clare Lodge,Agency Staff,04/01/2019,30209111,1856.00,Revenue,Wrixon Care Services,External Temporary Staff
Peterborough City Council,Commissioning and Commercial Operations,Early Years & Quality Improvement,Services,04/01/2019,30209130,1865.03,Revenue,Redacted Personal Information,Grant Payment
Peterborough City Council,Communities,Travellers,Services,04/01/2019,30209201,632.80,Revenue,AL Courtenay and Son,Hired Services
Peterborough City Council,Adults,Block Contracts,Third Party Payments,04/01/2019,30209227,5826.24,Revenue,Axiom Housing Association Ltd,Third Party Payments - Contract
Peterborough City Council,Adults,Other Services,Third Party Payments,04/01/2019,30209230,12791.00,Revenue,Healthwatch Cambridgeshire and Peterborough,Third Party Payments - Contract
Peterborough City Council,Corporate,Corporate,Non Revenue,04/01/2019,30209245,8437.50,Capital,NPS Peterborough Ltd,Consultants Fees
Peterborough City Council,Adults,Other Services,Third Party Payments,04/01/2019,30209255,9548.85,Revenue,P'Boro Council For Voluntary Srvs (PCVS),Third Party Payments - Contract
Peterborough City Council,Adults,Learning Disability,Services,04/01/2019,30209261,600.00,Revenue,Dial Peterborough,Grant Payment
Peterborough City Council,Adults,Independent Sector Placements,Services,04/01/2019,30209306,2300.00,Revenue,Goldcare Homes t/a The Tudors Care Home,Residential Care
Peterborough City Council,Adults,Independent Sector Placements,Services,04/01/2019,30209308,9168.60,Revenue,Autism Care (UK) Ltd,Residential Care
Peterborough City Council,Adults,Independent Sector Placements,Services,04/01/2019,30209309,6966.72,Revenue,Autism Care (UK) Ltd,Residential Care
Peterborough City Council,Children's & Safeguarding,Children's Social Care,Contract Hire and Operating Leases,04/01/2019,30209353,4269.27,Revenue,Northumbria Healthcare NHS Foundation Trust,Leasing Charges
Peterborough City Council,Commissioning and Commercial Operations,Early Years & Quality Improvement,Services,04/01/2019,30209360,1956.24,Revenue,Redacted Personal Information,Grant Payment
Peterborough City Council,Adults,Strategic Commissioning - Management,Agency Staff,04/01/2019,30209367,882.84,Revenue,Reed Specialist Recruitment Limited,External Temporary Staff
Peterborough City Council,Adults,Strategic Commissioning - Management,Agency Staff,04/01/2019,30209387,882.84,Revenue,Reed Specialist Recruitment Limited,External Temporary Staff
Peterborough City Council,Children's & Safeguarding,Child Health,Direct Transport Costs,04/01/2019,30209394,1459.12,Revenue,Nationwide Gladwins Repair Centres,Vehicle Repairs 
Peterborough City Council,Peterborough Highway Services,Highway Services - HoS,Services,04/01/2019,30209398,750.00,Revenue,Tom Morris - Landmark Chambers,Legal Costs
Peterborough City Council,Peterborough Highway Services,Highway Services - HoS,Agency Staff,04/01/2019,30209408,1235.80,Revenue,Reed Specialist Recruitment Limited,External Temporary Staff
Peterborough City Council,Peterborough Highway Services,Highway Services - HoS,Agency Staff,04/01/2019,30209410,1235.80,Revenue,Reed Specialist Recruitment Limited,External Temporary Staff
Peterborough City Council,Peterborough Highway Services,Highway Services - HoS,Agency Staff,04/01/2019,30209412,1235.80,Revenue,Reed Specialist Recruitment Limited,External Temporary Staff
Peterborough City Council,Corporate,Corporate,Non Revenue,04/01/2019,30209430,575.00,Capital,Spotless {Cleaning Services},Building And Site Works
Peterborough City Council,Regulatory Services,Regulatory Services,Agency Staff,04/01/2019,30209431,1283.53,Revenue,Reed Specialist Recruitment Limited,External Temporary Staff
Peterborough City Council,Development and Construction,Development Management,Agency Staff,04/01/2019,30209432,1568.80,Revenue,Reed Specialist Recruitment Limited,External Temporary Staff
Peterborough City Council,Children's & Safeguarding,Access to Resources & Specialist Commissioning,Services,04/01/2019,30209438,1519.28,Revenue,PCH Integration Services Ltd,Boarding Out Fees
Peterborough City Council,Children's & Safeguarding,Access to Resources & Specialist Commissioning,Services,04/01/2019,30209439,1519.28,Revenue,PCH Integration Services Ltd,Boarding Out Fees
Peterborough City Council,Children's & Safeguarding,Access to Resources & Specialist Commissioning,Services,04/01/2019,30209447,2968.28,Revenue,PCH Integration Services Ltd,Boarding Out Fees
Peterborough City Council,Children's & Safeguarding,Access to Resources & Specialist Commissioning,Services,04/01/2019,30209475,1464.85,Revenue,PCH Integration Services Ltd,Boarding Out Fees
Peterborough City Council,Children's & Safeguarding,Access to Resources & Specialist Commissioning,Services,04/01/2019,30209478,2107.28,Revenue,PCH Integration Services Ltd,Boarding Out Fees
Peterborough City Council,Children's & Safeguarding,Access to Resources & Specialist Commissioning,Services,04/01/2019,30209480,1519.28,Revenue,PCH Integration Services Ltd,Boarding Out Fees
Peterborough City Council,Children's & Safeguarding,Access to Resources & Specialist Commissioning,Services,04/01/2019,30209482,1501.33,Revenue,PCH Integration Services Ltd,Boarding Out Fees
Peterborough City Council,Children's & Safeguarding,Access to Resources & Specialist Commissioning,Services,04/01/2019,30209482,17.95,Revenue,PCH Integration Services Ltd,Boarding Out Fees
Peterborough City Council,Education,HTS & CSC Transport,Contract Hire and Operating Leases,04/01/2019,8000132810,1738.00,Revenue,A2B Euro Cars,Hired Transport
Peterborough City Council,Education,HTS & CSC Transport,Contract Hire and Operating Leases,04/01/2019,8000132811,1892.00,Revenue,A2B Euro Cars,Hired Transport
Peterborough City Council,Education,HTS & CSC Transport,Contract Hire and Operating Leases,04/01/2019,8000132812,5720.00,Revenue,Grettons Coaches,Hired Transport
Peterborough City Council,Education,HTS & CSC Transport,Contract Hire and Operating Leases,04/01/2019,8000132813,5500.00,Revenue,Grettons Coaches,Hired Transport
Peterborough City Council,Education,HTS & CSC Transport,Contract Hire and Operating Leases,04/01/2019,8000132814,5375.00,Revenue,Grettons Coaches,Hired Transport
Peterborough City Council,Education,HTS & CSC Transport,Contract Hire and Operating Leases,04/01/2019,8000132815,5500.00,Revenue,Grettons Coaches,Hired Transport
Peterborough City Council,Education,HTS & CSC Transport,Contract Hire and Operating Leases,04/01/2019,8000132816,1584.88,Revenue,Peterborough Cars,Hired Transport
Peterborough City Council,Education,HTS & CSC Transport,Contract Hire and Operating Leases,04/01/2019,8000132817,1584.00,Revenue,Peterborough Cars,Hired Transport
Peterborough City Council,Education,HTS & CSC Transport,Contract Hire and Operating Leases,04/01/2019,8000132818,1733.60,Revenue,Peterborough Cars,Hired Transport
Peterborough City Council,Education,HTS & CSC Transport,Contract Hire and Operating Leases,04/01/2019,8000132819,2197.35,Revenue,Peterborough Cars,Hired Transport
Peterborough City Council,Education,HTS & CSC Transport,Contract Hire and Operating Leases,04/01/2019,8000132820,2074.59,Revenue,Peterborough Cars,Hired Transport
Peterborough City Council,Education,HTS & CSC Transport,Contract Hire and Operating Leases,04/01/2019,8000132821,1453.54,Revenue,Peterborough Cars,Hired Transport
Peterborough City Council,Education,HTS & CSC Transport,Contract Hire and Operating Leases,04/01/2019,8000132822,1315.60,Revenue,Peterborough Cars,Hired Transport
Peterborough City Council,Education,HTS & CSC Transport,Contract Hire and Operating Leases,04/01/2019,8000132823,1317.35,Revenue,Peterborough Cars,Hired Transport
Peterborough City Council,Education,HTS & CSC Transport,Contract Hire and Operating Leases,04/01/2019,8000132824,1481.04,Revenue,Peterborough Cars,Hired Transport
Peterborough City Council,Education,HTS & CSC Transport,Contract Hire and Operating Leases,04/01/2019,8000132825,1848.04,Revenue,Peterborough Cars,Hired Transport
Peterborough City Council,Education,HTS & CSC Transport,Contract Hire and Operating Leases,04/01/2019,8000132826,3497.00,Revenue,Goldstar Cabs Ltd,Hired Transport
Peterborough City Council,Education,HTS & CSC Transport,Contract Hire and Operating Leases,04/01/2019,8000132827,714.00,Revenue,Goldstar Cabs Ltd,Hired Transport
Peterborough City Council,Education,HTS & CSC Transport,Contract Hire and Operating Leases,04/01/2019,8000132828,800.00,Revenue,King Carz Ltd,Hired Transport
Peterborough City Council,Education,HTS & CSC Transport,Contract Hire and Operating Leases,04/01/2019,8000132832,646.00,Revenue,City Cabs Pboro Ltd,Hired Transport
Peterborough City Council,Children's & Safeguarding,Access to Resources & Specialist Commissioning,Services,07/01/2019,30206144,19614.01,Revenue,Cambian Childcare Ltd,Boarding Out Fees
Peterborough City Council,Children's & Safeguarding,Access to Resources & Specialist Commissioning,Services,07/01/2019,30207778,1980.00,Revenue,Florinee Homes Ltd,Boarding Out Fees
Peterborough City Council,Children's & Safeguarding,Access to Resources & Specialist Commissioning,Services,07/01/2019,30207779,1980.00,Revenue,Florinee Homes Ltd,Boarding Out Fees
Peterborough City Council,Commissioning and Commercial Operations,Clare Lodge,Agency Staff,07/01/2019,30207821,896.00,Revenue,Wrixon Care Services,External Temporary Staff
Peterborough City Council,Commissioning and Commercial Operations,Clare Lodge,Agency Staff,07/01/2019,30207822,1712.00,Revenue,Wrixon Care Services,External Temporary Staff
Peterborough City Council,Commissioning and Commercial Operations,Clare Lodge,Agency Staff,07/01/2019,30207823,1472.00,Revenue,Wrixon Care Services,External Temporary Staff
Peterborough City Council,Westcombe Engineering,Westcombe Engineering,"Tools, Equipment, Furniture & Materials",07/01/2019,30208001,512.60,Revenue,AALCO,Materials
Peterborough City Council,Corporate Property,Commercial Propety,Services,07/01/2019,30208171,1440.00,Revenue,Energy Report Ltd,Hired Services
Peterborough City Council,Commissioning and Commercial Operations,Clare Lodge,Agency Staff,07/01/2019,30208189,980.00,Revenue,Mana Resourcing Ltd,Supply Teachers
Peterborough City Council,Peterborough Serco Strategic Partnership,PSSP Retained Services,Services,07/01/2019,30208196,4166.72,Revenue,Whistl UK Ltd,Postage
Peterborough City Council,Communities,Targeted Youth Service,Rents,07/01/2019,30208295,795.00,Revenue,Kingsgate Trading Ltd,Hire of Premises
Peterborough City Council,Education,Special Educational Needs / Inclusion,"Tools, Equipment, Furniture & Materials",07/01/2019,30208308,7131.51,Revenue,Connevans Ltd,Furniture And Equipment Purchase
Peterborough City Council,Communities,Service Director - Adults & Communities,Third Party Payments,07/01/2019,30208314,2540.00,Revenue,Enterprise Managed Services Limited,Grant-Third Party
Peterborough City Council,Corporate Property,Commercial Propety,Services,07/01/2019,30208358,5500.00,Revenue,Serco Ltd,Hired Services
Peterborough City Council,Corporate,Corporate,Non Revenue,07/01/2019,30208433,11645.00,Capital,Quadrant Security Group Ltd,Furniture And Equipment Purchase
Peterborough City Council,Westcombe Engineering,Westcombe Engineering,"Tools, Equipment, Furniture & Materials",07/01/2019,30208525,787.50,Revenue,Olis Machine Tools Ltd,Equipment Repairs
Peterborough City Council,Children's & Safeguarding,Access to Resources & Specialist Commissioning,Services,07/01/2019,30208599,840.00,Revenue,Florinee Homes Ltd,Boarding Out Fees
Peterborough City Council,Corporate Property,Commercial Propety,Repair & Maintenance of Buildings,07/01/2019,30208729,3594.39,Revenue,Opportunity Peterborough,Other Occupancy Costs
Peterborough City Council,Commissioning and Commercial Operations,Early Years & Quality Improvement,Services,07/01/2019,30209131,1058.75,Revenue,Stars Pre-School Ravensthorpe,Grant Payment
Peterborough City Council,Commissioning and Commercial Operations,Early Years & Quality Improvement,Services,07/01/2019,30209132,591.25,Revenue,Shining Stars Pre-School Nursery,Grant Payment
Peterborough City Council,Commissioning and Commercial Operations,Early Years & Quality Improvement,Services,07/01/2019,30209133,1443.75,Revenue,Stars Pre-School Dogsthorpe,Grant Payment
Peterborough City Council,Corporate,Corporate,Non Revenue,07/01/2019,30209222,4650.00,Capital,Garfield Builders Ltd,Building And Site Works
Peterborough City Council,Corporate,Corporate,Non Revenue,07/01/2019,30209223,4999.99,Capital,Rawheat Heating & Plumbing Eng.,Grant Payment
Peterborough City Council,Commissioning and Commercial Operations,Early Years & Quality Improvement,Services,07/01/2019,30209361,1365.00,Revenue,Peterborough Regional College,Grant Payment
Peterborough City Council,"Cemeteries, Cremation & Registrars",Bereavement Service,Services,07/01/2019,30209364,547.76,Revenue,Yaboo Company Ltd T/a Wesley Music,Hired Services
Peterborough City Council,Adults,Independent Sector Placements,Services,07/01/2019,30209378,2139.24,Revenue,HC-One Beamish Limited - St Clares Court,Residential Care
Peterborough City Council,Adults,Independent Sector Placements,Services,07/01/2019,30209380,2139.24,Revenue,HC-One Beamish Limited - St Clares Court,Residential Care
Peterborough City Council,Adults,Independent Sector Placements,Services,07/01/2019,30209382,3400.00,Revenue,LESTER HALL APARTMENTS LTD,Residential Care
Peterborough City Council,Adults,Independent Sector Placements,Services,07/01/2019,30209383,3400.00,Revenue,LESTER HALL APARTMENTS LTD,Residential Care
Peterborough City Council,Children's & Safeguarding,Child Health,Repair & Maintenance of Buildings,07/01/2019,30209400,514.00,Revenue,Britannia Fire & Security Ltd,Premises Maintenance
Peterborough City Council,Adults,Independent Sector Placements,Services,07/01/2019,30209483,3525.64,Revenue,Augusta Care Ltd,Home Care
Peterborough City Council,Adults,Independent Sector Placements,Services,07/01/2019,30209484,3525.64,Revenue,Augusta Care Ltd,Home Care
Peterborough City Council,Adults,Independent Sector Placements,Services,07/01/2019,30209485,3525.64,Revenue,Augusta Care Ltd,Home Care
Peterborough City Council,Adults,Independent Sector Placements,Services,07/01/2019,30209486,3525.64,Revenue,Augusta Care Ltd,Home Care
Peterborough City Council,Adults,Independent Sector Placements,Services,07/01/2019,30209487,3525.64,Revenue,Augusta Care Ltd,Home Care
Peterborough City Council,Adults,Independent Sector Placements,Services,07/01/2019,30209488,1594.46,Revenue,Augusta Care Ltd,Home Care
Peterborough City Council,Adults,Independent Sector Placements,Services,07/01/2019,30209489,3525.64,Revenue,Augusta Care Ltd,Home Care
Peterborough City Council,Adults,Independent Sector Placements,Services,07/01/2019,30209490,3525.64,Revenue,Augusta Care Ltd,Home Care
Peterborough City Council,Adults,Independent Sector Placements,Services,07/01/2019,30209491,3525.64,Revenue,Augusta Care Ltd,Home Care
Peterborough City Council,Adults,Independent Sector Placements,Services,07/01/2019,30209492,3525.64,Revenue,Augusta Care Ltd,Home Care
Peterborough City Council,Children's & Safeguarding,Access to Resources & Specialist Commissioning,Services,07/01/2019,30209535,2400.00,Revenue,Florinee Homes Ltd,Boarding Out Fees
Peterborough City Council,Peterborough Highway Services,Highway & Drainage Control,Agency Staff,07/01/2019,30209554,1052.11,Revenue,Reed Specialist Recruitment Limited,External Temporary Staff
Peterborough City Council,Adults,Independent Sector Placements,Services,07/01/2019,30209555,1752.80,Revenue,Turning Point Services Ltd,Home Care
Peterborough City Council,Adults,Independent Sector Placements,Services,07/01/2019,30209556,5046.20,Revenue,Turning Point Services Ltd,Home Care
Peterborough City Council,Adults,Independent Sector Placements,Services,07/01/2019,30209557,6172.88,Revenue,Turning Point Services Ltd,Home Care
Peterborough City Council,Adults,Independent Sector Placements,Services,07/01/2019,30209558,5061.84,Revenue,Turning Point Services Ltd,Home Care
Peterborough City Council,Adults,Independent Sector Placements,Services,07/01/2019,30209560,5635.20,Revenue,Turning Point Services Ltd,Home Care
Peterborough City Council,Adults,Independent Sector Placements,Services,07/01/2019,30209562,5635.20,Revenue,Turning Point Services Ltd,Home Care
Peterborough City Council,Adults,Independent Sector Placements,Services,07/01/2019,30209564,5449.76,Revenue,Turning Point Services Ltd,Home Care
Peterborough City Council,Adults,Independent Sector Placements,Services,07/01/2019,30209566,6473.88,Revenue,Turning Point Services Ltd,Home Care
Peterborough City Council,Adults,Independent Sector Placements,Services,07/01/2019,30209567,500.80,Revenue,Turning Point Services Ltd,Home Care
Peterborough City Council,Adults,Independent Sector Placements,Services,07/01/2019,30209569,4677.96,Revenue,Turning Point Services Ltd,Home Care
Peterborough City Council,Adults,Independent Sector Placements,Services,07/01/2019,30209570,6886.68,Revenue,Turning Point Services Ltd,Home Care
Peterborough City Council,Adults,Independent Sector Placements,Services,07/01/2019,30209571,5078.04,Revenue,Turning Point Services Ltd,Home Care
Peterborough City Council,Adults,Independent Sector Placements,Services,07/01/2019,30209572,6473.88,Revenue,Turning Point Services Ltd,Home Care
Peterborough City Council,Adults,Independent Sector Placements,Services,07/01/2019,30209573,6063.88,Revenue,Turning Point Services Ltd,Home Care
Peterborough City Council,Children's & Safeguarding,Access to Resources & Specialist Commissioning,Services,07/01/2019,30209580,12856.01,Revenue,The Beeches UK Limited,Boarding Out Fees
Peterborough City Council,Peterborough Highway Services,Highway & Drainage Control,Agency Staff,07/01/2019,30209620,1228.80,Revenue,Reed Specialist Recruitment Limited,External Temporary Staff
Peterborough City Council,Financial Services,Finance,Agency Staff,07/01/2019,30209622,728.98,Revenue,Reed Specialist Recruitment Limited,External Temporary Staff
Peterborough City Council,Legal Services,Legal Services,Agency Staff,07/01/2019,30209628,1897.35,Revenue,Reed Specialist Recruitment Limited,External Temporary Staff
Peterborough City Council,Children's & Safeguarding,Access to Resources & Specialist Commissioning,Services,07/01/2019,30209647,990.00,Revenue,Florinee Homes Ltd,Boarding Out Fees
Peterborough City Council,Children's & Safeguarding,Access to Resources & Specialist Commissioning,Services,07/01/2019,30209648,780.00,Revenue,Florinee Homes Ltd,Boarding Out Fees
Peterborough City Council,Children's & Safeguarding,Access to Resources & Specialist Commissioning,Services,07/01/2019,30209649,1980.00,Revenue,Florinee Homes Ltd,Boarding Out Fees
Peterborough City Council,Children's & Safeguarding,Access to Resources & Specialist Commissioning,Services,07/01/2019,30209651,960.00,Revenue,Florinee Homes Ltd,Boarding Out Fees
Peterborough City Council,Education,HTS & CSC Transport,Contract Hire and Operating Leases,07/01/2019,8000132841,630.00,Revenue,A2B Euro Cars,Hired Transport
Peterborough City Council,Education,HTS & CSC Transport,Contract Hire and Operating Leases,07/01/2019,8000132842,2320.00,Revenue,A2B Euro Cars,Hired Transport
Peterborough City Council,Education,HTS & CSC Transport,Contract Hire and Operating Leases,07/01/2019,8000132843,840.00,Revenue,A2B Euro Cars,Hired Transport
Peterborough City Council,Education,HTS & CSC Transport,Contract Hire and Operating Leases,07/01/2019,8000132844,809.60,Revenue,A2B Euro Cars,Hired Transport
Peterborough City Council,Education,HTS & CSC Transport,Contract Hire and Operating Leases,07/01/2019,8000132848,1645.60,Revenue,Peterborough Cars,Hired Transport
Peterborough City Council,Education,HTS & CSC Transport,Contract Hire and Operating Leases,07/01/2019,8000132849,1627.12,Revenue,Peterborough Cars,Hired Transport
Peterborough City Council,Education,HTS & CSC Transport,Contract Hire and Operating Leases,07/01/2019,8000132850,1672.00,Revenue,Peterborough Cars,Hired Transport
Peterborough City Council,HR,HR,Services,09/01/2019,30206545,528.00,Revenue,Disclosure and Barring Service,Criminal Record Check
Peterborough City Council,Legal Services,Legal Services,Services,09/01/2019,30207296,1250.00,Revenue,Miss Alicia Theaker,Legal Costs
Peterborough City Council,HR,HR,Advertising,09/01/2019,30207698,1899.66,Revenue,TMP (UK) LTD,Recruitment Advertising
Peterborough City Council,Legal Services,Legal Services,Agency Staff,09/01/2019,30207749,1887.00,Revenue,Venn Group Ltd,External Temporary Staff
Peterborough City Council,Legal Services,Legal Services,Agency Staff,09/01/2019,30207750,2062.50,Revenue,Venn Group Ltd,External Temporary Staff
Peterborough City Council,Legal Services,Legal Services,Agency Staff,09/01/2019,30207754,2807.04,Revenue,Venn Group Ltd,External Temporary Staff
Peterborough City Council,Legal Services,Legal Services,Agency Staff,09/01/2019,30207755,531.58,Revenue,Venn Group Ltd,External Temporary Staff
Peterborough City Council,Commissioning and Commercial Operations,Clare Lodge,Agency Staff,09/01/2019,30207824,560.00,Revenue,Wrixon Care Services,External Temporary Staff
Peterborough City Council,Children's & Safeguarding,Access to Resources & Specialist Commissioning,Services,09/01/2019,30207833,3555.70,Revenue,Foster Care Associates Ltd FCA,Boarding Out Fees
Peterborough City Council,Children's & Safeguarding,Access to Resources & Specialist Commissioning,Services,09/01/2019,30207834,4292.69,Revenue,Foster Care Associates Ltd FCA,Boarding Out Fees
Peterborough City Council,Children's & Safeguarding,Access to Resources & Specialist Commissioning,Services,09/01/2019,30207836,3555.70,Revenue,Foster Care Associates Ltd FCA,Boarding Out Fees
Peterborough City Council,Children's & Safeguarding,Access to Resources & Specialist Commissioning,Services,09/01/2019,30207837,3556.01,Revenue,Foster Care Associates Ltd FCA,Boarding Out Fees
Peterborough City Council,Children's & Safeguarding,Access to Resources & Specialist Commissioning,Services,09/01/2019,30207839,3556.01,Revenue,Foster Care Associates Ltd FCA,Boarding Out Fees
Peterborough City Council,Children's & Safeguarding,Access to Resources & Specialist Commissioning,Services,09/01/2019,30207842,4248.89,Revenue,Foster Care Associates Ltd FCA,Boarding Out Fees
Peterborough City Council,Children's & Safeguarding,Access to Resources & Specialist Commissioning,Services,09/01/2019,30207845,3113.33,Revenue,Foster Care Associates Ltd FCA,Boarding Out Fees
Peterborough City Council,Children's & Safeguarding,Access to Resources & Specialist Commissioning,Services,09/01/2019,30207846,3052.57,Revenue,Foster Care Associates Ltd FCA,Boarding Out Fees
Peterborough City Council,Children's & Safeguarding,Access to Resources & Specialist Commissioning,Services,09/01/2019,30207847,3626.69,Revenue,Foster Care Associates Ltd FCA,Boarding Out Fees
Peterborough City Council,Children's & Safeguarding,Access to Resources & Specialist Commissioning,Services,09/01/2019,30207848,2960.99,Revenue,Foster Care Associates Ltd FCA,Boarding Out Fees
Peterborough City Council,Children's & Safeguarding,Access to Resources & Specialist Commissioning,Services,09/01/2019,30207849,4380.30,Revenue,Foster Care Associates Ltd FCA,Boarding Out Fees
Peterborough City Council,Adults,Independent Sector Placements,Services,09/01/2019,30207878,2607.00,Revenue,HEREWARD CARE SERVICES LIMITED,Residential Care
Peterborough City Council,Adults,Independent Sector Placements,Services,09/01/2019,30207879,2671.84,Revenue,HEREWARD CARE SERVICES LIMITED,Residential Care
Peterborough City Council,Adults,Independent Sector Placements,Services,09/01/2019,30207882,2167.60,Revenue,HEREWARD CARE SERVICES LIMITED,Residential Care
Peterborough City Council,Adults,Independent Sector Placements,Services,09/01/2019,30207883,4491.36,Revenue,HEREWARD CARE SERVICES LIMITED,Residential Care
Peterborough City Council,Adults,Independent Sector Placements,Services,09/01/2019,30207889,2677.32,Revenue,HEREWARD CARE SERVICES LIMITED,Residential Care
Peterborough City Council,Adults,Independent Sector Placements,Services,09/01/2019,30207891,3431.12,Revenue,HEREWARD CARE SERVICES LIMITED,Residential Care
Peterborough City Council,Adults,Independent Sector Placements,Services,09/01/2019,30207940,1748.82,Revenue,Augusta Care Ltd,Home Care
Peterborough City Council,Commissioning and Commercial Operations,Commissioning,Services,09/01/2019,30208009,2653.65,Revenue,BDP Social Care Ltd,Hired Services
Peterborough City Council,Children's & Safeguarding,Early Help ASC/CSC,Services,09/01/2019,30208010,2194.50,Revenue,BDP Social Care Ltd,Hired Services
Peterborough City Council,Adults,Independent Sector Placements,Services,09/01/2019,30208061,1385.36,Revenue,Barchester Wood Grange,Residential Care
Peterborough City Council,Development and Construction,Planning Compliance,Agency Staff,09/01/2019,30208073,1466.55,Revenue,Park Avenue Recruitment Limited,External Temporary Staff
Peterborough City Council,Adults,Independent Sector Placements,Services,09/01/2019,30208109,3083.96,Revenue,HAZELWOOD LODGE LTD,Residential Care
Peterborough City Council,Adults,Independent Sector Placements,Services,09/01/2019,30208110,3083.96,Revenue,HAZELWOOD LODGE LTD,Residential Care
Peterborough City Council,Adults,Independent Sector Placements,Services,09/01/2019,30208111,3083.96,Revenue,HAZELWOOD LODGE LTD,Residential Care
Peterborough City Council,Adults,Independent Sector Placements,Services,09/01/2019,30208136,3560.34,Revenue,Athena (Ashlynn Grange),Residential Care
Peterborough City Council,Children's & Safeguarding,Access to Resources & Specialist Commissioning,Services,09/01/2019,30208253,2625.00,Revenue,Transition Care Peterborough Ltd,Boarding Out Fees
Peterborough City Council,Children's & Safeguarding,Access to Resources & Specialist Commissioning,Services,09/01/2019,30208256,1869.00,Revenue,Transition Care Peterborough Ltd,Boarding Out Fees
Peterborough City Council,Adults,Independent Sector Placements,Services,09/01/2019,30208273,2616.88,Revenue,HC-One Oval Limited,Residential Care
Peterborough City Council,Adults,Independent Sector Placements,Services,09/01/2019,30208276,992.64,Revenue,Park Vista Care Home,Residential Care
Peterborough City Council,Adults,Independent Sector Placements,Services,09/01/2019,30208278,3175.00,Revenue,HC-One Oval Limited,Residential Care
Peterborough City Council,Adults,Independent Sector Placements,Services,09/01/2019,30208279,992.64,Revenue,Park Vista Care Home,Residential Care
Peterborough City Council,Children's & Safeguarding,Access to Resources & Specialist Commissioning,Services,09/01/2019,30208291,2625.00,Revenue,Transition Care Peterborough Ltd,Boarding Out Fees
Peterborough City Council,Children's & Safeguarding,Access to Resources & Specialist Commissioning,Services,09/01/2019,30208294,1869.00,Revenue,Transition Care Peterborough Ltd,Boarding Out Fees
Peterborough City Council,Adults,Community Team,Agency Staff,09/01/2019,30208297,976.80,Revenue,Medicare First Ltd,External Temporary Staff
Peterborough City Council,Legal Services,Legal Services,Agency Staff,09/01/2019,30208377,1237.50,Revenue,Spinks Notary,External Temporary Staff
Peterborough City Council,Education,Special Educational Needs / Inclusion,Services,09/01/2019,30208380,1337.90,Revenue,Ewing Foundation,Hired Services
Peterborough City Council,Adults,Block Contracts,Third Party Payments,09/01/2019,30208382,60548.12,Revenue,HEREWARD CARE SERVICES LIMITED,Third Party Payments - Contract
Peterborough City Council,Peterborough Highway Services,Highway & Drainage Control,Agency Staff,09/01/2019,30208391,1407.00,Revenue,Matchtech,External Temporary Staff
Peterborough City Council,Education,Special Educational Needs / Inclusion,Services,09/01/2019,30208393,4225.00,Revenue,The Guide Dogs for the Blind Association,Hired Services
Peterborough City Council,Regulatory Services,Regulatory Services,Services,09/01/2019,30208400,2475.00,Revenue,Mr Cameron Crowe,Legal Costs
Peterborough City Council,Development and Construction,Planning Compliance,Agency Staff,09/01/2019,30208405,1566.30,Revenue,Park Avenue Recruitment Limited,External Temporary Staff
Peterborough City Council,Communities,Housing,Services,09/01/2019,30208462,675.00,Revenue,Liam Varnam,Legal Costs
Peterborough City Council,Parking Services,Parking Services,Services,09/01/2019,30208463,2100.00,Revenue,C N SECURITY,Security
Peterborough City Council,Communities,Travellers,Services,09/01/2019,30208464,798.40,Revenue,Bryan Lecoche Ltd,Hired Services
Peterborough City Council,Adults,Home Services Delivery Model,Services,09/01/2019,30208465,1000.00,Revenue,RH Environmental Ltd,Subscriptions
Peterborough City Council,Corporate,Corporate,Non Revenue,09/01/2019,30208469,500.00,Capital,8/5 Electrical Ltd,Building And Site Works
Peterborough City Council,Commissioning and Commercial Operations,Clare Lodge,Catering,09/01/2019,30208477,568.40,Revenue,King Bros Lady Lodge Ltd,Catering Provisions
Peterborough City Council,Peterborough Highway Services,Highway Services - HoS,Agency Staff,09/01/2019,30208480,7327.98,Revenue,AECOM I & E Ltd,External Temporary Staff
Peterborough City Council,Director,Director,Third Party Payments,09/01/2019,30208495,4000.00,Revenue,Cambridgeshire County Council,Contributions
Peterborough City Council,"Waste, Cleansing and Open Spaces",Waste Management,Services,09/01/2019,30208505,382491.44,Revenue,Viridor Peterborough Ltd,Waste Disposal
Peterborough City Council,Education,Special Educational Needs / Inclusion,Services,09/01/2019,30208506,1604.00,Revenue,"Hattee, Mrs Caroline",Occupational Health
Peterborough City Council,Legal Services,Legal Services,Services,09/01/2019,30208508,550.00,Revenue,"Elliott, Ms Margot",Legal Costs
Peterborough City Council,Legal Services,Legal Services,Services,09/01/2019,30208512,550.00,Revenue,"Bramwell, Mr Christopher",Legal Costs
Peterborough City Council,Education,Special Educational Needs / Inclusion,Agency Staff,09/01/2019,30208524,4499.69,Revenue,Protocol National Ltd,External Temporary Staff
Peterborough City Council,Peterborough Highway Services,Network and Traffic Management,Services,09/01/2019,30208577,3856.07,Revenue,Dynniq UK Ltd,Infrastructure Maintenance
Peterborough City Council,Peterborough Highway Services,Network and Traffic Management,Services,09/01/2019,30208578,3981.03,Revenue,Dynniq UK Ltd,Infrastructure Maintenance
Peterborough City Council,Corporate,Corporate,Non Revenue,09/01/2019,30208580,34757.17,Capital,R G Carter Cambridge Ltd,Building And Site Works
Peterborough City Council,"Cemeteries, Cremation & Registrars",Bereavement Service,Repair & Maintenance of Buildings,09/01/2019,30208582,7654.00,Revenue,Facultatieve Technologies Ltd,Cremators
Peterborough City Council,City Centre Management,"Markets, Tourism & Events",Energy Costs,09/01/2019,30208628,953.15,Revenue,British Gas Business,Electricity
Peterborough City Council,City Centre Management,"Markets, Tourism & Events",Energy Costs,09/01/2019,30208628,703.85,Revenue,British Gas Business,Electricity
Peterborough City Council,Communities,Cultural Services,Water Services,09/01/2019,30208639,668.66,Revenue,Anglian Water Business National,Water
Peterborough City Council,"Waste, Cleansing and Open Spaces",Waste & Operational Svs Mgmt,Water Services,09/01/2019,30208639,753.30,Revenue,Anglian Water Business National,Water
Peterborough City Council,Parking Services,Parking Services,Water Services,09/01/2019,30208639,1134.27,Revenue,Anglian Water Business National,Water
Peterborough City Council,Corporate Property,Office Accomodation,Water Services,09/01/2019,30208639,2486.62,Revenue,Anglian Water Business National,Water
Peterborough City Council,Corporate Property,Office Accomodation,Water Services,09/01/2019,30208639,1756.60,Revenue,Anglian Water Business National,Water
Peterborough City Council,Commissioning and Commercial Operations,Clare Lodge,Water Services,09/01/2019,30208639,1541.27,Revenue,Anglian Water Business National,Water
Peterborough City Council,Children's & Safeguarding,Access to Resources & Specialist Commissioning,Services,09/01/2019,30208672,3986.60,Revenue,Next Step Fostering Services Limited,Boarding Out Fees
Peterborough City Council,Regulatory Services,Regulatory Services,Agency Staff,09/01/2019,30208684,1283.53,Revenue,Reed Specialist Recruitment Limited,External Temporary Staff
Peterborough City Council,Communities,Targeted Youth Service,Services,09/01/2019,30208695,8370.00,Revenue,Cambridgeshire County Council,Training
Peterborough City Council,Children's & Safeguarding,Access to Resources & Specialist Commissioning,Services,09/01/2019,30208733,8400.00,Revenue,A & T Home Limited,Boarding Out Fees
Peterborough City Council,Communities,Housing,Services,09/01/2019,30208757,750.00,Revenue,Bee Lettings Ltd,Financial Assistance
Peterborough City Council,Communities,Housing,Services,09/01/2019,30208758,625.00,Revenue,Redacted Personal Information,Financial Assistance
Peterborough City Council,Communities,Housing,Services,09/01/2019,30208769,500.00,Revenue,English Estates Property Agents,Financial Assistance
Peterborough City Council,Communities,Housing,Services,09/01/2019,30208770,560.00,Revenue,Redacted Personal Information,Financial Assistance
Peterborough City Council,Communities,Housing,Services,09/01/2019,30208772,800.00,Revenue,Redacted Personal Information,Financial Assistance
Peterborough City Council,Communities,Housing,Services,09/01/2019,30208773,550.00,Revenue,Redacted Personal Information,Financial Assistance
Peterborough City Council,Communities,Housing,Services,09/01/2019,30208774,750.00,Revenue,Bee Lettings Ltd,Financial Assistance
Peterborough City Council,Communities,Housing,Services,09/01/2019,30208775,750.00,Revenue,Redacted Personal Information,Financial Assistance
Peterborough City Council,Communities,Housing,Services,09/01/2019,30208776,565.00,Revenue,Redacted Personal Information,Financial Assistance
Peterborough City Council,Communities,Housing,Services,09/01/2019,30208777,550.00,Revenue,Redacted Personal Information,Financial Assistance
Peterborough City Council,Communities,Housing,Services,09/01/2019,30208778,750.00,Revenue,Record Property Solutions,Financial Assistance
Peterborough City Council,Education,Special Educational Needs / Inclusion,Agency Staff,09/01/2019,30208801,2120.00,Revenue,Permanent Futures Ltd,External Temporary Staff
Peterborough City Council,Education,Special Educational Needs / Inclusion,Agency Staff,09/01/2019,30208802,1100.00,Revenue,Permanent Futures Ltd,External Temporary Staff
Peterborough City Council,Corporate,Corporate,Non Revenue,09/01/2019,30208823,768.75,Capital,British Telecom PLC,Infrastructure
Peterborough City Council,Adults,Independent Sector Placements,Services,09/01/2019,30208841,-910.79,Revenue,Athena (Ashlynn Grange),Residential Care
Peterborough City Council,Corporate,Corporate,Non Revenue,09/01/2019,30208860,1887.50,Capital,Permanent Futures Ltd,Consultants Fees
Peterborough City Council,Financial Services,Finance,Agency Staff,09/01/2019,30208917,744.93,Revenue,Reed Specialist Recruitment Limited,External Temporary Staff
Peterborough City Council,Adults,Independent Sector Placements,Services,09/01/2019,30209007,-1800.00,Revenue,HC-One Oval Limited,Residential Care
Peterborough City Council,Communities,Cultural Services,Energy Costs,09/01/2019,30209055,6326.65,Revenue,Corona Energy Retail 4 Limited,Gas
Peterborough City Council,Communities,Cultural Services,Energy Costs,09/01/2019,30209055,1099.09,Revenue,Corona Energy Retail 4 Limited,Gas
Peterborough City Council,Communities,Cultural Services,Energy Costs,09/01/2019,30209063,1247.00,Revenue,Corona Energy Retail 4 Limited,Gas
Peterborough City Council,Corporate Property,Commercial Propety,Energy Costs,09/01/2019,30209063,649.64,Revenue,Corona Energy Retail 4 Limited,Gas
Peterborough City Council,Corporate Property,Commercial Propety,Energy Costs,09/01/2019,30209063,2056.07,Revenue,Corona Energy Retail 4 Limited,Gas
Peterborough City Council,Corporate Property,Office Accomodation,Energy Costs,09/01/2019,30209063,532.70,Revenue,Corona Energy Retail 4 Limited,Gas
Peterborough City Council,Communities,Cultural Services,Energy Costs,09/01/2019,30209068,1979.03,Revenue,Corona Energy Retail 4 Limited,Gas
Peterborough City Council,"Waste, Cleansing and Open Spaces",Waste & Operational Svs Mgmt,Energy Costs,09/01/2019,30209071,862.60,Revenue,Corona Energy Retail 4 Limited,Gas
Peterborough City Council,Corporate Property,Office Accomodation,Energy Costs,09/01/2019,30209074,767.77,Revenue,Npower Ltd,Electricity
Peterborough City Council,Corporate Property,Office Accomodation,Energy Costs,09/01/2019,30209074,809.73,Revenue,Npower Ltd,Electricity
Peterborough City Council,Corporate Property,Office Accomodation,Energy Costs,09/01/2019,30209074,566.79,Revenue,Npower Ltd,Electricity
Peterborough City Council,"Waste, Cleansing and Open Spaces",Waste & Operational Svs Mgmt,Water Services,09/01/2019,30209092,573.30,Revenue,Anglian Water Business National,Water
Peterborough City Council,"Waste, Cleansing and Open Spaces",Waste & Operational Svs Mgmt,Water Services,09/01/2019,30209092,2266.18,Revenue,Anglian Water Business National,Water
Peterborough City Council,Communities,Community Capacity,Water Services,09/01/2019,30209092,570.39,Revenue,Anglian Water Business National,Water
Peterborough City Council,Education,PFI,Water Services,09/01/2019,30209092,2813.15,Revenue,Anglian Water Business National,Water
Peterborough City Council,Commissioning and Commercial Operations,Clare Lodge,Agency Staff,09/01/2019,30209112,1888.00,Revenue,Wrixon Care Services,External Temporary Staff
Peterborough City Council,Commissioning and Commercial Operations,Clare Lodge,Agency Staff,09/01/2019,30209114,976.00,Revenue,Wrixon Care Services,External Temporary Staff
Peterborough City Council,Commissioning and Commercial Operations,Clare Lodge,Agency Staff,09/01/2019,30209115,1848.00,Revenue,Wrixon Care Services,External Temporary Staff
Peterborough City Council,Commissioning and Commercial Operations,Clare Lodge,Agency Staff,09/01/2019,30209116,1912.00,Revenue,Wrixon Care Services,External Temporary Staff
Peterborough City Council,Commissioning and Commercial Operations,Clare Lodge,Agency Staff,09/01/2019,30209118,584.00,Revenue,Wrixon Care Services,External Temporary Staff
Peterborough City Council,Constitutional Services,Elections,Services,09/01/2019,30209134,723.13,Revenue,CFH Docmail Limited,Postage
Peterborough City Council,HR,HR WFD & Training,Services,09/01/2019,30209135,550.00,Revenue,AJ Exclusive Events,Training
Peterborough City Council,Corporate Items,Corporate Services,Salaries & Wages,09/01/2019,30209170,68704.95,Revenue,LGSS Cambridgeshire Pension Fund,Pensions
Peterborough City Council,Education,Financing - Resources,Services,09/01/2019,30209198,30000.00,Revenue,Peterborough Regional College,Education Expenses
Peterborough City Council,Education,Financing - Resources,Services,09/01/2019,30209199,165533.00,Revenue,Peterborough Regional College,Education Expenses
Peterborough City Council,Adults,Independent Sector Placements,Services,09/01/2019,30209209,609.00,Revenue,RegionalCare,Home Care
Peterborough City Council,Commissioning and Commercial Operations,Commissioning,Services,09/01/2019,30209220,19250.00,Revenue,NewArk Play Association Ltd,Hired Services
Peterborough City Council,Adults,Independent Sector Placements,Services,09/01/2019,30209232,5686.80,Revenue,Lifeways Community Care,Residential Care
Peterborough City Council,Adults,Independent Sector Placements,Services,09/01/2019,30209242,609.00,Revenue,RegionalCare,Home Care
Peterborough City Council,Adults,Independent Sector Placements,Services,09/01/2019,30209243,899.00,Revenue,RegionalCare,Home Care
Peterborough City Council,Adults,Independent Sector Placements,Services,09/01/2019,30209244,899.00,Revenue,RegionalCare,Home Care
Peterborough City Council,HR,HR,Services,09/01/2019,30209248,11232.93,Revenue,Edenred,Childcare
Peterborough City Council,Adults,Independent Sector Placements,Services,09/01/2019,30209285,812.00,Revenue,RegionalCare,Home Care
Peterborough City Council,Adults,Independent Sector Placements,Services,09/01/2019,30209286,812.00,Revenue,RegionalCare,Home Care
Peterborough City Council,Adults,Independent Sector Placements,Services,09/01/2019,30209299,1015.00,Revenue,RegionalCare,Home Care
Peterborough City Council,Adults,Independent Sector Placements,Services,09/01/2019,30209300,2030.00,Revenue,RegionalCare,Home Care
Peterborough City Council,Adults,Independent Sector Placements,Services,09/01/2019,30209304,2030.00,Revenue,RegionalCare,Home Care
Peterborough City Council,Service Director Environment & Economy,Service Director,Services,09/01/2019,30209351,3000.00,Revenue,Women Leaders Uk,Sponsorship
Peterborough City Council,Education,PFI,Services,09/01/2019,30209413,4015.46,Revenue,IIC by Education (P'boro) Ltd,Service Charge
Peterborough City Council,Communities,Service Director - Adults & Communities,Third Party Payments,09/01/2019,30209522,10000.00,Revenue,P'Boro Council For Voluntary Srvs (PCVS),Grant-Third Party
Peterborough City Council,Legal Services,Legal Services,Services,09/01/2019,30209534,747.03,Revenue,J N Wenban-Smith ,Expert Witnesses
Peterborough City Council,Legal Services,Legal Services,Services,09/01/2019,30209537,500.35,Revenue,LMH Clinical Psychology Services,Expert Witnesses
Peterborough City Council,Commissioning and Commercial Operations,Clare Lodge,Agency Staff,09/01/2019,30209538,678.68,Revenue,Reed Specialist Recruitment Limited,External Temporary Staff
Peterborough City Council,Adults,Strategic Commissioning - Management,Agency Staff,09/01/2019,30209540,1462.75,Revenue,Reed Specialist Recruitment Limited,External Temporary Staff
Peterborough City Council,Adults,Strategic Commissioning - Management,Agency Staff,09/01/2019,30209545,637.98,Revenue,Reed Specialist Recruitment Limited,External Temporary Staff
Peterborough City Council,Commissioning and Commercial Operations,Commissioning Team,Agency Staff,09/01/2019,30209546,2243.60,Revenue,Reed Specialist Recruitment Limited,External Temporary Staff
Peterborough City Council,Adults,Independent Sector Placements,Services,09/01/2019,30209563,11632.60,Revenue,Turning Point Services Ltd,Home Care
Peterborough City Council,Adults,Independent Sector Placements,Services,09/01/2019,30209565,16651.60,Revenue,Turning Point Services Ltd,Home Care
Peterborough City Council,Education,Special Educational Needs / Inclusion,"Tools, Equipment, Furniture & Materials",09/01/2019,30209568,1033.33,Revenue,Sonova UK Ltd,Furniture And Equipment Purchase
Peterborough City Council,ICT,ICT,Agency Staff,09/01/2019,30209575,678.80,Revenue,Reed Specialist Recruitment Limited,External Temporary Staff
Peterborough City Council,Peterborough Highway Services,Highway Services - HoS,Agency Staff,09/01/2019,30209584,846.85,Revenue,Reed Specialist Recruitment Limited,External Temporary Staff
Peterborough City Council,Service Director Environment & Economy,Service Director,Services,09/01/2019,30209606,4845.70,Revenue,Sales Nova Limited,Consultants Fees
Peterborough City Council,Service Director Environment & Economy,Service Director,Services,09/01/2019,30209607,4957.54,Revenue,Sales Nova Limited,Consultants Fees
Peterborough City Council,Service Director Environment & Economy,Service Director,Services,09/01/2019,30209608,4818.80,Revenue,Sales Nova Limited,Consultants Fees
Peterborough City Council,Service Director Environment & Economy,Service Director,Services,09/01/2019,30209609,850.00,Revenue,Sales Nova Limited,Consultants Fees
Peterborough City Council,Commissioning and Commercial Operations,Clare Lodge,Agency Staff,09/01/2019,30209611,757.22,Revenue,Reed Specialist Recruitment Limited,External Temporary Staff
Peterborough City Council,Development and Construction,Development Management,Agency Staff,09/01/2019,30209632,896.49,Revenue,Reed Specialist Recruitment Limited,External Temporary Staff
Peterborough City Council,Education,HTS & CSC Transport,Agency Staff,09/01/2019,30209635,603.52,Revenue,Reed Specialist Recruitment Limited,External Temporary Staff
Peterborough City Council,Development and Construction,Development Management,Agency Staff,09/01/2019,30209637,1182.91,Revenue,Reed Specialist Recruitment Limited,External Temporary Staff
Peterborough City Council,Regulatory Services,Regulatory Services,Agency Staff,09/01/2019,30209642,1375.69,Revenue,Reed Specialist Recruitment Limited,External Temporary Staff
Peterborough City Council,Children's & Safeguarding,Access to Resources & Specialist Commissioning,Services,09/01/2019,30209652,840.00,Revenue,Florinee Homes Ltd,Boarding Out Fees
Peterborough City Council,Adults,Independent Sector Placements,Services,09/01/2019,30209669,2074.00,Revenue,THE HELPING HANDS GROUP,Day Care
Peterborough City Council,Adults,Independent Sector Placements,Services,09/01/2019,30209670,1327.50,Revenue,THE HELPING HANDS GROUP,Day Care
Peterborough City Council,Adults,Independent Sector Placements,Services,09/01/2019,30209671,1071.00,Revenue,THE HELPING HANDS GROUP,Day Care
Peterborough City Council,Adults,Independent Sector Placements,Services,09/01/2019,30209701,2778.80,Revenue,Country Court Care (Rose Lodge),Residential Care
Peterborough City Council,Adults,Independent Sector Placements,Services,09/01/2019,30209702,2717.24,Revenue,Nouvita Ltd,Residential Care
Peterborough City Council,Adults,Independent Sector Placements,Services,09/01/2019,30209703,2629.59,Revenue,Nouvita Ltd,Residential Care
Peterborough City Council,Adults,Independent Sector Placements,Services,09/01/2019,30209704,2717.24,Revenue,Nouvita Ltd,Residential Care
Peterborough City Council,Adults,Independent Sector Placements,Services,09/01/2019,30209705,2629.59,Revenue,Nouvita Ltd,Residential Care
Peterborough City Council,Adults,Independent Sector Placements,Services,09/01/2019,30209706,2717.24,Revenue,Nouvita Ltd,Residential Care
Peterborough City Council,Adults,Independent Sector Placements,Services,09/01/2019,30209707,805.46,Revenue,Nouvita Ltd,Residential Care
Peterborough City Council,Adults,Independent Sector Placements,Services,09/01/2019,30209708,1085.62,Revenue,Nouvita Ltd,Residential Care
Peterborough City Council,Adults,Independent Sector Placements,Services,09/01/2019,30209709,2471.69,Revenue,Nouvita Ltd,Residential Care
Peterborough City Council,Adults,Independent Sector Placements,Services,09/01/2019,30209710,2717.24,Revenue,Nouvita Ltd,Residential Care
Peterborough City Council,Adults,Independent Sector Placements,Services,09/01/2019,30209711,2629.59,Revenue,Nouvita Ltd,Residential Care
Peterborough City Council,Adults,Independent Sector Placements,Services,09/01/2019,30209712,1071.00,Revenue,THE HELPING HANDS GROUP,Day Care
Peterborough City Council,Adults,Independent Sector Placements,Services,09/01/2019,30209713,1327.50,Revenue,THE HELPING HANDS GROUP,Day Care
Peterborough City Council,Adults,Independent Sector Placements,Services,09/01/2019,30209714,2256.75,Revenue,THE HELPING HANDS GROUP,Day Care
Peterborough City Council,Adults,Independent Sector Placements,Services,09/01/2019,30209716,2717.24,Revenue,Nouvita Ltd,Residential Care
Peterborough City Council,Adults,Independent Sector Placements,Services,09/01/2019,30209717,929.25,Revenue,THE HELPING HANDS GROUP,Day Care
Peterborough City Council,Adults,Independent Sector Placements,Services,09/01/2019,30209718,2074.00,Revenue,THE HELPING HANDS GROUP,Day Care
Peterborough City Council,Adults,Independent Sector Placements,Services,09/01/2019,30209719,3261.88,Revenue,THE HELPING HANDS GROUP,Day Care
Peterborough City Council,Adults,Independent Sector Placements,Services,09/01/2019,30209721,1200.00,Revenue,THE HELPING HANDS GROUP,Day Care
Peterborough City Council,Adults,Independent Sector Placements,Services,09/01/2019,30209722,1708.00,Revenue,THE HELPING HANDS GROUP,Day Care
Peterborough City Council,Adults,Independent Sector Placements,Services,09/01/2019,30209723,854.00,Revenue,THE HELPING HANDS GROUP,Day Care
Peterborough City Council,Adults,Independent Sector Placements,Services,09/01/2019,30209724,882.00,Revenue,THE HELPING HANDS GROUP,Day Care
Peterborough City Council,Adults,Independent Sector Placements,Services,09/01/2019,30209725,1071.00,Revenue,THE HELPING HANDS GROUP,Day Care
Peterborough City Council,Adults,Independent Sector Placements,Services,09/01/2019,30209733,1071.00,Revenue,THE HELPING HANDS GROUP,Day Care
Peterborough City Council,Adults,Independent Sector Placements,Services,09/01/2019,30209735,630.00,Revenue,THE HELPING HANDS GROUP,Day Care
Peterborough City Council,Adults,Independent Sector Placements,Services,09/01/2019,30209749,870.75,Revenue,THE HELPING HANDS GROUP,Day Care
Peterborough City Council,Adults,Independent Sector Placements,Services,09/01/2019,30209751,2074.00,Revenue,THE HELPING HANDS GROUP,Day Care
Peterborough City Council,Corporate,Corporate,Non Revenue,09/01/2019,30209762,2583.60,Capital,Reed Specialist Recruitment Limited,Consultants Fees
Peterborough City Council,Communities,Housing,Services,09/01/2019,30209789,3025.00,Revenue,Singh and Sons Property Management Ltd,Temporary Accommodation Costs
Peterborough City Council,Communities,Housing,Services,09/01/2019,30209791,3220.00,Revenue,Singh and Sons Property Management Ltd,Temporary Accommodation Costs
Peterborough City Council,Legal Services,Legal Services,Services,09/01/2019,30209793,550.00,Revenue,"Elliott, Ms Margot",Legal Costs
Peterborough City Council,Communities,Housing,Services,09/01/2019,30209795,2275.00,Revenue,Singh and Sons Property Management Ltd,Temporary Accommodation Costs
Peterborough City Council,Communities,Housing,Services,09/01/2019,30209796,2275.00,Revenue,Singh and Sons Property Management Ltd,Temporary Accommodation Costs
Peterborough City Council,Communities,Housing,Services,09/01/2019,30209798,3150.00,Revenue,Singh and Sons Property Management Ltd,Temporary Accommodation Costs
Peterborough City Council,Communities,Housing,Services,09/01/2019,30209800,3150.00,Revenue,Singh and Sons Property Management Ltd,Temporary Accommodation Costs
Peterborough City Council,Communities,Housing,Services,09/01/2019,30209801,2975.00,Revenue,Singh and Sons Property Management Ltd,Temporary Accommodation Costs
Peterborough City Council,Communities,Housing,Services,09/01/2019,30209802,2975.00,Revenue,Singh and Sons Property Management Ltd,Temporary Accommodation Costs
Peterborough City Council,Adults,Independent Sector Placements,Services,09/01/2019,30209804,604.08,Revenue,PHILIA LODGE REST HOME,Residential Care
Peterborough City Council,Adults,Independent Sector Placements,Services,09/01/2019,30209805,4215.77,Revenue,PHILIA LODGE REST HOME,Residential Care
Peterborough City Council,Adults,Independent Sector Placements,Services,09/01/2019,30209817,2160.57,Revenue,STAR RESIDENTIAL HOME LTD,Residential Care
Peterborough City Council,Adults,Independent Sector Placements,Services,09/01/2019,30209818,2128.15,Revenue,STAR RESIDENTIAL HOME LTD,Residential Care
Peterborough City Council,Adults,Independent Sector Placements,Services,09/01/2019,30209819,2022.33,Revenue,STAR RESIDENTIAL HOME LTD,Residential Care
Peterborough City Council,Adults,Independent Sector Placements,Services,09/01/2019,30209820,2019.16,Revenue,STAR RESIDENTIAL HOME LTD,Residential Care
Peterborough City Council,Adults,Independent Sector Placements,Services,09/01/2019,30209822,2232.16,Revenue,STAR RESIDENTIAL HOME LTD,Residential Care
Peterborough City Council,Adults,Independent Sector Placements,Services,09/01/2019,30209826,2052.40,Revenue,STAR RESIDENTIAL HOME LTD,Residential Care
Peterborough City Council,Communities,Housing,Services,09/01/2019,30209832,3150.00,Revenue,Singh and Sons Property Management Ltd,Temporary Accommodation Costs
Peterborough City Council,Communities,Housing,Services,09/01/2019,30209835,2095.00,Revenue,Singh and Sons Property Management Ltd,Temporary Accommodation Costs
Peterborough City Council,Communities,Housing,Services,09/01/2019,30209837,3220.00,Revenue,Singh and Sons Property Management Ltd,Temporary Accommodation Costs
Peterborough City Council,Communities,Housing,Services,09/01/2019,30209838,2975.00,Revenue,Singh and Sons Property Management Ltd,Temporary Accommodation Costs
Peterborough City Council,Commissioning and Commercial Operations,Clare Lodge,Agency Staff,09/01/2019,30209847,671.98,Revenue,Reed Specialist Recruitment Limited,External Temporary Staff
Peterborough City Council,Corporate,Corporate,Non Revenue,09/01/2019,30209851,3250.50,Capital,Kier Construction Ltd,Building And Site Works
Peterborough City Council,City Centre Management,"Markets, Tourism & Events",Repair & Maintenance of Buildings,09/01/2019,30209861,581.03,Revenue,The K A Wing Group Ltd,Premises Maintenance
Peterborough City Council,Children's & Safeguarding,External Education Placements,Services,09/01/2019,30209862,2956.87,Revenue,Ethelbert Childrens Services,Boarding Out Fees
Peterborough City Council,"Cemeteries, Cremation & Registrars",Bereavement Service,Repair & Maintenance of Buildings,09/01/2019,30209877,1635.94,Revenue,Facultatieve Technologies Ltd,Cremators
Peterborough City Council,Commissioning and Commercial Operations,Commissioning,Services,09/01/2019,30209881,800.00,Revenue,BDP Social Care Ltd,Hired Services
Peterborough City Council,Adults,Home Services Delivery Model,Agency Staff,09/01/2019,30209887,1125.25,Revenue,Reed Specialist Recruitment Limited,External Temporary Staff
Peterborough City Council,"Cemeteries, Cremation & Registrars",Bereavement Service,Services,09/01/2019,30209888,1564.00,Revenue,Anglia Co-operative Funerals,Contract Funerals
Peterborough City Council,Adults,Independent Sector Placements,Services,09/01/2019,30209895,2235.32,Revenue,STAR RESIDENTIAL HOME LTD,Residential Care
Peterborough City Council,Children's & Safeguarding,Access to Resources & Specialist Commissioning,Services,09/01/2019,30209942,5748.33,Revenue,I S P,Boarding Out Fees
Peterborough City Council,Adults,Independent Sector Placements,Services,09/01/2019,30209953,1834.89,Revenue,STAR RESIDENTIAL HOME LTD,Residential Care
Peterborough City Council,Children's & Safeguarding,Access to Resources & Specialist Commissioning,Services,09/01/2019,30209957,4388.05,Revenue,By The Bridge,Boarding Out Fees
Peterborough City Council,Children's & Safeguarding,Access to Resources & Specialist Commissioning,Services,09/01/2019,30209958,4475.78,Revenue,By The Bridge,Boarding Out Fees
Peterborough City Council,Children's & Safeguarding,Access to Resources & Specialist Commissioning,Services,09/01/2019,30209959,4411.43,Revenue,By The Bridge,Boarding Out Fees
Peterborough City Council,Children's & Safeguarding,Access to Resources & Specialist Commissioning,Services,09/01/2019,30209960,4711.38,Revenue,By The Bridge,Boarding Out Fees
Peterborough City Council,Commissioning and Commercial Operations,Commissioning,Services,09/01/2019,30209961,769.00,Revenue,Wrixon Care Services,Hired Services
Peterborough City Council,Legal Services,Legal Services,Agency Staff,09/01/2019,30209971,2025.38,Revenue,Reed Specialist Recruitment Limited,External Temporary Staff
Peterborough City Council,Corporate Property,Office Accomodation,Agency Staff,09/01/2019,30209973,3779.56,Revenue,Reed Specialist Recruitment Limited,External Temporary Staff
Peterborough City Council,Children's & Safeguarding,Access to Resources & Specialist Commissioning,Services,09/01/2019,30209974,11131.42,Revenue,Sixteen Plus Limited,Boarding Out Fees
Peterborough City Council,Children's & Safeguarding,Access to Resources & Specialist Commissioning,Services,09/01/2019,30209975,707.14,Revenue,Florinee Homes Ltd,Boarding Out Fees
Peterborough City Council,Education,Special Educational Needs / Inclusion,Agency Staff,09/01/2019,30209983,1100.00,Revenue,Permanent Futures Ltd,External Temporary Staff
Peterborough City Council,Legal Services,Legal Services,Services,09/01/2019,30209985,518.70,Revenue,The Psychological Service,Expert Witnesses
Peterborough City Council,Education,Special Educational Needs / Inclusion,Agency Staff,09/01/2019,30209994,1100.00,Revenue,Permanent Futures Ltd,External Temporary Staff
Peterborough City Council,Education,Special Educational Needs / Inclusion,Services,09/01/2019,30209995,720.00,Revenue,Families First Peterborough,Education Expenses
Peterborough City Council,Commissioning and Commercial Operations,Early Years & Quality Improvement,Services,09/01/2019,30209998,4942.11,Revenue,Gladstone Primary Academy,Grant Payment
Peterborough City Council,Children's & Safeguarding,Access to Resources & Specialist Commissioning,Services,09/01/2019,30210061,5649.99,Revenue,Sixteen Plus Limited,Boarding Out Fees
Peterborough City Council,Children's & Safeguarding,Access to Resources & Specialist Commissioning,Services,09/01/2019,30210064,1907.14,Revenue,Sixteen Plus Limited,Boarding Out Fees
Peterborough City Council,Communities,Housing,Services,09/01/2019,30210078,6886.14,Revenue,Boroughbury Medical Centre,Hired Services
Peterborough City Council,Corporate,Corporate,Non Revenue,09/01/2019,30210086,58250.00,Capital,Percy Martin Ltd,Furniture And Equipment Purchase
Peterborough City Council,Education,HTS & CSC Transport,Contract Hire and Operating Leases,09/01/2019,8000132889,1362.74,Revenue,Redacted Personal Information,Hired Transport
Peterborough City Council,Education,HTS & CSC Transport,Contract Hire and Operating Leases,09/01/2019,8000132890,1207.87,Revenue,Redacted Personal Information,Hired Transport
Peterborough City Council,Education,HTS & CSC Transport,Contract Hire and Operating Leases,09/01/2019,8000132892,579.75,Revenue,Redacted Personal Information,Hired Transport
Peterborough City Council,Education,HTS & CSC Transport,Contract Hire and Operating Leases,09/01/2019,8000132893,808.11,Revenue,Redacted Personal Information,Hired Transport
Peterborough City Council,Education,HTS & CSC Transport,Contract Hire and Operating Leases,09/01/2019,8000132895,1407.79,Revenue,Redacted Personal Information,Hired Transport
Peterborough City Council,Children's & Safeguarding,Children's Social Care,Services,11/01/2019,30185947,2182.30,Revenue,Byrne House Ltd,Financial Assistance
Peterborough City Council,Children's & Safeguarding,Children's Social Care,Services,11/01/2019,30185948,1695.40,Revenue,Byrne House Ltd,Financial Assistance
Peterborough City Council,Children's & Safeguarding,Children's Social Care,Services,11/01/2019,30202219,565.36,Revenue,Sixteen Plus Limited,Financial Assistance
Peterborough City Council,Children's & Safeguarding,Children's Social Care,Services,11/01/2019,30205580,752.70,Revenue,Florinee Homes Ltd,Financial Assistance
Peterborough City Council,Children's & Safeguarding,Children's Social Care,Services,11/01/2019,30205582,752.70,Revenue,Florinee Homes Ltd,Financial Assistance
Peterborough City Council,Adults,OP/PD/SI,"Tools, Equipment, Furniture & Materials",11/01/2019,30207620,975.51,Revenue,NRS Healthcare,Occupational Therapy Equipment
Peterborough City Council,Education,Financing - Resources,Services,11/01/2019,30208167,137767.00,Revenue,City College Peterborough,Education Expenses
Peterborough City Council,Education,Financing - Resources,Services,11/01/2019,30208168,78000.00,Revenue,City College Peterborough,Education Expenses
Peterborough City Council,Children's & Safeguarding,Children's Social Care,Services,11/01/2019,30208215,1929.18,Revenue,Redacted Personal Information,Financial Assistance
Peterborough City Council,Adults,Independent Sector Placements,Services,11/01/2019,30208268,2483.60,Revenue,Sense,Day Care
Peterborough City Council,Adults,Independent Sector Placements,Services,11/01/2019,30208274,877.48,Revenue,Sense,Day Care
Peterborough City Council,Adults,Independent Sector Placements,Services,11/01/2019,30208277,2483.60,Revenue,Sense,Day Care
Peterborough City Council,Adults,Independent Sector Placements,Services,11/01/2019,30208281,2483.60,Revenue,Sense,Day Care
Peterborough City Council,Adults,Independent Sector Placements,Services,11/01/2019,30208282,908.83,Revenue,Sense,Day Care
Peterborough City Council,Adults,Independent Sector Placements,Services,11/01/2019,30208289,1378.56,Revenue,Sense,Day Care
Peterborough City Council,Adults,Independent Sector Placements,Services,11/01/2019,30208290,715.76,Revenue,Sense,Home Care
Peterborough City Council,Adults,Independent Sector Placements,Services,11/01/2019,30208302,506.16,Revenue,Sense,Day Care
Peterborough City Council,Adults,Independent Sector Placements,Services,11/01/2019,30208304,1601.84,Revenue,Sense,Day Care
Peterborough City Council,Communities,Cultural Services,"Tools, Equipment, Furniture & Materials",11/01/2019,30208486,876.40,Revenue,Total Promotions Ltd,Clothing
Peterborough City Council,Adults,Block Contracts,Contract Hire and Operating Leases,11/01/2019,30208521,5034.04,Revenue,Sense,Hired Transport
Peterborough City Council,Financial Services,Insurance,Premises Insurances,11/01/2019,30208602,3617.49,Revenue,Zurich Insurance Company,Insurance Premiums
Peterborough City Council,Financial Services,Insurance,Premises Insurances,11/01/2019,30208603,33716.08,Revenue,Zurich Insurance Company,Insurance Premiums
Peterborough City Council,Adults,Independent Sector Placements,Services,11/01/2019,30208609,1594.68,Revenue,Goldcare Homes t/a The Tudors Care Home,Residential Care
Peterborough City Council,Adults,Independent Sector Placements,Services,11/01/2019,30208610,1507.60,Revenue,Goldcare Homes t/a The Tudors Care Home,Residential Care
Peterborough City Council,Adults,Independent Sector Placements,Services,11/01/2019,30208611,1424.76,Revenue,Goldcare Homes t/a The Tudors Care Home,Residential Care
Peterborough City Council,Adults,Independent Sector Placements,Services,11/01/2019,30208612,786.44,Revenue,Goldcare Homes t/a The Tudors Care Home,Residential Care
Peterborough City Council,Adults,Independent Sector Placements,Services,11/01/2019,30208622,1459.52,Revenue,PRIME LIFE LTD (Caenarvon House),Residential Care
Peterborough City Council,Adults,Independent Sector Placements,Services,11/01/2019,30208624,5354.44,Revenue,Accomplish Group Limited (Orchard Hill),Residential Care
Peterborough City Council,Peterborough Serco Strategic Partnership,PSSP Retained Services,Services,11/01/2019,30208630,2105.90,Revenue,Whistl UK Ltd,Postage
Peterborough City Council,Peterborough Serco Strategic Partnership,PSSP Retained Services,Services,11/01/2019,30208631,719.52,Revenue,Whistl UK Ltd,Postage
Peterborough City Council,Adults,Independent Sector Placements,Services,11/01/2019,30208663,1685.72,Revenue,Athena (Ashlynn Grange),Residential Care
Peterborough City Council,Adults,Independent Sector Placements,Services,11/01/2019,30208664,2318.36,Revenue,Athena (Ashlynn Grange),Residential Care
Peterborough City Council,Adults,Independent Sector Placements,Services,11/01/2019,30208665,1268.16,Revenue,Athena (Ashlynn Grange),Residential Care
Peterborough City Council,Adults,Independent Sector Placements,Services,11/01/2019,30208666,1821.04,Revenue,Athena (Ashlynn Grange),Residential Care
Peterborough City Council,Adults,Independent Sector Placements,Services,11/01/2019,30208705,1980.00,Revenue,Athena (Ashlynn Grange),Residential Care
Peterborough City Council,Adults,Independent Sector Placements,Services,11/01/2019,30208706,1569.36,Revenue,Athena (Ashlynn Grange),Residential Care
Peterborough City Council,Adults,Independent Sector Placements,Services,11/01/2019,30208707,1115.20,Revenue,Athena (Ashlynn Grange),Residential Care
Peterborough City Council,Adults,Independent Sector Placements,Services,11/01/2019,30208708,1165.92,Revenue,Athena (Ashlynn Grange),Residential Care
Peterborough City Council,Adults,Independent Sector Placements,Services,11/01/2019,30208709,1703.36,Revenue,Athena (Ashlynn Grange),Residential Care
Peterborough City Council,Adults,Independent Sector Placements,Services,11/01/2019,30208710,1455.20,Revenue,Athena (Ashlynn Grange),Residential Care
Peterborough City Council,Adults,Independent Sector Placements,Services,11/01/2019,30208711,993.58,Revenue,Athena (Ashlynn Grange),Residential Care
Peterborough City Council,Adults,Independent Sector Placements,Services,11/01/2019,30208712,1649.48,Revenue,Athena (Ashlynn Grange),Residential Care
Peterborough City Council,Adults,Independent Sector Placements,Services,11/01/2019,30208713,1014.96,Revenue,Athena (Ashlynn Grange),Residential Care
Peterborough City Council,Adults,Independent Sector Placements,Services,11/01/2019,30208714,1370.36,Revenue,Athena (Ashlynn Grange),Residential Care
Peterborough City Council,Adults,Independent Sector Placements,Services,11/01/2019,30208715,1737.96,Revenue,Athena (Ashlynn Grange),Residential Care
Peterborough City Council,Adults,Independent Sector Placements,Services,11/01/2019,30208716,2318.36,Revenue,Athena (Ashlynn Grange),Residential Care
Peterborough City Council,Adults,Independent Sector Placements,Services,11/01/2019,30208717,2291.56,Revenue,Athena (Ashlynn Grange),Residential Care
Peterborough City Council,Adults,Independent Sector Placements,Services,11/01/2019,30208718,1729.00,Revenue,Athena (Ashlynn Grange),Residential Care
Peterborough City Council,Adults,Independent Sector Placements,Services,11/01/2019,30208719,1687.00,Revenue,Athena (Ashlynn Grange),Residential Care
Peterborough City Council,Adults,Independent Sector Placements,Services,11/01/2019,30208720,2318.36,Revenue,Athena (Ashlynn Grange),Residential Care
Peterborough City Council,Adults,Independent Sector Placements,Services,11/01/2019,30208721,2152.76,Revenue,Athena (Ashlynn Grange),Residential Care
Peterborough City Council,ICT,ICT,Services,11/01/2019,30208724,35361.50,Revenue,Housing Partners Ltd,Computer Software
Peterborough City Council,Adults,Independent Sector Placements,Services,11/01/2019,30208837,1765.96,Revenue,Athena (Ashlynn Grange),Residential Care
Peterborough City Council,Adults,Independent Sector Placements,Services,11/01/2019,30208838,1032.88,Revenue,Athena (Ashlynn Grange),Residential Care
Peterborough City Council,Adults,Independent Sector Placements,Services,11/01/2019,30208839,920.92,Revenue,Athena (Ashlynn Grange),Residential Care
Peterborough City Council,Adults,Independent Sector Placements,Services,11/01/2019,30208840,6625.05,Revenue,Athena (Ashlynn Grange),Residential Care
Peterborough City Council,Adults,Independent Sector Placements,Services,11/01/2019,30208842,1785.96,Revenue,Athena (Ashlynn Grange),Residential Care
Peterborough City Council,Adults,Independent Sector Placements,Services,11/01/2019,30208843,1591.20,Revenue,Athena (Ashlynn Grange),Residential Care
Peterborough City Council,Adults,Independent Sector Placements,Services,11/01/2019,30208844,1681.28,Revenue,Athena (Ashlynn Grange),Residential Care
Peterborough City Council,Adults,Independent Sector Placements,Services,11/01/2019,30208845,2318.36,Revenue,Athena (Ashlynn Grange),Residential Care
Peterborough City Council,Adults,Independent Sector Placements,Services,11/01/2019,30208846,1821.88,Revenue,Athena (Ashlynn Grange),Residential Care
Peterborough City Council,Adults,Independent Sector Placements,Services,11/01/2019,30208847,1731.44,Revenue,Athena (Ashlynn Grange),Residential Care
Peterborough City Council,Adults,Independent Sector Placements,Services,11/01/2019,30208848,1821.88,Revenue,Athena (Ashlynn Grange),Residential Care
Peterborough City Council,Adults,Independent Sector Placements,Services,11/01/2019,30208849,2318.36,Revenue,Athena (Ashlynn Grange),Residential Care
Peterborough City Council,Commissioning and Commercial Operations,Clare Lodge,Services,11/01/2019,30209045,920.27,Revenue,M Caton Associates Ltd,Hired Services
Peterborough City Council,Adults,Independent Sector Placements,Services,11/01/2019,30209075,1773.96,Revenue,Athena (Ashlynn Grange),Residential Care
Peterborough City Council,Children's & Safeguarding,Children's Social Care,Services,11/01/2019,30209086,547.70,Revenue,Redacted Personal Information,Financial Assistance
Peterborough City Council,Commissioning and Commercial Operations,Clare Lodge,Agency Staff,11/01/2019,30209104,960.00,Revenue,Wrixon Care Services,External Temporary Staff
Peterborough City Council,Commissioning and Commercial Operations,Clare Lodge,Agency Staff,11/01/2019,30209106,2368.00,Revenue,Wrixon Care Services,External Temporary Staff
Peterborough City Council,Commissioning and Commercial Operations,Clare Lodge,Agency Staff,11/01/2019,30209108,2176.00,Revenue,Wrixon Care Services,External Temporary Staff
Peterborough City Council,Commissioning and Commercial Operations,Clare Lodge,Agency Staff,11/01/2019,30209119,2152.00,Revenue,Wrixon Care Services,External Temporary Staff
Peterborough City Council,Commissioning and Commercial Operations,Clare Lodge,Agency Staff,11/01/2019,30209120,928.00,Revenue,Wrixon Care Services,External Temporary Staff
Peterborough City Council,Commissioning and Commercial Operations,Clare Lodge,Agency Staff,11/01/2019,30209121,1760.00,Revenue,Wrixon Care Services,External Temporary Staff
Peterborough City Council,Commissioning and Commercial Operations,Clare Lodge,Agency Staff,11/01/2019,30209122,2184.00,Revenue,Wrixon Care Services,External Temporary Staff
Peterborough City Council,Adults,Independent Sector Placements,Services,11/01/2019,30209143,1821.88,Revenue,Athena (Ashlynn Grange),Residential Care
Peterborough City Council,Adults,Independent Sector Placements,Services,11/01/2019,30209333,804.00,Revenue,FIELD HOUSE (EYE) LTD,Day Care
Peterborough City Council,Adults,Independent Sector Placements,Services,11/01/2019,30209337,9168.60,Revenue,Autism Care (UK) Ltd,Residential Care
Peterborough City Council,Communities,Housing,Services,11/01/2019,30209527,1532.00,Revenue,Durham City Homes,Financial Assistance
Peterborough City Council,Communities,Housing,Services,11/01/2019,30209528,1410.00,Revenue,Progressive Lets,Financial Assistance
Peterborough City Council,Communities,Housing,Services,11/01/2019,30209529,680.00,Revenue,Progressive Lets,Financial Assistance
Peterborough City Council,Corporate,Corporate,Non Revenue,11/01/2019,30209530,1647.00,Capital,Allworks Home Improvements Ltd,Grant Payment
Peterborough City Council,Development and Construction,Building Control,Agency Staff,11/01/2019,30209544,1075.05,Revenue,Reed Specialist Recruitment Limited,External Temporary Staff
Peterborough City Council,Adults,Strategic Commissioning - Management,Agency Staff,11/01/2019,30209559,674.32,Revenue,Reed Specialist Recruitment Limited,External Temporary Staff
Peterborough City Council,Peterborough Highway Services,Transport & Infrastructure Commissioning,Transport Costs,11/01/2019,30209576,519.24,Revenue,Diamond Coaches,Public Transport
Peterborough City Council,Communities,Housing,Services,11/01/2019,30209593,750.00,Revenue,Redacted Personal Information,Financial Assistance
Peterborough City Council,Adults,Independent Sector Placements,Services,11/01/2019,30209614,510.56,Revenue,Sense,Day Care
Peterborough City Council,Adults,Independent Sector Placements,Services,11/01/2019,30209615,1276.40,Revenue,Sense,Day Care
Peterborough City Council,Adults,Independent Sector Placements,Services,11/01/2019,30209616,1856.20,Revenue,Sense,Day Care
Peterborough City Council,Peterborough Highway Services,Highway Services - HoS,Agency Staff,11/01/2019,30209617,1235.80,Revenue,Reed Specialist Recruitment Limited,External Temporary Staff
Peterborough City Council,Adults,Independent Sector Placements,Services,11/01/2019,30209623,8049.72,Revenue,Community Care Solutions Ltd,Residential Care
Peterborough City Council,Adults,Independent Sector Placements,Services,11/01/2019,30209625,3767.20,Revenue,Community Care Solutions Ltd,Residential Care
Peterborough City Council,Adults,Independent Sector Placements,Services,11/01/2019,30209626,3767.20,Revenue,Community Care Solutions Ltd,Residential Care
Peterborough City Council,Adults,Independent Sector Placements,Services,11/01/2019,30209627,5600.00,Revenue,Community Care Solutions Ltd,Residential Care
Peterborough City Council,Adults,Independent Sector Placements,Services,11/01/2019,30209629,3767.20,Revenue,Community Care Solutions Ltd,Residential Care
Peterborough City Council,Adults,Independent Sector Placements,Services,11/01/2019,30209631,3767.20,Revenue,Community Care Solutions Ltd,Residential Care
Peterborough City Council,Adults,Independent Sector Placements,Services,11/01/2019,30209633,3784.00,Revenue,Community Care Solutions Ltd,Residential Care
Peterborough City Council,Development and Construction,Development Management,Agency Staff,11/01/2019,30209636,1365.01,Revenue,Reed Specialist Recruitment Limited,External Temporary Staff
Peterborough City Council,Adults,Home Services Delivery Model,Agency Staff,11/01/2019,30209644,941.63,Revenue,Reed Specialist Recruitment Limited,External Temporary Staff
Peterborough City Council,Development and Construction,Building Control,Agency Staff,11/01/2019,30209645,1508.70,Revenue,Reed Specialist Recruitment Limited,External Temporary Staff
Peterborough City Council,Children's & Safeguarding,Access to Resources & Specialist Commissioning,Services,11/01/2019,30209650,840.00,Revenue,Florinee Homes Ltd,Boarding Out Fees
Peterborough City Council,Adults,Independent Sector Placements,Services,11/01/2019,30209688,2700.00,Revenue,Sense,Day Care
Peterborough City Council,Adults,Independent Sector Placements,Services,11/01/2019,30209690,507.50,Revenue,RegionalCare,Home Care
Peterborough City Council,Corporate,Corporate,Non Revenue,11/01/2019,30209792,3297.99,Capital,Jones Heating Ltd,Grant Payment
Peterborough City Council,Communities,Housing,Services,11/01/2019,30209815,9726.50,Revenue,Eastfield Guesthouse,Temporary Accommodation Costs
Peterborough City Council,Communities,Housing,Services,11/01/2019,30209853,11438.00,Revenue,Eastfield Guesthouse,Temporary Accommodation Costs
Peterborough City Council,Adults,Home Services Delivery Model,Agency Staff,11/01/2019,30209898,1048.74,Revenue,Reed Specialist Recruitment Limited,External Temporary Staff
Peterborough City Council,Commissioning and Commercial Operations,Clare Lodge,Services,11/01/2019,30209913,1175.22,Revenue,Apogee Corporation,Photocopier
Peterborough City Council,Children's & Safeguarding,Access to Resources & Specialist Commissioning,Services,11/01/2019,30210001,9765.00,Revenue,Sixteen Plus Limited,Boarding Out Fees
Peterborough City Council,Children's & Safeguarding,Access to Resources & Specialist Commissioning,Services,11/01/2019,30210003,11182.13,Revenue,Sixteen Plus Limited,Boarding Out Fees
Peterborough City Council,Children's & Safeguarding,Access to Resources & Specialist Commissioning,Services,11/01/2019,30210011,1970.71,Revenue,Sixteen Plus Limited,Boarding Out Fees
Peterborough City Council,City Centre Management,"Markets, Tourism & Events",Transport Costs,11/01/2019,30210142,1890.04,Revenue,National Express Ltd,Public Transport
Peterborough City Council,Adults,Therapy/Reablement/Community Equipment,"Tools, Equipment, Furniture & Materials",11/01/2019,30210143,550.00,Revenue,Casbon Building Services,Occupational Therapy Equipment
Peterborough City Council,Children's & Safeguarding,Access to Resources & Specialist Commissioning,Services,11/01/2019,30210155,1869.00,Revenue,Transition Care Peterborough Ltd,Boarding Out Fees
Peterborough City Council,Children's & Safeguarding,Access to Resources & Specialist Commissioning,Services,11/01/2019,30210159,2625.00,Revenue,Transition Care Peterborough Ltd,Boarding Out Fees
Peterborough City Council,Communities,Cohesion,Third Party Payments,11/01/2019,30210161,51198.80,Revenue,PARCA,Grant-Third Party
Peterborough City Council,Legal Services,Legal Services,Agency Staff,11/01/2019,30210162,2025.38,Revenue,Reed Specialist Recruitment Limited,External Temporary Staff
Peterborough City Council,Education,School Standards & Effectiveness,Services,11/01/2019,30210176,4940.00,Revenue,TLC LIVE,Education Expenses
Peterborough City Council,Children's & Safeguarding,Children's Social Care,Contract Hire and Operating Leases,11/01/2019,30210199,4224.76,Revenue,Northumbria Healthcare NHS Foundation Trust,Leasing Charges
Peterborough City Council,Corporate,Corporate,Non Revenue,11/01/2019,30210217,8003.00,Capital,IIC by Education (P'boro) Ltd,Furniture And Equipment Purchase
Peterborough City Council,Adults,Independent Sector Placements,Services,11/01/2019,30210245,-864.15,Revenue,Goldcare Homes t/a The Tudors Care Home,Residential Care
Peterborough City Council,Adults,Independent Sector Placements,Services,11/01/2019,30210262,2015.36,Revenue,PHILIA LODGE REST HOME,Residential Care
Peterborough City Council,Adults,Independent Sector Placements,Services,11/01/2019,30210263,2015.36,Revenue,PHILIA LODGE REST HOME,Residential Care
Peterborough City Council,Adults,Independent Sector Placements,Services,11/01/2019,30210266,2015.36,Revenue,PHILIA LODGE REST HOME,Residential Care
Peterborough City Council,Communities,Cultural Services,Services,11/01/2019,30210276,10800.00,Revenue,Codename Media Ltd,Advertising
Peterborough City Council,Children's & Safeguarding,External Education Placements,Services,11/01/2019,30210279,25056.40,Revenue,Sir Harry Smith Community College,Out Of Area Education Costs
Peterborough City Council,Adults,Home Services Delivery Model,Services,11/01/2019,30210297,1921.00,Revenue,Rawheat Heating & Plumbing Eng.,Contractors
Peterborough City Council,Education,Financing - Resources,Services,11/01/2019,30210301,3793.20,Revenue,Sense,Education Expenses
Peterborough City Council,Education,Financing - Resources,Services,11/01/2019,30210309,1601.84,Revenue,Sense,Education Expenses
Peterborough City Council,Communities,Cultural Services,Services,11/01/2019,30210311,1930.00,Revenue,Peterborough Sings,Hired Services
Peterborough City Council,Education,School Infrastructure,Third Party Payments,11/01/2019,30210314,17377.20,Revenue,Cambridgeshire County Council,Third Party Payments - Contract
Peterborough City Council,Adults,Strategic Commissioning - Management,Agency Staff,11/01/2019,30210363,664.28,Revenue,Reed Specialist Recruitment Limited,External Temporary Staff
Peterborough City Council,Adults,Block Contracts,Third Party Payments,11/01/2019,30210367,5826.24,Revenue,Axiom Housing Association Ltd,Third Party Payments - Contract
Peterborough City Council,Children's & Safeguarding,Access to Resources & Specialist Commissioning,Services,11/01/2019,30210369,1869.00,Revenue,Transition Care Peterborough Ltd,Boarding Out Fees
Peterborough City Council,Children's & Safeguarding,Access to Resources & Specialist Commissioning,Services,11/01/2019,30210370,1701.00,Revenue,Transition Care Peterborough Ltd,Boarding Out Fees
Peterborough City Council,Children's & Safeguarding,Access to Resources & Specialist Commissioning,Services,11/01/2019,30210371,1869.00,Revenue,Transition Care Peterborough Ltd,Boarding Out Fees
Peterborough City Council,Children's & Safeguarding,Access to Resources & Specialist Commissioning,Services,11/01/2019,30210372,1701.00,Revenue,Transition Care Peterborough Ltd,Boarding Out Fees
Peterborough City Council,Children's & Safeguarding,Access to Resources & Specialist Commissioning,Services,11/01/2019,30210373,1869.00,Revenue,Transition Care Peterborough Ltd,Boarding Out Fees
Peterborough City Council,Children's & Safeguarding,Access to Resources & Specialist Commissioning,Services,11/01/2019,30210375,1701.00,Revenue,Transition Care Peterborough Ltd,Boarding Out Fees
Peterborough City Council,Children's & Safeguarding,Access to Resources & Specialist Commissioning,Services,11/01/2019,30210376,1869.00,Revenue,Transition Care Peterborough Ltd,Boarding Out Fees
Peterborough City Council,Children's & Safeguarding,Access to Resources & Specialist Commissioning,Services,11/01/2019,30210377,1701.00,Revenue,Transition Care Peterborough Ltd,Boarding Out Fees
Peterborough City Council,Legal Services,Legal Services,Services,11/01/2019,30210401,672.00,Revenue,Weightmans LLP,Legal Costs
Peterborough City Council,Legal Services,Legal Services,Services,11/01/2019,30210402,658.00,Revenue,Weightmans LLP,Legal Costs
Peterborough City Council,Children's & Safeguarding,External Education Placements,Services,11/01/2019,30210414,1603.50,Revenue,Farcet C.E. (C) Primary School,Out Of Area Education Costs
Peterborough City Council,Commissioning and Commercial Operations,Clare Lodge,Services,11/01/2019,30210417,815.66,Revenue,Siemens Financial Services Ltd,Hired Services
Peterborough City Council,Public Health,PH Commissioning,Third Party Payments,11/01/2019,30210497,68697.41,Revenue,Solutions 4 Health Ltd,Third Party Payments - Contract
Peterborough City Council,Education,HTS & CSC Transport,Contract Hire and Operating Leases,11/01/2019,30210507,756.60,Revenue,Positive Steps (Care Services) Ltd,Hired Transport
Peterborough City Council,Education,HTS & CSC Transport,Contract Hire and Operating Leases,11/01/2019,8000133169,1968.00,Revenue,A2B Euro Cars,Hired Transport
Peterborough City Council,Education,HTS & CSC Transport,Contract Hire and Operating Leases,11/01/2019,8000133170,2145.00,Revenue,A2B Euro Cars,Hired Transport
Peterborough City Council,Education,HTS & CSC Transport,Contract Hire and Operating Leases,11/01/2019,8000133171,2578.00,Revenue,A2B Euro Cars,Hired Transport
Peterborough City Council,Education,HTS & CSC Transport,Contract Hire and Operating Leases,11/01/2019,8000133172,2624.00,Revenue,A2B Euro Cars,Hired Transport
Peterborough City Council,Education,HTS & CSC Transport,Contract Hire and Operating Leases,11/01/2019,8000133173,3515.00,Revenue,A2B Euro Cars,Hired Transport
Peterborough City Council,Education,HTS & CSC Transport,Contract Hire and Operating Leases,11/01/2019,8000133174,896.86,Revenue,Peterborough Cars,Hired Transport
Peterborough City Council,Education,HTS & CSC Transport,Contract Hire and Operating Leases,11/01/2019,8000133175,1141.06,Revenue,Peterborough Cars,Hired Transport
Peterborough City Council,Education,HTS & CSC Transport,Contract Hire and Operating Leases,11/01/2019,8000133183,710.24,Revenue,Redacted Personal Information,Hired Transport
Peterborough City Council,Legal & Democratic,Democratic Services,Contract Hire and Operating Leases,11/01/2019,8000133267,534.32,Revenue,Lex Autolease Ltd,Leasing Charges
Peterborough City Council,Corporate Property,Office Accomodation,Repair & Maintenance of Buildings,14/01/2019,30202422,1500.00,Revenue,Alps Group Ltd,Premises Repairs
Peterborough City Council,Children's & Safeguarding,Access to Resources & Specialist Commissioning,Services,14/01/2019,30206728,5748.02,Revenue,Nexus Fostering Ltd,Boarding Out Fees
Peterborough City Council,Commissioning and Commercial Operations,Clare Lodge,Services,14/01/2019,30206873,1080.00,Revenue,"Asplin, Ms Holly",Hired Services
Peterborough City Council,Peterborough Serco Strategic Partnership,Peterborough Serco Strategic Partnership,Services,14/01/2019,30207130,812.20,Revenue,Rossendales C B Ltd,Debt Collection
Peterborough City Council,Marketing & Communications,Marketing & Communications,Services,14/01/2019,30208457,1151.00,Revenue,Fisherprint Ltd,Printing
Peterborough City Council,Adults,Independent Sector Placements,Services,14/01/2019,30208618,6755.00,Revenue,Mencap,Home Care
Peterborough City Council,Westcombe Engineering,Westcombe Engineering,"Tools, Equipment, Furniture & Materials",14/01/2019,30208627,12380.86,Revenue,BWC Aluminium Ltd,Materials
Peterborough City Council,Communities,Other Enforcement,Services,14/01/2019,30208820,2892.93,Revenue,Quadrant Security Group Ltd,Cctv
Peterborough City Council,Westcombe Engineering,Westcombe Engineering,"Tools, Equipment, Furniture & Materials",14/01/2019,30208890,1578.78,Revenue,Carillon Industrial Services Ltd,Tools
Peterborough City Council,Commissioning and Commercial Operations,Clare Lodge,Agency Staff,14/01/2019,30209090,1872.00,Revenue,Wrixon Care Services,External Temporary Staff
Peterborough City Council,Commissioning and Commercial Operations,Clare Lodge,Agency Staff,14/01/2019,30209091,1672.00,Revenue,Wrixon Care Services,External Temporary Staff
Peterborough City Council,Corporate Items,Corporate Services,Salaries & Wages,14/01/2019,30209171,1880000.00,Revenue,LGSS Cambridgeshire Pension Fund,Pensions
Peterborough City Council,Adults,Independent Sector Placements,Services,14/01/2019,30209389,2179.08,Revenue,Eastwood Hall Limited t/a Broadoaks Residential Home,Residential Care
Peterborough City Council,Commissioning and Commercial Operations,Clare Lodge,Agency Staff,14/01/2019,30209452,912.00,Revenue,Wrixon Care Services,External Temporary Staff
Peterborough City Council,Children's & Safeguarding,Access to Resources & Specialist Commissioning,Services,14/01/2019,30209591,605.00,Revenue,Maze Independent Care Ltd,Boarding Out Fees
Peterborough City Council,Peterborough Highway Services,Transport & Infrastructure Commissioning,Energy Costs,14/01/2019,30209604,1834.61,Revenue,British Gas Business,Electricity
Peterborough City Council,Peterborough Highway Services,Transport & Infrastructure Commissioning,Energy Costs,14/01/2019,30209605,2835.80,Revenue,EDF Energy Networks Ltd,Electricity
Peterborough City Council,Adults,Independent Sector Placements,Services,14/01/2019,30209612,5713.92,Revenue,Sense,Residential Care
Peterborough City Council,Adults,Independent Sector Placements,Services,14/01/2019,30209680,7633.32,Revenue,Sense,Residential Care
Peterborough City Council,Adults,Independent Sector Placements,Services,14/01/2019,30209681,6575.00,Revenue,Sense,Residential Care
Peterborough City Council,Adults,Independent Sector Placements,Services,14/01/2019,30209685,9254.88,Revenue,Sense,Residential Care
Peterborough City Council,Adults,Independent Sector Placements,Services,14/01/2019,30209686,5503.00,Revenue,Sense,Residential Care
Peterborough City Council,Adults,Independent Sector Placements,Services,14/01/2019,30209692,857.14,Revenue,FIELD HOUSE (EYE) LTD,Residential Care
Peterborough City Council,Financial Services,Insurance,Services,14/01/2019,30209808,1125.00,Revenue,"Harris, Mr Paul",Hired Services
Peterborough City Council,"Director, OP & JV",Growth HoS,Third Party Payments,14/01/2019,30209878,2418333.95,Revenue & Capital,Skanska Construction UK Ltd,Third Party Payments - Contract
Peterborough City Council,Commissioning and Commercial Operations,Commissioning,Services,14/01/2019,30210260,854.79,Revenue,121 Social Care Limited,Hired Services
Peterborough City Council,Adults,Strategic Commissioning - Management,Agency Staff,14/01/2019,30210581,664.28,Revenue,Reed Specialist Recruitment Limited,External Temporary Staff
Peterborough City Council,Communities,Targeted Youth Service,Rents,14/01/2019,30210614,630.00,Revenue,TDA Development Ltd,Hire of Premises
Peterborough City Council,Adults,Therapy/Reablement/Community Equipment,"Tools, Equipment, Furniture & Materials",14/01/2019,30210622,760.17,Revenue,Action on Hearing Loss,Occupational Therapy Equipment
Peterborough City Council,Corporate,Corporate,Non Revenue,14/01/2019,30210626,1540.00,Capital,EMS Stairlifts,Grant Payment
Peterborough City Council,Corporate,Corporate,Non Revenue,14/01/2019,30210644,194297.56,Balance Sheet,LGSS Cambridgeshire Pension Fund,Pensions
Peterborough City Council,Corporate,Corporate,Non Revenue,14/01/2019,30210647,483781.98,Balance Sheet,LGSS Cambridgeshire Pension Fund,Pensions
Peterborough City Council,Corporate,Corporate,Non Revenue,14/01/2019,30210649,66438.57,Balance Sheet,LGSS Cambridgeshire Pension Fund,Pensions
Peterborough City Council,Children's & Safeguarding,Children's Social Care,Agency Staff,14/01/2019,30210654,2497.50,Revenue,Service Care Solutions Ltd,External Temporary Staff
Peterborough City Council,Corporate,Corporate,Non Revenue,14/01/2019,30210656,16247.02,Balance Sheet,LGSS Cambridgeshire Pension Fund,Pensions
Peterborough City Council,Corporate,Corporate,Non Revenue,14/01/2019,30210661,8936.11,Balance Sheet,NHS Pensions,Pensions
Peterborough City Council,Corporate,Corporate,Non Revenue,14/01/2019,30210662,541.26,Balance Sheet,NHS Pensions,Pensions
Peterborough City Council,Corporate,Corporate,Non Revenue,14/01/2019,30210666,4797.79,Balance Sheet,NHS Pensions,Pensions
Peterborough City Council,Communities,Housing,Services,14/01/2019,30210678,11991.37,Revenue,DA Rosalia Hotel,Temporary Accommodation Costs
Peterborough City Council,Corporate,Corporate,Non Revenue,14/01/2019,30210690,4612.65,Capital,Gaswise Services Ltd,Grant Payment
Peterborough City Council,Communities,Other Enforcement,Services,14/01/2019,30210772,670.00,Revenue,Quadrant Security Group Ltd,Cctv
Peterborough City Council,Education,HTS & CSC Transport,Contract Hire and Operating Leases,14/01/2019,8000132863,738.00,Revenue,National Travel Solutions Ltd,Hired Transport
Peterborough City Council,Education,HTS & CSC Transport,Contract Hire and Operating Leases,14/01/2019,8000132864,936.00,Revenue,National Travel Solutions Ltd,Hired Transport
Peterborough City Council,Education,HTS & CSC Transport,Contract Hire and Operating Leases,14/01/2019,8000132865,559.00,Revenue,National Travel Solutions Ltd,Hired Transport
Peterborough City Council,Education,HTS & CSC Transport,Contract Hire and Operating Leases,14/01/2019,8000132866,675.00,Revenue,National Travel Solutions Ltd,Hired Transport
Peterborough City Council,Education,HTS & CSC Transport,Contract Hire and Operating Leases,14/01/2019,8000132867,760.00,Revenue,National Travel Solutions Ltd,Hired Transport
Peterborough City Council,Education,HTS & CSC Transport,Contract Hire and Operating Leases,14/01/2019,8000132868,658.00,Revenue,National Travel Solutions Ltd,Hired Transport
Peterborough City Council,Children's & Safeguarding,Commissioning - CSC,Services,14/01/2019,8000133251,673.84,Revenue,Redacted Personal Information,Financial Assistance
Peterborough City Council,Children's & Safeguarding,Commissioning - CSC,Services,14/01/2019,8000133251,905.82,Revenue,Redacted Personal Information,Financial Assistance
Peterborough City Council,Children's & Safeguarding,Commissioning - CSC,Services,14/01/2019,8000133251,766.34,Revenue,Redacted Personal Information,Financial Assistance
Peterborough City Council,Children's & Safeguarding,Commissioning - CSC,Services,14/01/2019,8000133251,576.38,Revenue,Redacted Personal Information,Financial Assistance
Peterborough City Council,Children's & Safeguarding,Commissioning - CSC,Services,14/01/2019,8000133251,866.92,Revenue,Redacted Personal Information,Financial Assistance
Peterborough City Council,Children's & Safeguarding,Commissioning - CSC,Services,14/01/2019,8000133251,2022.82,Revenue,Redacted Personal Information,Financial Assistance
Peterborough City Council,Children's & Safeguarding,Commissioning - CSC,Services,14/01/2019,8000133251,627.18,Revenue,Redacted Personal Information,Financial Assistance
Peterborough City Council,Children's & Safeguarding,Commissioning - CSC,Services,14/01/2019,8000133251,748.76,Revenue,Redacted Personal Information,Financial Assistance
Peterborough City Council,Children's & Safeguarding,Commissioning - CSC,Services,14/01/2019,8000133251,748.76,Revenue,Redacted Personal Information,Financial Assistance
Peterborough City Council,Children's & Safeguarding,Commissioning - CSC,Services,14/01/2019,8000133251,1260.00,Revenue,Redacted Personal Information,Financial Assistance
Peterborough City Council,Children's & Safeguarding,Commissioning - CSC,Services,14/01/2019,8000133251,550.40,Revenue,Redacted Personal Information,Financial Assistance
Peterborough City Council,Children's & Safeguarding,Commissioning - CSC,Services,14/01/2019,8000133251,866.76,Revenue,Redacted Personal Information,Financial Assistance
Peterborough City Council,Children's & Safeguarding,Commissioning - CSC,Services,14/01/2019,8000133251,905.50,Revenue,P'Boro Council For Voluntary Srvs (PCVS),Financial Assistance
Peterborough City Council,Adults,Independent Sector Placements,Services,14/01/2019,8000133405,1343.32,Revenue,Augusta Care Ltd,Home Care
Peterborough City Council,Adults,Independent Sector Placements,Services,14/01/2019,8000133406,4301.76,Revenue,Augusta Care Ltd,Home Care
Peterborough City Council,Communities,Housing,Services,15/01/2019,30211000,550.00,Revenue,Redacted Personal Information,Financial Assistance
Peterborough City Council,Communities,Housing,Services,15/01/2019,30211013,550.00,Revenue,Redacted Personal Information,Financial Assistance
Peterborough City Council,Children's & Safeguarding,Children's Social Care,Services,16/01/2019,30185943,1605.40,Revenue,Byrne House Ltd,Financial Assistance
Peterborough City Council,Children's & Safeguarding,Access to Resources & Specialist Commissioning,Services,16/01/2019,30203922,34833.33,Revenue,Acorn Care & Education Ltd,Boarding Out Fees
Peterborough City Council,Energy,Environment Capital,Services,16/01/2019,30205223,1850.00,Revenue,NPS Peterborough Ltd,Consultants Fees
Peterborough City Council,Adults,Independent Sector Placements,Services,16/01/2019,30205270,-850.40,Revenue,Avery House (Peterborough) t/a Brighterkind,Residential Care
Peterborough City Council,Adults,Independent Sector Placements,Services,16/01/2019,30205271,1876.68,Revenue,Avery House (Peterborough) t/a Brighterkind,Residential Care
Peterborough City Council,Adults,Independent Sector Placements,Services,16/01/2019,30205811,1150.00,Revenue,FIELD HOUSE (EYE) LTD,Residential Care
Peterborough City Council,Adults,Independent Sector Placements,Services,16/01/2019,30207899,1830.72,Revenue,Voyage 1 Limited,Home Care
Peterborough City Council,Adults,Independent Sector Placements,Services,16/01/2019,30207900,1830.72,Revenue,Voyage 1 Limited,Home Care
Peterborough City Council,Sustainable Growth Strategy,Housing & Strategic Planning,Services,16/01/2019,30208088,-5150.00,Revenue,Cambridgeshire County Council,Research
Peterborough City Council,Children's & Safeguarding,Child Health,Services,16/01/2019,30208305,3725.31,Revenue,Circles Network,Purchased Social Care Services
Peterborough City Council,Adults,Block Contracts,Third Party Payments,16/01/2019,30208449,5826.24,Revenue,Axiom Housing Association Ltd,Third Party Payments - Contract
Peterborough City Council,Adults,Block Contracts,Third Party Payments,16/01/2019,30208450,2056.32,Revenue,Axiom Housing Association Ltd,Third Party Payments - Contract
Peterborough City Council,Adults,Block Contracts,Third Party Payments,16/01/2019,30208451,2056.32,Revenue,Axiom Housing Association Ltd,Third Party Payments - Contract
Peterborough City Council,Adults,Block Contracts,Third Party Payments,16/01/2019,30208452,2056.32,Revenue,Axiom Housing Association Ltd,Third Party Payments - Contract
Peterborough City Council,Adults,Block Contracts,Third Party Payments,16/01/2019,30208453,5826.24,Revenue,Axiom Housing Association Ltd,Third Party Payments - Contract
Peterborough City Council,Adults,Block Contracts,Third Party Payments,16/01/2019,30208454,5826.24,Revenue,Axiom Housing Association Ltd,Third Party Payments - Contract
Peterborough City Council,Legal Services,Legal Services,Services,16/01/2019,30208509,550.00,Revenue,"Hunt, Miss Alison",Legal Costs
Peterborough City Council,Children's & Safeguarding,Child Health,Services,16/01/2019,30208518,8670.75,Revenue,Circles Network,Purchased Social Care Services
Peterborough City Council,Corporate Property,Commercial Propety,Services,16/01/2019,30208520,5500.00,Revenue,Serco Ltd,Hired Services
Peterborough City Council,Westcombe Engineering,Westcombe Engineering,"Tools, Equipment, Furniture & Materials",16/01/2019,30208522,2546.00,Revenue,AALCO,Materials
Peterborough City Council,Westcombe Engineering,Westcombe Engineering,"Tools, Equipment, Furniture & Materials",16/01/2019,30208523,1296.00,Revenue,AALCO,Materials
Peterborough City Council,Legal Services,Legal Services,Agency Staff,16/01/2019,30208547,2062.50,Revenue,Venn Group Ltd,External Temporary Staff
Peterborough City Council,Legal Services,Legal Services,Agency Staff,16/01/2019,30208548,1989.00,Revenue,Venn Group Ltd,External Temporary Staff
Peterborough City Council,Legal Services,Legal Services,Agency Staff,16/01/2019,30208549,2747.88,Revenue,Venn Group Ltd,External Temporary Staff
Peterborough City Council,Legal Services,Legal Services,Agency Staff,16/01/2019,30208550,1270.72,Revenue,Venn Group Ltd,External Temporary Staff
Peterborough City Council,Legal Services,Legal Services,Agency Staff,16/01/2019,30208551,933.11,Revenue,Venn Group Ltd,External Temporary Staff
Peterborough City Council,Legal Services,Legal Services,Agency Staff,16/01/2019,30208552,541.16,Revenue,Venn Group Ltd,External Temporary Staff
Peterborough City Council,Children's & Safeguarding,External Education Placements,Services,16/01/2019,30208651,3800.00,Revenue,Kirkstone House School,Boarding Out Fees
Peterborough City Council,Children's & Safeguarding,External Education Placements,Services,16/01/2019,30208652,3800.00,Revenue,Kirkstone House School,Boarding Out Fees
Peterborough City Council,Children's & Safeguarding,External Education Placements,Services,16/01/2019,30208653,3800.00,Revenue,Kirkstone House School,Boarding Out Fees
Peterborough City Council,Children's & Safeguarding,External Education Placements,Services,16/01/2019,30208654,3166.00,Revenue,Kirkstone House School,Boarding Out Fees
Peterborough City Council,Children's & Safeguarding,External Education Placements,Services,16/01/2019,30208655,3800.00,Revenue,Kirkstone House School,Boarding Out Fees
Peterborough City Council,Children's & Safeguarding,External Education Placements,Services,16/01/2019,30208656,3800.00,Revenue,Kirkstone House School,Boarding Out Fees
Peterborough City Council,Children's & Safeguarding,External Education Placements,Services,16/01/2019,30208657,3800.00,Revenue,Kirkstone House School,Boarding Out Fees
Peterborough City Council,Children's & Safeguarding,External Education Placements,Services,16/01/2019,30208659,3800.00,Revenue,Kirkstone House School,Boarding Out Fees
Peterborough City Council,Children's & Safeguarding,External Education Placements,Services,16/01/2019,30208660,3800.00,Revenue,Kirkstone House School,Boarding Out Fees
Peterborough City Council,Corporate Items,Corporate Services,Services,16/01/2019,30208668,13500.00,Revenue,CFPS,Consultants Fees
Peterborough City Council,Development and Construction,Planning Compliance,Agency Staff,16/01/2019,30208736,1615.95,Revenue,Park Avenue Recruitment Limited,External Temporary Staff
Peterborough City Council,ICT,ICT,Services,16/01/2019,30208783,5865.00,Revenue,Serco Ltd,Computer Software
Peterborough City Council,Various,Various,Services,16/01/2019,30208787,20229.09,Revenue,Serco Ltd,Mobile Telephones
Peterborough City Council,Director,Director,"Tools, Equipment, Furniture & Materials",16/01/2019,30208788,2513.28,Revenue,Serco Ltd,Computer Hardware
Peterborough City Council,ICT,ICT,Services,16/01/2019,30208794,704.12,Revenue,Serco Ltd,Computer Software
Peterborough City Council,ICT,ICT,Services,16/01/2019,30208795,509.59,Revenue,Serco Ltd,Computer Software
Peterborough City Council,Education,School Standards & Effectiveness,Services,16/01/2019,30208803,920.00,Revenue,Top Class Tutors,Education Expenses
Peterborough City Council,ICT,ICT,Services,16/01/2019,30208804,544963.10,Revenue,Serco Ltd,Computer Software
Peterborough City Council,ICT,ICT,Services,16/01/2019,30208807,52531.86,Revenue,Serco Ltd,Computer Software
Peterborough City Council,ICT,ICT,Services,16/01/2019,30208809,35462.59,Revenue,Serco Ltd,Computer Software
Peterborough City Council,ICT,ICT,Services,16/01/2019,30208814,12935.23,Revenue,Serco Ltd,Computer Software
Peterborough City Council,ICT,ICT,Services,16/01/2019,30208815,1557.70,Revenue,Serco Ltd,Computer Software
Peterborough City Council,Children's & Safeguarding,Adult & Children Safeguarding Board,Services,16/01/2019,30208819,2875.00,Revenue,RJW Associates Ltd,Consultants Fees
Peterborough City Council,Education,PFI,Salaries & Wages,16/01/2019,30208829,619.51,Revenue,IIC by Education (P'boro) Ltd,Pensions
Peterborough City Council,Education,PFI,Services,16/01/2019,30208831,28241.20,Revenue,IIC by Education (P'boro) Ltd,Service Charge
Peterborough City Council,"Cemeteries, Cremation & Registrars",Bereavement Service,"Tools, Equipment, Furniture & Materials",16/01/2019,30208858,532.40,Revenue,Scribes Ltd,Memorials
Peterborough City Council,Legal Services,Legal Services,Services,16/01/2019,30208863,800.00,Revenue,Buckles Solicitors LLP,Legal Costs
Peterborough City Council,Legal Services,Legal Services,Services,16/01/2019,30208869,825.00,Revenue,"Bramwell, Mr Christopher",Legal Costs
Peterborough City Council,Legal Services,Legal Services,Services,16/01/2019,30208870,550.00,Revenue,"Elliott, Ms Margot",Legal Costs
Peterborough City Council,Communities,Housing,Repair & Maintenance of Buildings,16/01/2019,30208887,580.00,Revenue,Rawheat Heating & Plumbing Eng.,Premises Repairs
Peterborough City Council,Corporate Property,Commercial Propety,Services,16/01/2019,30208892,2800.00,Revenue,Barker Storey Matthews,Consultants Fees
Peterborough City Council,Corporate Property,Commercial Propety,Third Party Payments,16/01/2019,30208896,2200.00,Revenue,NPS Peterborough Ltd,Third Party Payments - Contract
Peterborough City Council,Corporate,Corporate,Non Revenue,16/01/2019,30208900,874.50,Capital,Vix Technology UK Ltd,Infrastructure
Peterborough City Council,Education,Special Educational Needs / Inclusion,Services,16/01/2019,30208902,13750.00,Revenue,KIDS,Hired Services
Peterborough City Council,Westcombe Engineering,Westcombe Engineering,"Tools, Equipment, Furniture & Materials",16/01/2019,30208926,677.94,Revenue,Parkside Steel (Stockholders) Ltd,Materials
Peterborough City Council,Children's & Safeguarding,Access to Resources & Specialist Commissioning,Services,16/01/2019,30208928,4441.99,Revenue,Young People at Heart Ltd,Boarding Out Fees
Peterborough City Council,Parking Services,Parking Services,Services,16/01/2019,30208931,10900.00,Revenue,C N SECURITY,Security
Peterborough City Council,Adults,Strategic Commissioning - Management,Agency Staff,16/01/2019,30209136,12705.84,Revenue,Badenoch & Clark Ltd,External Temporary Staff
Peterborough City Council,Peterborough Highway Services,Asset & Contract Performance,Services,16/01/2019,30209142,5000.00,Revenue,Cambridgeshire County Council,Subscriptions
Peterborough City Council,Adults,Independent Sector Placements,Services,16/01/2019,30209148,-676.33,Revenue,Avery House (Peterborough) t/a Brighterkind,Residential Care
Peterborough City Council,Adults,Independent Sector Placements,Services,16/01/2019,30209165,4363.49,Revenue,BROADLEIGH NURSING HOME,Residential Care
Peterborough City Council,Corporate,Corporate,Non Revenue,16/01/2019,30209191,1056.00,Capital,Rider Levett Bucknall UK Ltd,Consultants Fees
Peterborough City Council,Corporate,Corporate,Non Revenue,16/01/2019,30209192,3705.61,Capital,Rider Levett Bucknall UK Ltd,Consultants Fees
Peterborough City Council,Westcombe Engineering,Westcombe Engineering,Direct Transport Costs,16/01/2019,30209258,500.00,Revenue,Nationwide Gladwins Repair Centres,Vehicle Repairs
Peterborough City Council,Adults,Independent Sector Placements,Services,16/01/2019,30209307,9607.89,Revenue,Dolphin Homes Limited,Residential Care
Peterborough City Council,Adults,Independent Sector Placements,Services,16/01/2019,30209329,3576.32,Revenue,GLASALLT FAWR,Residential Care
Peterborough City Council,Adults,Independent Sector Placements,Services,16/01/2019,30209330,3576.32,Revenue,GLASALLT FAWR,Residential Care
Peterborough City Council,Adults,Independent Sector Placements,Services,16/01/2019,30209338,-1124.44,Revenue,Avery House (Peterborough) t/a Brighterkind,Residential Care
Peterborough City Council,HR,HR WFD & Training,Services,16/01/2019,30209405,1850.00,Revenue,Kingsley Knight Law Limited,Training
Peterborough City Council,Adults,Independent Sector Placements,Services,16/01/2019,30209406,585.65,Revenue,Park Vista Care Home,Residential Care
Peterborough City Council,Children's & Safeguarding,External Education Placements,Services,16/01/2019,30209407,2990.14,Revenue,Kirkstone House School,Boarding Out Fees
Peterborough City Council,Adults,Independent Sector Placements,Services,16/01/2019,30209411,1745.17,Revenue,Park Vista Care Home,Residential Care
Peterborough City Council,Adults,Independent Sector Placements,Services,16/01/2019,30209414,844.44,Revenue,Park Vista Care Home,Residential Care
Peterborough City Council,Legal Services,Legal Services,Services,16/01/2019,30209422,550.00,Revenue,"Elliott, Ms Margot",Legal Costs
Peterborough City Council,Adults,Block Contracts,Third Party Payments,16/01/2019,30209436,68249.97,Revenue,Home Group Ltd,Third Party Payments - Contract
Peterborough City Council,Commissioning and Commercial Operations,Clare Lodge,Agency Staff,16/01/2019,30209451,1608.00,Revenue,Wrixon Care Services,External Temporary Staff
Peterborough City Council,Commissioning and Commercial Operations,Clare Lodge,Agency Staff,16/01/2019,30209454,1712.00,Revenue,Wrixon Care Services,External Temporary Staff
Peterborough City Council,Commissioning and Commercial Operations,Clare Lodge,Agency Staff,16/01/2019,30209458,2000.00,Revenue,Wrixon Care Services,External Temporary Staff
Peterborough City Council,Commissioning and Commercial Operations,Clare Lodge,Agency Staff,16/01/2019,30209459,2120.00,Revenue,Wrixon Care Services,External Temporary Staff
Peterborough City Council,Corporate,Corporate,Non Revenue,16/01/2019,30209541,7830.00,Capital,Permanent Futures Ltd,Consultants Fees
Peterborough City Council,Education,Special Educational Needs / Inclusion,Agency Staff,16/01/2019,30209543,1100.00,Revenue,Permanent Futures Ltd,External Temporary Staff
Peterborough City Council,Education,Special Educational Needs / Inclusion,"Tools, Equipment, Furniture & Materials",16/01/2019,30209574,510.00,Revenue,Sonova UK Ltd,Furniture And Equipment Purchase
Peterborough City Council,Peterborough Highway Services,Transport & Infrastructure Commissioning,Transport Costs,16/01/2019,30209585,15228.00,Revenue,First Eastern Counties Buses Ltd,Public Transport
Peterborough City Council,Corporate,Corporate,Non Revenue,16/01/2019,30209639,2268.60,Capital,Reed Specialist Recruitment Limited,Consultants Fees
Peterborough City Council,Children's & Safeguarding,Access to Resources & Specialist Commissioning,Services,16/01/2019,30209679,13662.14,Revenue,Barford Children's Services,Boarding Out Fees
Peterborough City Council,Commissioning and Commercial Operations,Clare Lodge,Agency Staff,16/01/2019,30209780,992.00,Revenue,Wrixon Care Services,External Temporary Staff
Peterborough City Council,Adults,Therapy/Reablement/Community Equipment,Agency Staff,16/01/2019,30209786,3517.81,Revenue,Eden Brown Ltd,External Temporary Staff
Peterborough City Council,Peterborough Highway Services,Highway & Drainage Control,Agency Staff,16/01/2019,30209787,1701.00,Revenue,Matchtech,External Temporary Staff
Peterborough City Council,Legal Services,Legal Services,Services,16/01/2019,30209794,1200.00,Revenue,"Elliott, Ms Margot",Legal Costs
Peterborough City Council,Corporate,Corporate,Non Revenue,16/01/2019,30209976,2883.00,Capital,Rider Levett Bucknall UK Ltd,Consultants Fees
Peterborough City Council,Corporate,Corporate,Non Revenue,16/01/2019,30209979,2260.00,Capital,Smooth Removals,Building And Site Works
Peterborough City Council,Legal Services,Legal Services,Services,16/01/2019,30210073,550.00,Revenue,"Elliott, Ms Margot",Legal Costs
Peterborough City Council,Children's & Safeguarding,Access to Resources & Specialist Commissioning,Services,16/01/2019,30210081,3432.63,Revenue,St Christopher's Fellowship,Boarding Out Fees
Peterborough City Council,Children's & Safeguarding,Access to Resources & Specialist Commissioning,Services,16/01/2019,30210082,3432.63,Revenue,St Christopher's Fellowship,Boarding Out Fees
Peterborough City Council,ICT,ICT,Agency Staff,16/01/2019,30210160,2265.40,Revenue,Reed Specialist Recruitment Limited,External Temporary Staff
Peterborough City Council,Adults,Independent Sector Placements,Services,16/01/2019,30210268,2354.27,Revenue,PHILIA LODGE REST HOME,Residential Care
Peterborough City Council,Adults,Independent Sector Placements,Services,16/01/2019,30210269,2354.27,Revenue,PHILIA LODGE REST HOME,Residential Care
Peterborough City Council,Adults,Independent Sector Placements,Services,16/01/2019,30210270,1392.91,Revenue,PHILIA LODGE REST HOME,Residential Care
Peterborough City Council,Adults,Independent Sector Placements,Services,16/01/2019,30210272,2015.36,Revenue,PHILIA LODGE REST HOME,Residential Care
Peterborough City Council,Adults,Independent Sector Placements,Services,16/01/2019,30210273,1041.80,Revenue,PHILIA LODGE REST HOME,Residential Care
Peterborough City Council,Adults,Independent Sector Placements,Services,16/01/2019,30210274,1523.72,Revenue,PHILIA LODGE REST HOME,Residential Care
Peterborough City Council,Adults,Independent Sector Placements,Services,16/01/2019,30210275,1449.29,Revenue,PHILIA LODGE REST HOME,Residential Care
Peterborough City Council,Adults,Independent Sector Placements,Services,16/01/2019,30210304,2070.19,Revenue,STAR RESIDENTIAL HOME LTD,Residential Care
Peterborough City Council,Peterborough Serco Strategic Partnership,PSSP Retained Services,Services,16/01/2019,30210312,17098.86,Revenue,Konica Minolta Bus.Sol. East Ltd,Photocopier
Peterborough City Council,Communities,Housing Enforcement,Customer and client receipts - Fees & Charges,16/01/2019,30210327,750.00,Revenue,Redacted Personal Information,Refunds
Peterborough City Council,Adults,Independent Sector Placements,Services,16/01/2019,30210341,4632.04,Revenue,PossAbilities CIC,Home Care
Peterborough City Council,Adults,Independent Sector Placements,Services,16/01/2019,30210343,4632.04,Revenue,PossAbilities CIC,Home Care
Peterborough City Council,Adults,Independent Sector Placements,Services,16/01/2019,30210345,2318.36,Revenue,Athena (Ashlynn Grange),Residential Care
Peterborough City Council,Adults,Independent Sector Placements,Services,16/01/2019,30210346,2318.36,Revenue,Athena (Ashlynn Grange),Residential Care
Peterborough City Council,Adults,Independent Sector Placements,Services,16/01/2019,30210347,-2483.96,Revenue,Athena (Ashlynn Grange),Residential Care
Peterborough City Council,Adults,Independent Sector Placements,Services,16/01/2019,30210348,3075.28,Revenue,STAR RESIDENTIAL HOME LTD,Residential Care
Peterborough City Council,Adults,Independent Sector Placements,Services,16/01/2019,30210349,2507.91,Revenue,STAR RESIDENTIAL HOME LTD,Residential Care
Peterborough City Council,Adults,Independent Sector Placements,Services,16/01/2019,30210350,2191.88,Revenue,STAR RESIDENTIAL HOME LTD,Residential Care
Peterborough City Council,Adults,Independent Sector Placements,Services,16/01/2019,30210352,2191.00,Revenue,STAR RESIDENTIAL HOME LTD,Residential Care
Peterborough City Council,Adults,Independent Sector Placements,Services,16/01/2019,30210353,1038.35,Revenue,STAR RESIDENTIAL HOME LTD,Residential Care
Peterborough City Council,Adults,Independent Sector Placements,Services,16/01/2019,30210358,2526.46,Revenue,Augusta Care Ltd,Home Care
Peterborough City Council,Adults,Independent Sector Placements,Services,16/01/2019,30210364,666.00,Revenue,FAITH CARE LINE SERVICES LIMITED,Home Care
Peterborough City Council,Children's & Safeguarding,Access to Resources & Specialist Commissioning,Services,16/01/2019,30210374,2698.86,Revenue,Fostering People Ltd,Boarding Out Fees
Peterborough City Council,Children's & Safeguarding,Access to Resources & Specialist Commissioning,Services,16/01/2019,30210378,3496.80,Revenue,Fostering People Ltd,Boarding Out Fees
Peterborough City Council,Commissioning and Commercial Operations,Early Years & Quality Improvement,Services,16/01/2019,30210396,528.19,Revenue,Redacted Personal Information,Grant Payment
Peterborough City Council,Adults,Independent Sector Placements,Services,16/01/2019,30210420,1822.44,Revenue,PHILIA LODGE REST HOME,Residential Care
Peterborough City Council,Adults,Independent Sector Placements,Services,16/01/2019,30210421,1968.96,Revenue,PHILIA LODGE REST HOME,Residential Care
Peterborough City Council,Adults,Independent Sector Placements,Services,16/01/2019,30210422,2648.00,Revenue,PHILIA LODGE REST HOME,Residential Care
Peterborough City Council,Adults,Independent Sector Placements,Services,16/01/2019,30210424,2648.00,Revenue,PHILIA LODGE REST HOME,Residential Care
Peterborough City Council,Adults,Independent Sector Placements,Services,16/01/2019,30210427,1490.24,Revenue,PHILIA LODGE REST HOME,Residential Care
Peterborough City Council,Adults,Independent Sector Placements,Services,16/01/2019,30210430,3233.44,Revenue,PHILIA LODGE REST HOME,Residential Care
Peterborough City Council,Adults,Independent Sector Placements,Services,16/01/2019,30210431,2648.00,Revenue,PHILIA LODGE REST HOME,Residential Care
Peterborough City Council,Adults,Independent Sector Placements,Services,16/01/2019,30210434,1236.72,Revenue,PHILIA LODGE REST HOME,Residential Care
Peterborough City Council,Education,Service Director Education,Salaries & Wages,16/01/2019,30210435,26662.16,Revenue,Teachers Pensions,Pensions
Peterborough City Council,Adults,Independent Sector Placements,Services,16/01/2019,30210436,1674.44,Revenue,PHILIA LODGE REST HOME,Residential Care
Peterborough City Council,Adults,Independent Sector Placements,Services,16/01/2019,30210437,2648.00,Revenue,PHILIA LODGE REST HOME,Residential Care
Peterborough City Council,Adults,Independent Sector Placements,Services,16/01/2019,30210438,2648.00,Revenue,PHILIA LODGE REST HOME,Residential Care
Peterborough City Council,Adults,Independent Sector Placements,Services,16/01/2019,30210440,2623.39,Revenue,PHILIA LODGE REST HOME,Residential Care
Peterborough City Council,Adults,Independent Sector Placements,Services,16/01/2019,30210441,2648.00,Revenue,PHILIA LODGE REST HOME,Residential Care
Peterborough City Council,Children's & Safeguarding,Access to Resources & Specialist Commissioning,Services,16/01/2019,30210442,1571.57,Revenue,PCH Integration Services Ltd,Boarding Out Fees
Peterborough City Council,Constitutional Services,Elections,Services,16/01/2019,30210445,702.45,Revenue,Royal Mail,Postage
Peterborough City Council,Adults,Independent Sector Placements,Services,16/01/2019,30210446,1821.88,Revenue,THE CLAIR FRANCIS RETIREMENT HOME,Residential Care
Peterborough City Council,Adults,Independent Sector Placements,Services,16/01/2019,30210447,1821.88,Revenue,THE CLAIR FRANCIS RETIREMENT HOME,Residential Care
Peterborough City Council,Adults,Independent Sector Placements,Services,16/01/2019,30210448,771.00,Revenue,THE CLAIR FRANCIS RETIREMENT HOME,Residential Care
Peterborough City Council,Adults,Independent Sector Placements,Services,16/01/2019,30210449,928.92,Revenue,THE CLAIR FRANCIS RETIREMENT HOME,Residential Care
Peterborough City Council,Adults,Independent Sector Placements,Services,16/01/2019,30210450,1263.44,Revenue,THE CLAIR FRANCIS RETIREMENT HOME,Residential Care
Peterborough City Council,Adults,Independent Sector Placements,Services,16/01/2019,30210452,1417.28,Revenue,THE CLAIR FRANCIS RETIREMENT HOME,Residential Care
Peterborough City Council,Adults,Independent Sector Placements,Services,16/01/2019,30210455,1462.24,Revenue,ABOUT ME CARE AND SUPPORT LTD,Home Care
Peterborough City Council,Adults,Independent Sector Placements,Services,16/01/2019,30210456,2761.46,Revenue,ABOUT ME CARE AND SUPPORT LTD,Home Care
Peterborough City Council,Adults,Independent Sector Placements,Services,16/01/2019,30210457,650.40,Revenue,THE CLAIR FRANCIS RETIREMENT HOME,Residential Care
Peterborough City Council,Adults,Independent Sector Placements,Services,16/01/2019,30210458,849.68,Revenue,ABOUT ME CARE AND SUPPORT LTD,Home Care
Peterborough City Council,Adults,Independent Sector Placements,Services,16/01/2019,30210459,2845.44,Revenue,ABOUT ME CARE AND SUPPORT LTD,Home Care
Peterborough City Council,Adults,Independent Sector Placements,Services,16/01/2019,30210460,1244.76,Revenue,THE CLAIR FRANCIS RETIREMENT HOME,Residential Care
Peterborough City Council,Adults,Independent Sector Placements,Services,16/01/2019,30210461,1821.88,Revenue,THE CLAIR FRANCIS RETIREMENT HOME,Residential Care
Peterborough City Council,Adults,Independent Sector Placements,Services,16/01/2019,30210462,1821.88,Revenue,THE CLAIR FRANCIS RETIREMENT HOME,Residential Care
Peterborough City Council,Adults,Independent Sector Placements,Services,16/01/2019,30210463,888.16,Revenue,THE CLAIR FRANCIS RETIREMENT HOME,Residential Care
Peterborough City Council,Adults,Independent Sector Placements,Services,16/01/2019,30210464,1269.48,Revenue,THE CLAIR FRANCIS RETIREMENT HOME,Residential Care
Peterborough City Council,Adults,Independent Sector Placements,Services,16/01/2019,30210465,1417.28,Revenue,THE CLAIR FRANCIS RETIREMENT HOME,Residential Care
Peterborough City Council,Adults,Independent Sector Placements,Services,16/01/2019,30210466,790.40,Revenue,ABOUT ME CARE AND SUPPORT LTD,Home Care
Peterborough City Council,Adults,Independent Sector Placements,Services,16/01/2019,30210467,943.04,Revenue,THE CLAIR FRANCIS RETIREMENT HOME,Residential Care
Peterborough City Council,Adults,Independent Sector Placements,Services,16/01/2019,30210468,2371.20,Revenue,ABOUT ME CARE AND SUPPORT LTD,Home Care
Peterborough City Council,Adults,Independent Sector Placements,Services,16/01/2019,30210469,1738.88,Revenue,ABOUT ME CARE AND SUPPORT LTD,Home Care
Peterborough City Council,Adults,Independent Sector Placements,Services,16/01/2019,30210470,1301.48,Revenue,THE CLAIR FRANCIS RETIREMENT HOME,Residential Care
Peterborough City Council,Adults,Independent Sector Placements,Services,16/01/2019,30210471,2124.20,Revenue,ABOUT ME CARE AND SUPPORT LTD,Home Care
Peterborough City Council,Adults,Independent Sector Placements,Services,16/01/2019,30210472,1821.88,Revenue,THE CLAIR FRANCIS RETIREMENT HOME,Residential Care
Peterborough City Council,Adults,Independent Sector Placements,Services,16/01/2019,30210473,1185.60,Revenue,ABOUT ME CARE AND SUPPORT LTD,Home Care
Peterborough City Council,Financial Services,Insurance,Services,16/01/2019,30210489,500.00,Revenue,JLT speciality Ltd,Hired Services
Peterborough City Council,Education,HTS & CSC Transport,Contract Hire and Operating Leases,16/01/2019,30210504,1105.80,Revenue,Positive Steps (Care Services) Ltd,Hired Transport
Peterborough City Council,Education,HTS & CSC Transport,Contract Hire and Operating Leases,16/01/2019,30210505,1047.60,Revenue,Positive Steps (Care Services) Ltd,Hired Transport
Peterborough City Council,Commissioning and Commercial Operations,Clare Lodge,Catering,16/01/2019,30210539,584.39,Revenue,King Bros Lady Lodge Ltd,Catering Provisions
Peterborough City Council,Adults,Independent Sector Placements,Services,16/01/2019,30210588,1630.00,Revenue,ABBEYGATE REST HOME,Residential Care
Peterborough City Council,Adults,Independent Sector Placements,Services,16/01/2019,30210589,2144.20,Revenue,STAR RESIDENTIAL HOME LTD,Residential Care
Peterborough City Council,Adults,Independent Sector Placements,Services,16/01/2019,30210605,-11004.34,Revenue,STAR RESIDENTIAL HOME LTD,Residential Care
Peterborough City Council,Adults,Independent Sector Placements,Services,16/01/2019,30210608,-18781.78,Revenue,PHILIA LODGE REST HOME,Residential Care
Peterborough City Council,Adults,Independent Sector Placements,Services,16/01/2019,30210611,-579.59,Revenue,Athena (Ashlynn Grange),Residential Care
Peterborough City Council,Adults,Independent Sector Placements,Services,16/01/2019,30210612,1827.32,Revenue,Ashmere,Residential Care
Peterborough City Council,Adults,Therapy/Reablement/Community Equipment,"Tools, Equipment, Furniture & Materials",16/01/2019,30210620,808.08,Revenue,Action on Hearing Loss,Occupational Therapy Equipment
Peterborough City Council,Children's & Safeguarding,Access to Resources & Specialist Commissioning,Services,16/01/2019,30210624,20994.80,Revenue,Positive Steps (Care Services) Ltd,Boarding Out Fees
Peterborough City Council,Commissioning and Commercial Operations,Early Years & Quality Improvement,Services,16/01/2019,30210650,47676.68,Revenue,Little Tigers Day Nursery,Grant Payment
Peterborough City Council,Children's & Safeguarding,Access to Resources & Specialist Commissioning,Services,16/01/2019,30210665,100733.37,Revenue,Seashell Trust,Boarding Out Fees
Peterborough City Council,Corporate,Corporate,Non Revenue,16/01/2019,30210699,12310.00,Capital,EMS Stairlifts,Grant Payment
Peterborough City Council,Corporate,Corporate,Non Revenue,16/01/2019,30210701,14174.00,Capital,Gaswise Services Ltd,Grant Payment
Peterborough City Council,Adults,Independent Sector Placements,Services,16/01/2019,30210715,1244.88,Revenue,ABOUT ME CARE AND SUPPORT LTD,Home Care
Peterborough City Council,Adults,Independent Sector Placements,Services,16/01/2019,30210717,2015.52,Revenue,ABOUT ME CARE AND SUPPORT LTD,Home Care
Peterborough City Council,Corporate Items,Corporate Services,Salaries & Wages,16/01/2019,30210723,68575.47,Revenue,LGSS Cambridgeshire Pension Fund,Pensions
Peterborough City Council,Adults,Independent Sector Placements,Services,16/01/2019,30210730,3577.48,Revenue,Avery House (Peterborough) t/a Brighterkind,Residential Care
Peterborough City Council,Corporate,Corporate,Non Revenue,16/01/2019,30210740,1550.16,Capital,Reed Specialist Recruitment Limited,Consultants Fees
Peterborough City Council,Commissioning and Commercial Operations,Commissioning Team,Agency Staff,16/01/2019,30210741,1346.16,Revenue,Reed Specialist Recruitment Limited,External Temporary Staff
Peterborough City Council,Commissioning and Commercial Operations,Clare Lodge,Agency Staff,16/01/2019,30210742,642.20,Revenue,Reed Specialist Recruitment Limited,External Temporary Staff
Peterborough City Council,ICT,ICT,Agency Staff,16/01/2019,30210746,1361.16,Revenue,Reed Specialist Recruitment Limited,External Temporary Staff
Peterborough City Council,Development and Construction,Building Control,Agency Staff,16/01/2019,30210748,1106.38,Revenue,Reed Specialist Recruitment Limited,External Temporary Staff
Peterborough City Council,Adults,Independent Sector Placements,Services,16/01/2019,30210754,1479.67,Revenue,Cambridgeshire County Council,Day Care
Peterborough City Council,Adults,Independent Sector Placements,Services,16/01/2019,30210755,1546.29,Revenue,Cambridgeshire County Council,Day Care
Peterborough City Council,Legal Services,Legal Services,Agency Staff,16/01/2019,30210758,1323.25,Revenue,Reed Specialist Recruitment Limited,External Temporary Staff
Peterborough City Council,Adults,Home Services Delivery Model,Agency Staff,16/01/2019,30210762,666.21,Revenue,Reed Specialist Recruitment Limited,External Temporary Staff
Peterborough City Council,Regulatory Services,Regulatory Services,Agency Staff,16/01/2019,30210767,640.73,Revenue,Reed Specialist Recruitment Limited,External Temporary Staff
Peterborough City Council,Communities,Housing,Services,16/01/2019,30210768,594.00,Revenue,Redacted Personal Information,Financial Assistance
Peterborough City Council,Development and Construction,Development Management,Agency Staff,16/01/2019,30210773,1356.80,Revenue,Reed Specialist Recruitment Limited,External Temporary Staff
Peterborough City Council,Communities,Targeted Youth Service,Services,16/01/2019,30210777,2000.00,Revenue,Peterborough Open Awards Centre CIC,Youth Programmes
Peterborough City Council,Development and Construction,Building Control,Agency Staff,16/01/2019,30210779,1075.05,Revenue,Reed Specialist Recruitment Limited,External Temporary Staff
Peterborough City Council,Commissioning and Commercial Operations,Clare Lodge,Agency Staff,16/01/2019,30210782,671.98,Revenue,Reed Specialist Recruitment Limited,External Temporary Staff
Peterborough City Council,Development and Construction,Development Management,Agency Staff,16/01/2019,30210783,645.85,Revenue,Reed Specialist Recruitment Limited,External Temporary Staff
Peterborough City Council,Peterborough Serco Strategic Partnership,Peterborough Serco Strategic Partnership,Third Party Payments,16/01/2019,30210785,51328.83,Revenue,Serco Ltd,Third Party Payments - Contract
Peterborough City Council,Peterborough Serco Strategic Partnership,Peterborough Serco Strategic Partnership,Services,16/01/2019,30210786,226567.12,Revenue,Serco Ltd,Contract Services
Peterborough City Council,Adults,Independent Sector Placements,Services,16/01/2019,30210789,4572.50,Revenue,Transitions Supported Living Ltd,Home Care
Peterborough City Council,Adults,Independent Sector Placements,Services,16/01/2019,30210797,544.00,Revenue,HEADWAY CAMBRIDGESHIRE,Day Care
Peterborough City Council,Adults,Independent Sector Placements,Services,16/01/2019,30210813,560.00,Revenue,HEADWAY CAMBRIDGESHIRE,Home Care
Peterborough City Council,Adults,Mental Health,Third Party Payments,16/01/2019,30210816,105114.17,Revenue,Cambs & P'boro NHS Foundation Trust,Third Party Payments - Contract
Peterborough City Council,Adults,Mental Health,Third Party Payments,16/01/2019,30210820,105114.17,Revenue,Cambs & P'boro NHS Foundation Trust,Third Party Payments - Contract
Peterborough City Council,Adults,Mental Health,Third Party Payments,16/01/2019,30210822,105114.17,Revenue,Cambs & P'boro NHS Foundation Trust,Third Party Payments - Contract
Peterborough City Council,Adults,Mental Health,Third Party Payments,16/01/2019,30210823,105114.17,Revenue,Cambs & P'boro NHS Foundation Trust,Third Party Payments - Contract
Peterborough City Council,Adults,Mental Health,Third Party Payments,16/01/2019,30210826,105114.17,Revenue,Cambs & P'boro NHS Foundation Trust,Third Party Payments - Contract
Peterborough City Council,Adults,Mental Health,Third Party Payments,16/01/2019,30210834,105114.17,Revenue,Cambs & P'boro NHS Foundation Trust,Third Party Payments - Contract
Peterborough City Council,Adults,Mental Health,Third Party Payments,16/01/2019,30210835,105114.17,Revenue,Cambs & P'boro NHS Foundation Trust,Third Party Payments - Contract
Peterborough City Council,Adults,Mental Health,Third Party Payments,16/01/2019,30210836,105114.17,Revenue,Cambs & P'boro NHS Foundation Trust,Third Party Payments - Contract
